Workbook

Sheet Main
B10: 2022-02-25
B12: Sheet No. | C12: Template Name | D12: Summary
B13: 1 | C13: Future Intra | D13: For Intraday trading in F&O segment
B14: 2 | C14: Cash Intra | D14: For Intraday trading in cash market segment
B15: 3 | C15: Mid-cap Intra | D15: For Intraday trading in Mid-cap stocks
B16: 4 | C16: Bulk Deals | D16: Reveals Bulk Deals carried on NSE & BSE
B17: 5 | C17: Call Tracker
K27: `

Sheet Future Intra
M5: Back to Main Page
A6: FOR INTRA DAY TRADING | L6: =Main!B10 -> 2022-02-25
A9: Sr.no | B9: Sector | C9: Scrip | D9: Expiry Date | E9: CLOSE RATE | F9: Pivot Point | G9: Supports | J9: Resistances
E10: Point | F10: Point | G10: S1 | H10: S2 | I10: S3 | J10: R1 | K10: R2 | L10: R3 | M10: HIGH | N10: LOW | O10: OI | P10: % Change in OI
A11: 1 | B11: Index | C11: NIFTY | D11: 2022-03-31 | E11: 16272.70 | F11: 16428.68 | G11: 16070.37 | H11: 15868.03 | I11: 15509.72 | J11: 16631.02 | K11: 16989.33 | L11: 17191.67 | M11: 16787 | N11: 16226.35 | O11: 11668200 | P11: -10.67%
A12: 2 | B12: Index | C12: BANKNIFTY | D12: 2022-03-31 | E12: 35243.70 | F12: 35706.93 | G12: 34572.57 | H12: 33901.43 | I12: 32767.07 | J12: 36378.07 | K12: 37512.43 | L12: 38183.57 | M12: 36841.3 | N12: 35035.8 | O12: 2175500 | P12: -7.24%
A13: 3 | B13: Index | C13: FINNIFTY | D13: 2022-03-29 | E13: 16411.40 | F13: 16734.18 | G13: 15978.42 | H13: 15545.43 | I13: 14789.67 | J13: 17167.17 | K13: 17922.93 | L13: 18355.92 | M13: 17489.95 | N13: 16301.2 | O13: 3040 | P13: 49.02%
A14: 4 | B14: Index | C14: MIDCPNIFTY | D14: 2022-03-29 | E14: 6700.00 | F14: 6799.88 | G14: 6600.12 | H14: 6500.23 | I14: 6300.47 | J14: 6899.77 | K14: 7099.53 | L14: 7199.42 | M14: 6999.65 | N14: 6700 | O14: 2175 | P14: 31.82%
A15: 5 | B15: Chemical | C15: AARTIIND | D15: 2022-03-31 | E15: 864.10 | F15: 876.32 | G15: 847.28 | H15: 830.47 | I15: 801.43 | J15: 893.13 | K15: 922.17 | L15: 938.98 | M15: 905.35 | N15: 859.5 | O15: 2136900 | P15: -28.09%
A16: 6 | B16: Pharma | C16: ABBOTINDIA | D16: 2022-03-31 | E16: 16741.45 | F16: 16725.53 | G16: 16460.97 | H16: 16180.48 | I16: 15915.92 | J16: 17006.02 | K16: 17270.58 | L16: 17551.07 | M16: 16990.1 | N16: 16445.05 | O16: 36925 | P16: -28.27%
A17: 7 | B17: Others | C17: ABCAPITAL | D17: 2022-03-31 | E17: 99.30 | F17: 101.53 | G17: 96.17 | H17: 93.03 | I17: 87.67 | J17: 104.67 | K17: 110.03 | L17: 113.17 | M17: 106.9 | N17: 98.4 | O17: 15892800 | P17: -11.01%
A18: 8 | B18: Textile | C18: ABFRL | D18: 2022-03-31 | E18: 250.75 | F18: 256.23 | G18: 243.37 | H18: 235.98 | I18: 223.12 | J18: 263.62 | K18: 276.48 | L18: 283.87 | M18: 269.1 | N18: 248.85 | O18: 12864800 | P18: -4.50%
A19: 9 | B19: Cement | C19: ACC | D19: 2022-03-31 | E19: 2019.70 | F19: 2051.53 | G19: 1977.57 | H19: 1935.43 | I19: 1861.47 | J19: 2093.67 | K19: 2167.63 | L19: 2209.77 | M19: 2125.5 | N19: 2009.4 | O19: 2174250 | P19: -3.73%
A20: 10 | B20: Others | C20: ADANIENT | D20: 2022-03-31 | E20: 1551.25 | F20: 1582.18 | G20: 1503.32 | H20: 1455.38 | I20: 1376.52 | J20: 1630.12 | K20: 1708.98 | L20: 1756.92 | M20: 1661.05 | N20: 1534.25 | O20: 21242000 | P20: -0.41%
A21: 11 | B21: Others | C21: ADANIPORTS | D21: 2022-03-31 | E21: 656.80 | F21: 666.85 | G21: 643.75 | H21: 630.70 | I21: 607.60 | J21: 679.90 | K21: 703.00 | L21: 716.05 | M21: 689.95 | N21: 653.8 | O21: 86385000 | P21: -3.54%
A22: 12 | B22: Pharma | C22: ALKEM | D22: 2022-03-31 | E22: 3180.00 | F22: 3202.95 | G22: 3140.60 | H22: 3101.20 | I22: 3038.85 | J22: 3242.35 | K22: 3304.70 | L22: 3344.10 | M22: 3265.3 | N22: 3163.55 | O22: 287800 | P22: -8.46%
A23: 13 | B23: Automobile | C23: AMARAJABAT | D23: 2022-03-31 | E23: 525.05 | F23: 540.55 | G23: 506.10 | H23: 487.15 | I23: 452.70 | J23: 559.50 | K23: 593.95 | L23: 612.90 | M23: 575 | N23: 521.6 | O23: 7860000 | P23: -4.06%
A24: 14 | B24: Cement | C24: AMBUJACEM | D24: 2022-03-31 | E24: 301.10 | F24: 305.35 | G24: 292.70 | H24: 284.30 | I24: 271.65 | J24: 313.75 | K24: 326.40 | L24: 334.80 | M24: 318 | N24: 296.95 | O24: 19390500 | P24: 1.29%
A25: 15 | B25: Pharma | C25: APLLTD | D25: 2022-03-31 | E25: 703.50 | F25: 705.32 | G25: 683.98 | H25: 664.47 | I25: 643.13 | J25: 724.83 | K25: 746.17 | L25: 765.68 | M25: 726.65 | N25: 685.8 | O25: 1638700 | P25: -12.55%
A26: 16 | B26: Others | C26: APOLLOHOSP | D26: 2022-03-31 | E26: 4386.00 | F26: 4431.25 | G26: 4317.00 | H26: 4248.00 | I26: 4133.75 | J26: 4500.25 | K26: 4614.50 | L26: 4683.50 | M26: 4545.5 | N26: 4362.25 | O26: 2569125 | P26: -4.16%
A27: 17 | B27: Automobile | C27: APOLLOTYRE | D27: 2022-03-31 | E27: 179.05 | F27: 184.27 | G27: 171.53 | H27: 164.02 | I27: 151.28 | J27: 191.78 | K27: 204.52 | L27: 212.03 | M27: 197 | N27: 176.75 | O27: 11017500 | P27: -15.66%
A28: 18 | B28: Automobile | C28: ASHOKLEY | D28: 2022-03-31 | E28: 113.90 | F28: 116.48 | G28: 110.82 | H28: 107.73 | I28: 102.07 | J28: 119.57 | K28: 125.23 | L28: 128.32 | M28: 122.15 | N28: 113.4 | O28: 34227000 | P28: -6.80%
A29: 19 | B29: FMCG | C29: ASIANPAINT | D29: 2022-03-31 | E29: 3073.10 | F29: 3111.97 | G29: 3015.33 | H29: 2957.57 | I29: 2860.93 | J29: 3169.73 | K29: 3266.37 | L29: 3324.13 | M29: 3208.6 | N29: 3054.2 | O29: 4352550 | P29: 7.01%
A30: 20 | B30: Others | C30: ASTRAL | D30: 2022-03-31 | E30: 1784.85 | F30: 1810.38 | G30: 1743.52 | H30: 1702.18 | I30: 1635.32 | J30: 1851.72 | K30: 1918.58 | L30: 1959.92 | M30: 1877.25 | N30: 1769.05 | O30: 1090375 | P30: -11.89%
A31: 21 | B31: Others | C31: ATUL | D31: 2022-03-31 | E31: 8681.65 | F31: 8788.88 | G31: 8527.77 | H31: 8373.88 | I31: 8112.77 | J31: 8942.77 | K31: 9203.88 | L31: 9357.77 | M31: 9050 | N31: 8635 | O31: 88800 | P31: -24.05%
A32: 22 | B32: Banking | C32: AUBANK | D32: 2022-03-31 | E32: 1165.65 | F32: 1193.15 | G32: 1130.30 | H32: 1094.95 | I32: 1032.10 | J32: 1228.50 | K32: 1291.35 | L32: 1326.70 | M32: 1256 | N32: 1157.8 | O32: 2479500 | P32: -9.24%
A33: 23 | B33: Pharma | C33: AUROPHARMA | D33: 2022-03-31 | E33: 606.50 | F33: 613.13 | G33: 596.27 | H33: 586.03 | I33: 569.17 | J33: 623.37 | K33: 640.23 | L33: 650.47 | M33: 630 | N33: 602.9 | O33: 13899750 | P33: -2.59%
A34: 24 | B34: Banking | C34: AXISBANK | D34: 2022-03-31 | E34: 732.30 | F34: 743.58 | G34: 716.22 | H34: 700.13 | I34: 672.77 | J34: 759.67 | K34: 787.03 | L34: 803.12 | M34: 770.95 | N34: 727.5 | O34: 38383200 | P34: 0.51%
A35: 25 | B35: Automobile | C35: BAJAJ-AUTO | D35: 2022-03-31 | E35: 3476.75 | F35: 3497.90 | G35: 3435.80 | H35: 3394.85 | I35: 3332.75 | J35: 3538.85 | K35: 3600.95 | L35: 3641.90 | M35: 3560 | N35: 3456.95 | O35: 2013000 | P35: -1.25%
A36: 26 | B36: Finance | C36: BAJAJFINSV | D36: 2022-03-31 | E36: 15277.25 | F36: 15486.05 | G36: 15024.35 | H36: 14771.45 | I36: 14309.75 | J36: 15738.95 | K36: 16200.65 | L36: 16453.55 | M36: 15947.75 | N36: 15233.15 | O36: 637250 | P36: -4.35%
A37: 27 | B37: Finance | C37: BAJFINANCE | D37: 2022-03-31 | E37: 6634.20 | F37: 6724.43 | G37: 6511.87 | H37: 6389.53 | I37: 6176.97 | J37: 6846.77 | K37: 7059.33 | L37: 7181.67 | M37: 6937 | N37: 6602.1 | O37: 4123125 | P37: -0.25%
A38: 28 | B38: Automobile | C38: BALKRISIND | D38: 2022-03-31 | E38: 1763.80 | F38: 1799.18 | G38: 1722.37 | H38: 1680.93 | I38: 1604.12 | J38: 1840.62 | K38: 1917.43 | L38: 1958.87 | M38: 1876 | N38: 1757.75 | O38: 1453600 | P38: -0.57%
A39: 29 | B39: Others | C39: BALRAMCHIN | D39: 2022-03-31 | E39: 378.55 | F39: 387.38 | G39: 366.77 | H39: 354.98 | I39: 334.37 | J39: 399.17 | K39: 419.78 | L39: 431.57 | M39: 408 | N39: 375.6 | O39: 6724800 | P39: -6.16%
A40: 30 | B40: Banking | C40: BANDHANBNK | D40: 2022-03-31 | E40: 291.40 | F40: 297.33 | G40: 282.62 | H40: 273.83 | I40: 259.12 | J40: 306.12 | K40: 320.83 | L40: 329.62 | M40: 312.05 | N40: 288.55 | O40: 21515400 | P40: 2.02%
A41: 31 | B41: Banking | C41: BANKBARODA | D41: 2022-03-31 | E41: 100.85 | F41: 102.35 | G41: 98.95 | H41: 97.05 | I41: 93.65 | J41: 104.25 | K41: 107.65 | L41: 109.55 | M41: 105.75 | N41: 100.45 | O41: 98993700 | P41: -13.36%
A42: 32 | B42: FMCG | C42: BATAINDIA | D42: 2022-03-31 | E42: 1779.20 | F42: 1798.73 | G42: 1754.52 | H42: 1729.83 | I42: 1685.62 | J42: 1823.42 | K42: 1867.63 | L42: 1892.32 | M42: 1842.95 | N42: 1774.05 | O42: 1277100 | P42: -18.75%
A43: 33 | B43: Capital_Goods | C43: BEL | D43: 2022-03-31 | E43: 187.85 | F43: 190.32 | G43: 184.43 | H43: 181.02 | I43: 175.13 | J43: 193.73 | K43: 199.62 | L43: 203.03 | M43: 196.2 | N43: 186.9 | O43: 24293400 | P43: -18.16%
A44: 34 | B44: FMCG | C44: BERGEPAINT | D44: 2022-03-31 | E44: 679.95 | F44: 693.32 | G44: 663.93 | H44: 647.92 | I44: 618.53 | J44: 709.33 | K44: 738.72 | L44: 754.73 | M44: 722.7 | N44: 677.3 | O44: 4413200 | P44: 2.14%
A45: 35 | B45: Automobile | C45: BHARATFORG | D45: 2022-03-31 | E45: 661.80 | F45: 669.03 | G45: 648.07 | H45: 634.33 | I45: 613.37 | J45: 682.77 | K45: 703.73 | L45: 717.47 | M45: 690 | N45: 655.3 | O45: 5460750 | P45: -3.72%
A46: 36 | B46: Telecom | C46: BHARTIARTL | D46: 2022-03-31 | E46: 671.80 | F46: 669.45 | G46: 649.10 | H46: 626.40 | I46: 606.05 | J46: 692.15 | K46: 712.50 | L46: 735.20 | M46: 689.8 | N46: 646.75 | O46: 57734350 | P46: -2.38%
A47: 37 | B47: Capital_Goods | C47: BHEL | D47: 2022-03-31 | E47: 44.35 | F47: 45.62 | G47: 42.88 | H47: 41.42 | I47: 38.68 | J47: 47.08 | K47: 49.82 | L47: 51.28 | M47: 48.35 | N47: 44.15 | O47: 105714000 | P47: -9.79%
A48: 38 | B48: Pharma | C48: BIOCON | D48: 2022-03-31 | E48: 375.45 | F48: 381.60 | G48: 368.20 | H48: 360.95 | I48: 347.55 | J48: 388.85 | K48: 402.25 | L48: 409.50 | M48: 395 | N48: 374.35 | O48: 12061200 | P48: -4.95%
A49: 39 | B49: Automobile | C49: BOSCHLTD | D49: 2022-03-31 | E49: 14857.65 | F49: 15082.60 | G49: 14555.35 | H49: 14253.05 | I49: 13725.80 | J49: 15384.90 | K49: 15912.15 | L49: 16214.45 | M49: 15609.85 | N49: 14780.3 | O49: 120200 | P49: -16.82%
A50: 40 | B50: Oil_Gas | C50: BPCL | D50: 2022-03-31 | E50: 331.45 | F50: 337.50 | G50: 324.00 | H50: 316.55 | I50: 303.05 | J50: 344.95 | K50: 358.45 | L50: 365.90 | M50: 351 | N50: 330.05 | O50: 21826800 | P50: -16.29%
A51: 41 | B51: FMCG | C51: BRITANNIA | D51: 2022-03-31 | E51: 3444.30 | F51: 3459.28 | G51: 3411.92 | H51: 3379.53 | I51: 3332.17 | J51: 3491.67 | K51: 3539.03 | L51: 3571.42 | M51: 3506.65 | N51: 3426.9 | O51: 1432600 | P51: 5.00%
A52: 42 | B52: Technology | C52: BSOFT | D52: 2022-03-31 | E52: 382.05 | F52: 387.60 | G52: 374.55 | H52: 367.05 | I52: 354.00 | J52: 395.10 | K52: 408.15 | L52: 415.65 | M52: 400.65 | N52: 380.1 | O52: 3497000 | P52: -17.84%
A53: 43 | B53: Pharma | C53: CADILAHC | D53: 2022-03-31 | E53: 344.25 | F53: 350.78 | G53: 336.52 | H53: 328.78 | I53: 314.52 | J53: 358.52 | K53: 372.78 | L53: 380.52 | M53: 365.05 | N53: 343.05 | O53: 19811000 | P53: -8.93%
A54: 44 | B54: Banking | C54: CANBK | D54: 2022-03-31 | E54: 208.55 | F54: 213.50 | G54: 202.20 | H54: 195.85 | I54: 184.55 | J54: 219.85 | K54: 231.15 | L54: 237.50 | M54: 224.8 | N54: 207.15 | O54: 41509800 | P54: -3.09%
A55: 45 | B55: Finance | C55: CANFINHOME | D55: 2022-03-31 | E55: 548.75 | F55: 557.38 | G55: 531.17 | H55: 513.58 | I55: 487.37 | J55: 574.97 | K55: 601.18 | L55: 618.77 | M55: 583.6 | N55: 539.8 | O55: 3222375 | P55: -7.29%
A56: 46 | B56: Others | C56: CHAMBLFERT | D56: 2022-03-31 | E56: 341.00 | F56: 351.73 | G56: 329.67 | H56: 318.33 | I56: 296.27 | J56: 363.07 | K56: 385.13 | L56: 396.47 | M56: 373.8 | N56: 340.4 | O56: 1933500 | P56: -21.21%
A57: 47 | B57: Finance | C57: CHOLAFIN | D57: 2022-03-31 | E57: 648.60 | F57: 657.00 | G57: 635.75 | H57: 622.90 | I57: 601.65 | J57: 669.85 | K57: 691.10 | L57: 703.95 | M57: 678.25 | N57: 644.15 | O57: 8372500 | P57: -7.37%
A58: 48 | B58: Pharma | C58: CIPLA | D58: 2022-03-31 | E58: 896.00 | F58: 898.43 | G58: 887.07 | H58: 878.13 | I58: 866.77 | J58: 907.37 | K58: 918.73 | L58: 927.67 | M58: 909.8 | N58: 889.5 | O58: 9653800 | P58: -27.27%
A59: 49 | B59: Others | C59: COALINDIA | D59: 2022-03-31 | E59: 149.65 | F59: 151.57 | G59: 146.98 | H59: 144.32 | I59: 139.73 | J59: 154.23 | K59: 158.82 | L59: 161.48 | M59: 156.15 | N59: 148.9 | O59: 35347200 | P59: -23.37%
A60: 50 | B60: Technology | C60: COFORGE | D60: 2022-03-31 | E60: 4185.05 | F60: 4214.58 | G60: 4133.27 | H60: 4081.48 | I60: 4000.17 | J60: 4266.37 | K60: 4347.68 | L60: 4399.47 | M60: 4295.9 | N60: 4162.8 | O60: 493100 | P60: -31.02%
A61: 51 | B61: FMCG | C61: COLPAL | D61: 2022-03-31 | E61: 1382.35 | F61: 1389.58 | G61: 1369.22 | H61: 1356.08 | I61: 1335.72 | J61: 1402.72 | K61: 1423.08 | L61: 1436.22 | M61: 1409.95 | N61: 1376.45 | O61: 1930600 | P61: -24.53%
A62: 52 | B62: Others | C62: CONCOR | D62: 2022-03-31 | E62: 559.55 | F62: 564.87 | G62: 552.38 | H62: 545.22 | I62: 532.73 | J62: 572.03 | K62: 584.52 | L62: 591.68 | M62: 577.35 | N62: 557.7 | O62: 5468000 | P62: -5.12%
A63: 53 | B63: Others | C63: COROMANDEL | D63: 2022-03-31 | E63: 732.90 | F63: 746.90 | G63: 715.30 | H63: 697.70 | I63: 666.10 | J63: 764.50 | K63: 796.10 | L63: 813.70 | M63: 778.5 | N63: 729.3 | O63: 895625 | P63: -3.37%
A64: 54 | B64: Capital_Goods | C64: CROMPTON | D64: 2022-03-31 | E64: 406.40 | F64: 406.45 | G64: 394.40 | H64: 382.40 | I64: 370.35 | J64: 418.45 | K64: 430.50 | L64: 442.50 | M64: 418.5 | N64: 394.45 | O64: 4284500 | P64: -8.01%
A65: 55 | B65: Banking | C65: CUB | D65: 2022-03-31 | E65: 122.65 | F65: 124.13 | G65: 120.62 | H65: 118.58 | I65: 115.07 | J65: 126.17 | K65: 129.68 | L65: 131.72 | M65: 127.65 | N65: 122.1 | O65: 10975200 | P65: -16.05%
A66: 56 | B66: Capital_Goods | C66: CUMMINSIND | D66: 2022-03-31 | E66: 928.15 | F66: 938.63 | G66: 914.32 | H66: 900.48 | I66: 876.17 | J66: 952.47 | K66: 976.78 | L66: 990.62 | M66: 962.95 | N66: 924.8 | O66: 1634400 | P66: -14.63%
A67: 57 | B67: FMCG | C67: DABUR | D67: 2022-03-31 | E67: 534.20 | F67: 534.00 | G67: 527.60 | H67: 521.00 | I67: 514.60 | J67: 540.60 | K67: 547.00 | L67: 553.60 | M67: 540.4 | N67: 527.4 | O67: 13386250 | P67: -0.21%
A68: 58 | B68: Cement | C68: DALBHARAT | D68: 2022-03-31 | E68: 1540.05 | F68: 1560.92 | G68: 1499.13 | H68: 1458.22 | I68: 1396.43 | J68: 1601.83 | K68: 1663.62 | L68: 1704.53 | M68: 1622.7 | N68: 1520 | O68: 399750 | P68: -27.32%
A69: 59 | B69: Chemical | C69: DEEPAKNTR | D69: 2022-03-31 | E69: 1855.40 | F69: 1893.67 | G69: 1806.63 | H69: 1757.87 | I69: 1670.83 | J69: 1942.43 | K69: 2029.47 | L69: 2078.23 | M69: 1980.7 | N69: 1844.9 | O69: 1935000 | P69: -9.74%
A70: 60 | B70: Others | C70: DELTACORP | D70: 2022-03-31 | E70: 245.05 | F70: 250.85 | G70: 236.60 | H70: 228.15 | I70: 213.90 | J70: 259.30 | K70: 273.55 | L70: 282.00 | M70: 265.1 | N70: 242.4 | O70: 14651000 | P70: -3.48%
A71: 61 | B71: Pharma | C71: DIVISLAB | D71: 2022-03-31 | E71: 3947.60 | F71: 4002.52 | G71: 3875.03 | H71: 3802.47 | I71: 3674.98 | J71: 4075.08 | K71: 4202.57 | L71: 4275.13 | M71: 4130 | N71: 3929.95 | O71: 2541300 | P71: -1.68%
A72: 62 | B72: Others | C72: DIXON | D72: 2022-03-31 | E72: 4043.30 | F72: 4072.90 | G72: 3973.35 | H72: 3903.40 | I72: 3803.85 | J72: 4142.85 | K72: 4242.40 | L72: 4312.35 | M72: 4172.45 | N72: 4002.95 | O72: 434750 | P72: -17.31%
A73: 63 | B73: Realty | C73: DLF | D73: 2022-03-31 | E73: 320.55 | F73: 326.37 | G73: 312.23 | H73: 303.92 | I73: 289.78 | J73: 334.68 | K73: 348.82 | L73: 357.13 | M73: 340.5 | N73: 318.05 | O73: 40971150 | P73: -2.78%
A74: 64 | B74: Pharma | C74: DRREDDY | D74: 2022-03-31 | E74: 4087.80 | F74: 4097.95 | G74: 4044.25 | H74: 4000.70 | I74: 3947.00 | J74: 4141.50 | K74: 4195.20 | L74: 4238.75 | M74: 4151.65 | N74: 4054.4 | O74: 2723125 | P74: -2.82%
A75: 65 | B75: Automobile | C75: EICHERMOT | D75: 2022-03-31 | E75: 2616.35 | F75: 2635.85 | G75: 2576.70 | H75: 2537.05 | I75: 2477.90 | J75: 2675.50 | K75: 2734.65 | L75: 2774.30 | M75: 2695 | N75: 2596.2 | O75: 2797900 | P75: -3.49%
A76: 66 | B76: Automobile | C76: ESCORTS | D76: 2022-03-31 | E76: 1782.70 | F76: 1799.18 | G76: 1756.22 | H76: 1729.73 | I76: 1686.77 | J76: 1825.67 | K76: 1868.63 | L76: 1895.12 | M76: 1842.15 | N76: 1772.7 | O76: 4595800 | P76: -27.86%
A77: 67 | B77: Automobile | C77: EXIDEIND | D77: 2022-03-31 | E77: 141.30 | F77: 143.95 | G77: 137.80 | H77: 134.30 | I77: 128.15 | J77: 147.45 | K77: 153.60 | L77: 157.10 | M77: 150.1 | N77: 140.45 | O77: 24105600 | P77: -12.80%
A78: 68 | B78: Banking | C78: FEDERALBNK | D78: 2022-03-31 | E78: 93.60 | F78: 95.27 | G78: 91.53 | H78: 89.47 | I78: 85.73 | J78: 97.33 | K78: 101.07 | L78: 103.13 | M78: 99 | N78: 93.2 | O78: 61070000 | P78: -10.57%
A79: 69 | B79: Technology | C79: FSL | D79: 2022-03-31 | E79: 120.45 | F79: 120.72 | G79: 117.83 | H79: 115.22 | I79: 112.33 | J79: 123.33 | K79: 126.22 | L79: 128.83 | M79: 123.6 | N79: 118.1 | O79: 15308800 | P79: -7.00%
A80: 70 | B80: Oil_Gas | C80: GAIL | D80: 2022-03-31 | E80: 127.85 | F80: 129.68 | G80: 125.57 | H80: 123.28 | I80: 119.17 | J80: 131.97 | K80: 136.08 | L80: 138.37 | M80: 133.8 | N80: 127.4 | O80: 29780200 | P80: -18.62%
A81: 71 | B81: Pharma | C81: GLENMARK | D81: 2022-03-31 | E81: 430.80 | F81: 434.83 | G81: 419.92 | H81: 409.03 | I81: 394.12 | J81: 445.72 | K81: 460.63 | L81: 471.52 | M81: 449.75 | N81: 423.95 | O81: 7208200 | P81: -5.29%
A82: 72 | B82: Infrastructure | C82: GMRINFRA | D82: 2022-03-31 | E82: 34.60 | F82: 35.47 | G82: 33.28 | H82: 31.97 | I82: 29.78 | J82: 36.78 | K82: 38.97 | L82: 40.28 | M82: 37.65 | N82: 34.15 | O82: 84892500 | P82: -21.96%
A83: 73 | B83: Others | C83: GNFC | D83: 2022-03-31 | E83: 509.75 | F83: 517.32 | G83: 499.63 | H83: 489.52 | I83: 471.83 | J83: 527.43 | K83: 545.12 | L83: 555.23 | M83: 535 | N83: 507.2 | O83: 2834000 | P83: -9.13%
A84: 74 | B84: FMCG | C84: GODREJCP | D84: 2022-03-31 | E84: 772.95 | F84: 780.92 | G84: 762.03 | H84: 751.12 | I84: 732.23 | J84: 791.83 | K84: 810.72 | L84: 821.63 | M84: 799.8 | N84: 770 | O84: 5954500 | P84: -1.18%
A85: 75 | B85: Realty | C85: GODREJPROP | D85: 2022-03-31 | E85: 1452.90 | F85: 1492.15 | G85: 1407.15 | H85: 1361.40 | I85: 1276.40 | J85: 1537.90 | K85: 1622.90 | L85: 1668.65 | M85: 1577.15 | N85: 1446.4 | O85: 5170425 | P85: -2.74%
A86: 76 | B86: Pharma | C86: GRANULES | D86: 2022-03-31 | E86: 268.20 | F86: 272.03 | G86: 262.22 | H86: 256.23 | I86: 246.42 | J86: 278.02 | K86: 287.83 | L86: 293.82 | M86: 281.85 | N86: 266.05 | O86: 11445200 | P86: -8.08%
A87: 77 | B87: Cement | C87: GRASIM | D87: 2022-03-31 | E87: 1549.35 | F87: 1582.62 | G87: 1506.73 | H87: 1464.12 | I87: 1388.23 | J87: 1625.23 | K87: 1701.12 | L87: 1743.73 | M87: 1658.5 | N87: 1540 | O87: 9964075 | P87: -2.62%
A88: 78 | B88: Oil_Gas | C88: GSPL | D88: 2022-03-31 | E88: 268.95 | F88: 274.23 | G88: 260.22 | H88: 251.48 | I88: 237.47 | J88: 282.97 | K88: 296.98 | L88: 305.72 | M88: 288.25 | N88: 265.5 | O88: 1079500 | P88: -31.43%
A89: 79 | B89: Oil_Gas | C89: GUJGASLTD | D89: 2022-03-31 | E89: 572.05 | F89: 582.88 | G89: 555.62 | H89: 539.18 | I89: 511.92 | J89: 599.32 | K89: 626.58 | L89: 643.02 | M89: 610.15 | N89: 566.45 | O89: 2291250 | P89: -10.06%
A90: 80 | B90: Others | C90: HAL | D90: 2022-03-31 | E90: 1279.90 | F90: 1276.35 | G90: 1252.70 | H90: 1225.50 | I90: 1201.85 | J90: 1303.55 | K90: 1327.20 | L90: 1354.40 | M90: 1300 | N90: 1249.15 | O90: 2141775 | P90: -12.63%
A91: 81 | B91: Capital_Goods | C91: HAVELLS | D91: 2022-03-31 | E91: 1148.35 | F91: 1158.60 | G91: 1131.70 | H91: 1115.05 | I91: 1088.15 | J91: 1175.25 | K91: 1202.15 | L91: 1218.80 | M91: 1185.5 | N91: 1141.95 | O91: 3909500 | P91: -0.38%
A92: 82 | B92: Technology | C92: HCLTECH | D92: 2022-03-31 | E92: 1101.65 | F92: 1113.07 | G92: 1083.93 | H92: 1066.22 | I92: 1037.08 | J92: 1130.78 | K92: 1159.92 | L92: 1177.63 | M92: 1142.2 | N92: 1095.35 | O92: 20016500 | P92: -9.95%
A93: 83 | B93: Finance | C93: HDFC | D93: 2022-03-31 | E93: 2348.50 | F93: 2364.02 | G93: 2321.18 | H93: 2293.87 | I93: 2251.03 | J93: 2391.33 | K93: 2434.17 | L93: 2461.48 | M93: 2406.85 | N93: 2336.7 | O93: 22439700 | P93: -2.13%
A94: 84 | B94: Finance | C94: HDFCAMC | D94: 2022-03-31 | E94: 2017.40 | F94: 2059.92 | G94: 1957.48 | H94: 1897.57 | I94: 1795.13 | J94: 2119.83 | K94: 2222.27 | L94: 2282.18 | M94: 2162.35 | N94: 2000 | O94: 2847800 | P94: -3.76%
A95: 85 | B95: Banking | C95: HDFCBANK | D95: 2022-03-31 | E95: 1422.70 | F95: 1436.62 | G95: 1398.23 | H95: 1373.77 | I95: 1335.38 | J95: 1461.08 | K95: 1499.47 | L95: 1523.93 | M95: 1475 | N95: 1412.15 | O95: 26700850 | P95: -6.07%
A96: 86 | B96: Finance | C96: HDFCLIFE | D96: 2022-03-31 | E96: 532.90 | F96: 541.22 | G96: 521.43 | H96: 509.97 | I96: 490.18 | J96: 552.68 | K96: 572.47 | L96: 583.93 | M96: 561 | N96: 529.75 | O96: 25646500 | P96: 2.88%
A97: 87 | B97: Automobile | C97: HEROMOTOCO | D97: 2022-03-31 | E97: 2492.35 | F97: 2524.23 | G97: 2414.32 | H97: 2336.28 | I97: 2226.37 | J97: 2602.27 | K97: 2712.18 | L97: 2790.22 | M97: 2634.15 | N97: 2446.2 | O97: 3201600 | P97: -10.37%
A98: 88 | B98: Metals | C98: HINDALCO | D98: 2022-03-31 | E98: 517.70 | F98: 517.17 | G98: 506.58 | H98: 495.47 | I98: 484.88 | J98: 528.28 | K98: 538.87 | L98: 549.98 | M98: 527.75 | N98: 506.05 | O98: 34406450 | P98: -3.36%
A99: 89 | B99: Metals | C99: HINDCOPPER | D99: 2022-03-31 | E99: 105.60 | F99: 108.30 | G99: 102.30 | H99: 99.00 | I99: 93.00 | J99: 111.60 | K99: 117.60 | L99: 120.90 | M99: 114.3 | N99: 105 | O99: 14374900 | P99: -11.61%
A100: 90 | B100: Oil_Gas | C100: HINDPETRO | D100: 2022-03-31 | E100: 269.75 | F100: 274.38 | G100: 263.97 | H100: 258.18 | I100: 247.77 | J100: 280.17 | K100: 290.58 | L100: 296.37 | M100: 284.8 | N100: 268.6 | O100: 8561700 | P100: -33.59%
A101: 91 | B101: FMCG | C101: HINDUNILVR | D101: 2022-03-31 | E101: 2177.45 | F101: 2198.70 | G101: 2149.75 | H101: 2122.05 | I101: 2073.10 | J101: 2226.40 | K101: 2275.35 | L101: 2303.05 | M101: 2247.65 | N101: 2171 | O101: 9917100 | P101: 0.81%
A102: 92 | B102: Others | C102: HONAUT | D102: 2022-03-31 | E102: 39134.95 | F102: 39366.32 | G102: 38503.13 | H102: 37871.32 | I102: 37008.13 | J102: 39998.13 | K102: 40861.32 | L102: 41493.13 | M102: 40229.5 | N102: 38734.5 | O102: 7650 | P102: -26.72%
A103: 93 | B103: Finance | C103: IBULHSGFIN | D103: 2022-03-31 | E103: 148.75 | F103: 146.92 | G103: 137.38 | H103: 126.02 | I103: 116.48 | J103: 158.28 | K103: 167.82 | L103: 179.18 | M103: 156.45 | N103: 135.55 | O103: 28222400 | P103: -29.09%
A104: 94 | B104: Banking | C104: ICICIBANK | D104: 2022-03-31 | E104: 708.10 | F104: 714.32 | G104: 697.53 | H104: 686.97 | I104: 670.18 | J104: 724.88 | K104: 741.67 | L104: 752.23 | M104: 731.1 | N104: 703.75 | O104: 97784500 | P104: 3.25%
A105: 95 | B105: Finance | C105: ICICIGI | D105: 2022-03-31 | E105: 1238.75 | F105: 1248.78 | G105: 1220.57 | H105: 1202.38 | I105: 1174.17 | J105: 1266.97 | K105: 1295.18 | L105: 1313.37 | M105: 1277 | N105: 1230.6 | O105: 2804150 | P105: -9.83%
A106: 96 | B106: Finance | C106: ICICIPRULI | D106: 2022-03-31 | E106: 467.95 | F106: 473.38 | G106: 460.57 | H106: 453.18 | I106: 440.37 | J106: 480.77 | K106: 493.58 | L106: 500.97 | M106: 486.2 | N106: 466 | O106: 7344750 | P106: -2.43%
A107: 97 | B107: Telecom | C107: IDEA | D107: 2022-03-31 | E107: 9.75 | F107: 10.03 | G107: 9.27 | H107: 8.78 | I107: 8.02 | J107: 10.52 | K107: 11.28 | L107: 11.77 | M107: 10.8 | N107: 9.55 | O107: 686560000 | P107: -33.45%
A108: 98 | B108: Finance | C108: IDFC | D108: 2022-03-31 | E108: 52.05 | F108: 53.12 | G108: 50.48 | H108: 48.92 | I108: 46.28 | J108: 54.68 | K108: 57.32 | L108: 58.88 | M108: 55.75 | N108: 51.55 | O108: 84700000 | P108: -8.86%
A109: 99 | B109: Banking | C109: IDFCFIRSTB | D109: 2022-03-31 | E109: 38.70 | F109: 39.75 | G109: 36.90 | H109: 35.10 | I109: 32.25 | J109: 41.55 | K109: 44.40 | L109: 46.20 | M109: 42.6 | N109: 37.95 | O109: 145465500 | P109: -14.02%
A110: 100 | B110: Others | C110: IEX | D110: 2022-03-31 | E110: 193.75 | F110: 196.82 | G110: 189.38 | H110: 185.02 | I110: 177.58 | J110: 201.18 | K110: 208.62 | L110: 212.98 | M110: 204.25 | N110: 192.45 | O110: 47298750 | P110: -16.28%
A111: 101 | B111: Oil_Gas | C111: IGL | D111: 2022-03-31 | E111: 332.75 | F111: 339.63 | G111: 324.27 | H111: 315.78 | I111: 300.42 | J111: 348.12 | K111: 363.48 | L111: 371.97 | M111: 355 | N111: 331.15 | O111: 18114250 | P111: -9.21%
A112: 102 | B112: Infrastructure | C112: INDHOTEL | D112: 2022-03-31 | E112: 194.10 | F112: 195.42 | G112: 190.18 | H112: 186.27 | I112: 181.03 | J112: 199.33 | K112: 204.57 | L112: 208.48 | M112: 200.65 | N112: 191.5 | O112: 16136264 | P112: -17.82%
A113: 103 | B113: Cement | C113: INDIACEM | D113: 2022-03-31 | E113: 187.30 | F113: 189.63 | G113: 175.67 | H113: 164.03 | I113: 150.07 | J113: 201.27 | K113: 215.23 | L113: 226.87 | M113: 203.6 | N113: 178 | O113: 11930600 | P113: -12.15%
A114: 104 | B114: Others | C114: INDIAMART | D114: 2022-03-31 | E114: 4346.00 | F114: 4375.67 | G114: 4248.58 | H114: 4151.17 | I114: 4024.08 | J114: 4473.08 | K114: 4600.17 | L114: 4697.58 | M114: 4502.75 | N114: 4278.25 | O114: 323625 | P114: -31.46%
A115: 105 | B115: Others | C115: INDIGO | D115: 2022-03-31 | E115: 1830.00 | F115: 1877.07 | G115: 1768.13 | H115: 1706.27 | I115: 1597.33 | J115: 1938.93 | K115: 2047.87 | L115: 2109.73 | M115: 1986 | N115: 1815.2 | O115: 3197500 | P115: -1.07%
A116: 106 | B116: Banking | C116: INDUSINDBK | D116: 2022-03-31 | E116: 876.70 | F116: 893.52 | G116: 853.08 | H116: 829.47 | I116: 789.03 | J116: 917.13 | K116: 957.57 | L116: 981.18 | M116: 933.95 | N116: 869.9 | O116: 24858000 | P116: -0.05%
A117: 107 | B117: Telecom | C117: INDUSTOWER | D117: 2022-03-31 | E117: 197.80 | F117: 207.88 | G117: 185.92 | H117: 174.03 | I117: 152.07 | J117: 219.77 | K117: 241.73 | L117: 253.62 | M117: 229.85 | N117: 196 | O117: 20846000 | P117: 93.88%
A118: 108 | B118: Technology | C118: INFY | D118: 2022-03-31 | E118: 1679.80 | F118: 1690.03 | G118: 1662.27 | H118: 1644.73 | I118: 1616.97 | J118: 1707.57 | K118: 1735.33 | L118: 1752.87 | M118: 1717.8 | N118: 1672.5 | O118: 39786600 | P118: -0.82%
A119: 109 | B119: Oil_Gas | C119: IOC | D119: 2022-03-31 | E119: 108.70 | F119: 110.43 | G119: 105.87 | H119: 103.03 | I119: 98.47 | J119: 113.27 | K119: 117.83 | L119: 120.67 | M119: 115 | N119: 107.6 | O119: 32428500 | P119: -28.30%
A120: 110 | B120: Pharma | C120: IPCALAB | D120: 2022-03-31 | E120: 936.50 | F120: 936.87 | G120: 918.33 | H120: 900.17 | I120: 881.63 | J120: 955.03 | K120: 973.57 | L120: 991.73 | M120: 955.4 | N120: 918.7 | O120: 909450 | P120: -23.76%
A121: 111 | B121: Others | C121: IRCTC | D121: 2022-03-31 | E121: 737.65 | F121: 755.45 | G121: 715.15 | H121: 692.65 | I121: 652.35 | J121: 777.95 | K121: 818.25 | L121: 840.75 | M121: 795.75 | N121: 732.95 | O121: 9595250 | P121: -2.30%
A122: 112 | B122: FMCG | C122: ITC | D122: 2022-03-31 | E122: 208.20 | F122: 209.75 | G122: 205.50 | H122: 202.80 | I122: 198.55 | J122: 212.45 | K122: 216.70 | L122: 219.40 | M122: 214 | N122: 207.05 | O122: 170870400 | P122: -5.15%
A123: 113 | B123: Metals | C123: JINDALSTEL | D123: 2022-03-31 | E123: 370.45 | F123: 378.35 | G123: 360.40 | H123: 350.35 | I123: 332.40 | J123: 388.40 | K123: 406.35 | L123: 416.40 | M123: 396.3 | N123: 368.3 | O123: 28972500 | P123: -6.53%
A124: 114 | B124: Cement | C124: JKCEMENT | D124: 2022-03-31 | E124: 2749.70 | F124: 2772.05 | G124: 2698.65 | H124: 2647.60 | I124: 2574.20 | J124: 2823.10 | K124: 2896.50 | L124: 2947.55 | M124: 2845.45 | N124: 2721 | O124: 239400 | P124: -12.81%
A125: 115 | B125: Metals | C125: JSWSTEEL | D125: 2022-03-31 | E125: 571.40 | F125: 581.83 | G125: 557.52 | H125: 543.63 | I125: 519.32 | J125: 595.72 | K125: 620.03 | L125: 633.92 | M125: 606.15 | N125: 567.95 | O125: 38272500 | P125: -3.65%
A126: 116 | B126: Others | C126: JUBLFOOD | D126: 2022-03-31 | E126: 2884.95 | F126: 2898.77 | G126: 2840.23 | H126: 2795.52 | I126: 2736.98 | J126: 2943.48 | K126: 3002.02 | L126: 3046.73 | M126: 2957.3 | N126: 2854.05 | O126: 2377250 | P126: -8.44%
A127: 117 | B127: Banking | C127: KOTAKBANK | D127: 2022-03-31 | E127: 1787.15 | F127: 1811.87 | G127: 1748.73 | H127: 1710.32 | I127: 1647.18 | J127: 1850.28 | K127: 1913.42 | L127: 1951.83 | M127: 1875 | N127: 1773.45 | O127: 13082800 | P127: -9.68%
A128: 118 | B128: Finance | C128: L&TFH | D128: 2022-03-31 | E128: 62.30 | F128: 64.02 | G128: 59.93 | H128: 57.57 | I128: 53.48 | J128: 66.38 | K128: 70.47 | L128: 72.83 | M128: 68.1 | N128: 61.65 | O128: 65662792 | P128: -12.76%
A129: 119 | B129: Others | C129: LALPATHLAB | D129: 2022-03-31 | E129: 2491.55 | F129: 2496.33 | G129: 2440.12 | H129: 2388.68 | I129: 2332.47 | J129: 2547.77 | K129: 2603.98 | L129: 2655.42 | M129: 2552.55 | N129: 2444.9 | O129: 823250 | P129: -4.85%
A130: 120 | B130: Pharma | C130: LAURUSLABS | D130: 2022-03-31 | E130: 502.60 | F130: 508.68 | G130: 492.92 | H130: 483.23 | I130: 467.47 | J130: 518.37 | K130: 534.13 | L130: 543.82 | M130: 524.45 | N130: 499 | O130: 5522400 | P130: -17.05%
A131: 121 | B131: Finance | C131: LICHSGFIN | D131: 2022-03-31 | E131: 331.00 | F131: 338.55 | G131: 321.40 | H131: 311.80 | I131: 294.65 | J131: 348.15 | K131: 365.30 | L131: 374.90 | M131: 355.7 | N131: 328.95 | O131: 20498000 | P131: -4.62%
A132: 122 | B132: Capital_Goods | C132: LT | D132: 2022-03-31 | E132: 1759.65 | F132: 1772.18 | G132: 1739.47 | H132: 1719.28 | I132: 1686.57 | J132: 1792.37 | K132: 1825.08 | L132: 1845.27 | M132: 1804.9 | N132: 1752 | O132: 12697725 | P132: -11.37%
A133: 123 | B133: Technology | C133: LTI | D133: 2022-03-31 | E133: 5607.60 | F133: 5663.77 | G133: 5529.33 | H133: 5451.07 | I133: 5316.63 | J133: 5742.03 | K133: 5876.47 | L133: 5954.73 | M133: 5798.2 | N133: 5585.5 | O133: 952050 | P133: -16.33%
A134: 124 | B134: Technology | C134: LTTS | D134: 2022-03-31 | E134: 4250.20 | F134: 4259.13 | G134: 4189.82 | H134: 4129.43 | I134: 4060.12 | J134: 4319.52 | K134: 4388.83 | L134: 4449.22 | M134: 4328.45 | N134: 4198.75 | O134: 636200 | P134: -14.65%
A135: 125 | B135: Pharma | C135: LUPIN | D135: 2022-03-31 | E135: 713.20 | F135: 722.78 | G135: 701.42 | H135: 689.63 | I135: 668.27 | J135: 734.57 | K135: 755.93 | L135: 767.72 | M135: 744.15 | N135: 711 | O135: 8954750 | P135: -12.49%
A136: 126 | B136: Automobile | C136: M&M | D136: 2022-03-31 | E136: 797.25 | F136: 808.35 | G136: 781.90 | H136: 766.55 | I136: 740.10 | J136: 823.70 | K136: 850.15 | L136: 865.50 | M136: 834.8 | N136: 793 | O136: 14083300 | P136: 2.55%
A137: 127 | B137: Finance | C137: M&MFIN | D137: 2022-03-31 | E137: 139.90 | F137: 143.07 | G137: 135.83 | H137: 131.77 | I137: 124.53 | J137: 147.13 | K137: 154.37 | L137: 158.43 | M137: 150.3 | N137: 139 | O137: 30516000 | P137: -9.74%
A138: 128 | B138: Finance | C138: MANAPPURAM | D138: 2022-03-31 | E138: 109.90 | F138: 112.22 | G138: 106.88 | H138: 103.87 | I138: 98.53 | J138: 115.23 | K138: 120.57 | L138: 123.58 | M138: 117.55 | N138: 109.2 | O138: 25548000 | P138: -15.30%
A139: 129 | B139: FMCG | C139: MARICO | D139: 2022-03-31 | E139: 484.85 | F139: 488.05 | G139: 479.00 | H139: 473.15 | I139: 464.10 | J139: 493.90 | K139: 502.95 | L139: 508.80 | M139: 497.1 | N139: 482.2 | O139: 8722000 | P139: -0.81%
A140: 130 | B140: Automobile | C140: MARUTI | D140: 2022-03-31 | E140: 8224.30 | F140: 8327.03 | G140: 8084.52 | H140: 7944.73 | I140: 7702.22 | J140: 8466.82 | K140: 8709.33 | L140: 8849.12 | M140: 8569.55 | N140: 8187.25 | O140: 2476900 | P140: -9.46%
A141: 131 | B141: FMCG | C141: MCDOWELL-N | D141: 2022-03-31 | E141: 843.75 | F141: 845.15 | G141: 830.60 | H141: 817.45 | I141: 802.90 | J141: 858.30 | K141: 872.85 | L141: 886.00 | M141: 859.7 | N141: 832 | O141: 14942500 | P141: -6.43%
A142: 132 | B142: Others | C142: MCX | D142: 2022-03-31 | E142: 1181.90 | F142: 1201.07 | G142: 1151.08 | H142: 1120.27 | I142: 1070.28 | J142: 1231.88 | K142: 1281.87 | L142: 1312.68 | M142: 1251.05 | N142: 1170.25 | O142: 1974000 | P142: -9.59%
A143: 133 | B143: Pharma | C143: METROPOLIS | D143: 2022-03-31 | E143: 1990.00 | F143: 2006.65 | G143: 1942.60 | H143: 1895.20 | I143: 1831.15 | J143: 2054.05 | K143: 2118.10 | L143: 2165.50 | M143: 2070.7 | N143: 1959.25 | O143: 625600 | P143: -27.49%
A144: 134 | B144: Finance | C144: MFSL | D144: 2022-03-31 | E144: 803.25 | F144: 806.63 | G144: 794.02 | H144: 784.78 | I144: 772.17 | J144: 815.87 | K144: 828.48 | L144: 837.72 | M144: 819.25 | N144: 797.4 | O144: 1418950 | P144: -12.01%
A145: 135 | B145: Oil_Gas | C145: MGL | D145: 2022-03-31 | E145: 681.45 | F145: 700.52 | G145: 660.03 | H145: 638.62 | I145: 598.13 | J145: 721.93 | K145: 762.42 | L145: 783.83 | M145: 741 | N145: 679.1 | O145: 3763800 | P145: -12.16%
A146: 136 | B146: Technology | C146: MINDTREE | D146: 2022-03-31 | E146: 3577.80 | F146: 3617.03 | G146: 3514.97 | H146: 3452.13 | I146: 3350.07 | J146: 3679.87 | K146: 3781.93 | L146: 3844.77 | M146: 3719.1 | N146: 3554.2 | O146: 2743800 | P146: -4.87%
A147: 137 | B147: Automobile | C147: MOTHERSUMI | D147: 2022-03-31 | E147: 144.70 | F147: 146.60 | G147: 142.05 | H147: 139.40 | I147: 134.85 | J147: 149.25 | K147: 153.80 | L147: 156.45 | M147: 151.15 | N147: 143.95 | O147: 22270500 | P147: -6.69%
A148: 138 | B148: Technology | C148: MPHASIS | D148: 2022-03-31 | E148: 2955.45 | F148: 2990.75 | G148: 2904.70 | H148: 2853.95 | I148: 2767.90 | J148: 3041.50 | K148: 3127.55 | L148: 3178.30 | M148: 3076.8 | N148: 2940 | O148: 1553825 | P148: -5.94%
A149: 139 | B149: Automobile | C149: MRF | D149: 2022-03-31 | E149: 63038.95 | F149: 63576.78 | G149: 61991.07 | H149: 60943.18 | I149: 59357.47 | J149: 64624.67 | K149: 66210.38 | L149: 67258.27 | M149: 65162.5 | N149: 62528.9 | O149: 65450 | P149: -9.29%
A150: 140 | B150: Finance | C150: MUTHOOTFIN | D150: 2022-03-31 | E150: 1303.60 | F150: 1309.50 | G150: 1277.50 | H150: 1251.40 | I150: 1219.40 | J150: 1335.60 | K150: 1367.60 | L150: 1393.70 | M150: 1341.5 | N150: 1283.4 | O150: 2724375 | P150: -28.71%
A151: 141 | B151: Others | C151: NAM-INDIA | D151: 2022-03-31 | E151: 298.90 | F151: 301.00 | G151: 292.20 | H151: 285.50 | I151: 276.70 | J151: 307.70 | K151: 316.50 | L151: 323.20 | M151: 309.8 | N151: 294.3 | O151: 2419200 | P151: -18.14%
A152: 142 | B152: Metals | C152: NATIONALUM | D152: 2022-03-31 | E152: 112.00 | F152: 113.52 | G152: 108.48 | H152: 104.97 | I152: 99.93 | J152: 117.03 | K152: 122.07 | L152: 125.58 | M152: 118.55 | N152: 110 | O152: 89471000 | P152: -9.01%
A153: 143 | B153: Others | C153: NAUKRI | D153: 2022-03-31 | E153: 4282.15 | F153: 4302.25 | G153: 4225.20 | H153: 4168.25 | I153: 4091.20 | J153: 4359.20 | K153: 4436.25 | L153: 4493.20 | M153: 4379.3 | N153: 4245.3 | O153: 1661500 | P153: -12.55%
A154: 144 | B154: Chemical | C154: NAVINFLUOR | D154: 2022-03-31 | E154: 3652.40 | F154: 3672.53 | G154: 3570.07 | H154: 3487.73 | I154: 3385.27 | J154: 3754.87 | K154: 3857.33 | L154: 3939.67 | M154: 3775 | N154: 3590.2 | O154: 398025 | P154: -11.77%
A155: 145 | B155: Others | C155: NBCC | D155: 2022-03-31 | E155: 34.35 | F155: 35.45 | G155: 32.70 | H155: 31.05 | I155: 28.30 | J155: 37.10 | K155: 39.85 | L155: 41.50 | M155: 38.2 | N155: 33.8 | O155: 24060000 | P155: -14.86%
A156: 146 | B156: FMCG | C156: NESTLEIND | D156: 2022-03-31 | E156: 17761.55 | F156: 17794.55 | G156: 17562.60 | H156: 17363.65 | I156: 17131.70 | J156: 17993.50 | K156: 18225.45 | L156: 18424.40 | M156: 18026.5 | N156: 17595.6 | O156: 321050 | P156: -4.65%
A157: 147 | B157: Metals | C157: NMDC | D157: 2022-03-31 | E157: 134.50 | F157: 136.48 | G157: 131.92 | H157: 129.33 | I157: 124.77 | J157: 139.07 | K157: 143.63 | L157: 146.22 | M157: 141.05 | N157: 133.9 | O157: 73639700 | P157: -21.98%
A158: 148 | B158: Power | C158: NTPC | D158: 2022-03-31 | E158: 124.15 | F158: 125.52 | G158: 122.28 | H158: 120.42 | I158: 117.18 | J158: 127.38 | K158: 130.62 | L158: 132.48 | M158: 128.75 | N158: 123.65 | O158: 36069600 | P158: -28.49%
A159: 149 | B159: Realty | C159: OBEROIRLTY | D159: 2022-03-31 | E159: 859.70 | F159: 875.75 | G159: 834.50 | H159: 809.30 | I159: 768.05 | J159: 900.95 | K159: 942.20 | L159: 967.40 | M159: 917 | N159: 850.55 | O159: 2135000 | P159: -8.87%
A160: 150 | B160: Technology | C160: OFSS | D160: 2022-03-31 | E160: 3326.55 | F160: 3358.88 | G160: 3272.17 | H160: 3217.78 | I160: 3131.07 | J160: 3413.27 | K160: 3499.98 | L160: 3554.37 | M160: 3445.6 | N160: 3304.5 | O160: 585375 | P160: -6.60%
A161: 151 | B161: Oil_Gas | C161: ONGC | D161: 2022-03-31 | E161: 156.50 | F161: 158.23 | G161: 154.17 | H161: 151.83 | I161: 147.77 | J161: 160.57 | K161: 164.63 | L161: 166.97 | M161: 162.3 | N161: 155.9 | O161: 31493000 | P161: -13.91%
A162: 152 | B162: Textile | C162: PAGEIND | D162: 2022-03-31 | E162: 40152.00 | F162: 40317.78 | G162: 39626.57 | H162: 39101.13 | I162: 38409.92 | J162: 40843.22 | K162: 41534.43 | L162: 42059.87 | M162: 41009 | N162: 39792.35 | O162: 89610 | P162: -11.71%
A163: 153 | B163: Pharma | C163: PEL | D163: 2022-03-31 | E163: 1950.00 | F163: 1970.35 | G163: 1875.90 | H163: 1801.80 | I163: 1707.35 | J163: 2044.45 | K163: 2138.90 | L163: 2213.00 | M163: 2064.8 | N163: 1896.25 | O163: 4250675 | P163: -2.10%
A164: 154 | B164: Technology | C164: PERSISTENT | D164: 2022-03-31 | E164: 3786.25 | F164: 3817.72 | G164: 3713.88 | H164: 3641.52 | I164: 3537.68 | J164: 3890.08 | K164: 3993.92 | L164: 4066.28 | M164: 3921.55 | N164: 3745.35 | O164: 382200 | P164: 1.51%
A165: 155 | B165: Oil_Gas | C165: PETRONET | D165: 2022-03-31 | E165: 191.50 | F165: 194.88 | G165: 187.07 | H165: 182.63 | I165: 174.82 | J165: 199.32 | K165: 207.13 | L165: 211.57 | M165: 202.7 | N165: 190.45 | O165: 17916000 | P165: -8.50%
A166: 156 | B166: Finance | C166: PFC | D166: 2022-03-31 | E166: 105.45 | F166: 107.77 | G166: 102.68 | H166: 99.92 | I166: 94.83 | J166: 110.53 | K166: 115.62 | L166: 118.38 | M166: 112.85 | N166: 105 | O166: 41471800 | P166: -10.00%
A167: 157 | B167: Pharma | C167: PFIZER | D167: 2022-03-31 | E167: 4217.50 | F167: 4226.25 | G167: 4181.80 | H167: 4146.10 | I167: 4101.65 | J167: 4261.95 | K167: 4306.40 | L167: 4342.10 | M167: 4270.7 | N167: 4190.55 | O167: 123875 | P167: -22.94%
A168: 158 | B168: FMCG | C168: PIDILITIND | D168: 2022-03-31 | E168: 2307.65 | F168: 2325.72 | G168: 2263.73 | H168: 2219.82 | I168: 2157.83 | J168: 2369.63 | K168: 2431.62 | L168: 2475.53 | M168: 2387.7 | N168: 2281.8 | O168: 2946500 | P168: 0.06%
A169: 159 | B169: Chemical | C169: PIIND | D169: 2022-03-31 | E169: 2395.45 | F169: 2424.55 | G169: 2349.15 | H169: 2302.85 | I169: 2227.45 | J169: 2470.85 | K169: 2546.25 | L169: 2592.55 | M169: 2499.95 | N169: 2378.25 | O169: 1867250 | P169: -0.49%
A170: 160 | B170: Banking | C170: PNB | D170: 2022-03-31 | E170: 32.25 | F170: 33.63 | G170: 30.62 | H170: 28.98 | I170: 25.97 | J170: 35.27 | K170: 38.28 | L170: 39.92 | M170: 36.65 | N170: 32 | O170: 119216000 | P170: -53.33%
A171: 161 | B171: Others | C171: POLYCAB | D171: 2022-03-31 | E171: 2274.55 | F171: 2297.25 | G171: 2231.25 | H171: 2187.95 | I171: 2121.95 | J171: 2340.55 | K171: 2406.55 | L171: 2449.85 | M171: 2363.25 | N171: 2253.95 | O171: 710100 | P171: -10.20%
A172: 162 | B172: Power | C172: POWERGRID | D172: 2022-03-31 | E172: 191.15 | F172: 192.68 | G172: 188.82 | H172: 186.48 | I172: 182.62 | J172: 195.02 | K172: 198.88 | L172: 201.22 | M172: 196.55 | N172: 190.35 | O172: 25902381 | P172: -22.88%
A173: 163 | B173: Media | C173: PVR | D173: 2022-03-31 | E173: 1519.05 | F173: 1533.07 | G173: 1494.43 | H173: 1469.82 | I173: 1431.18 | J173: 1557.68 | K173: 1596.32 | L173: 1620.93 | M173: 1571.7 | N173: 1508.45 | O173: 2281235 | P173: -11.05%
A174: 164 | B174: Others | C174: RAIN | D174: 2022-03-31 | E174: 182.80 | F174: 190.05 | G174: 174.45 | H174: 166.10 | I174: 150.50 | J174: 198.40 | K174: 214.00 | L174: 222.35 | M174: 205.65 | N174: 181.7 | O174: 5935000 | P174: -20.58%
A175: 165 | B175: Cement | C175: RAMCOCEM | D175: 2022-03-31 | E175: 765.65 | F175: 772.95 | G175: 753.85 | H175: 742.05 | I175: 722.95 | J175: 784.75 | K175: 803.85 | L175: 815.65 | M175: 792.05 | N175: 761.15 | O175: 1383800 | P175: -17.28%
A176: 166 | B176: Banking | C176: RBLBANK | D176: 2022-03-31 | E176: 122.75 | F176: 126.75 | G176: 117.30 | H176: 111.85 | I176: 102.40 | J176: 132.20 | K176: 141.65 | L176: 147.10 | M176: 136.2 | N176: 121.3 | O176: 38198800 | P176: -4.30%
A177: 167 | B177: Power | C177: RECLTD | D177: 2022-03-31 | E177: 117.00 | F177: 118.90 | G177: 114.70 | H177: 112.40 | I177: 108.20 | J177: 121.20 | K177: 125.40 | L177: 127.70 | M177: 123.1 | N177: 116.6 | O177: 30408000 | P177: -19.16%
A178: 168 | B178: Oil_Gas | C178: RELIANCE | D178: 2022-03-31 | E178: 2261.70 | F178: 2286.47 | G178: 2225.33 | H178: 2188.97 | I178: 2127.83 | J178: 2322.83 | K178: 2383.97 | L178: 2420.33 | M178: 2347.6 | N178: 2250.1 | O178: 31145750 | P178: 3.63%
A179: 169 | B179: Metals | C179: SAIL | D179: 2022-03-31 | E179: 84.85 | F179: 86.85 | G179: 82.30 | H179: 79.75 | I179: 75.20 | J179: 89.40 | K179: 93.95 | L179: 96.50 | M179: 91.4 | N179: 84.3 | O179: 150641500 | P179: -7.33%
A180: 170 | B180: Banking | C180: SBICARD | D180: 2022-03-31 | E180: 753.25 | F180: 764.10 | G180: 737.90 | H180: 722.55 | I180: 696.35 | J180: 779.45 | K180: 805.65 | L180: 821.00 | M180: 790.3 | N180: 748.75 | O180: 5249500 | P180: -6.72%
A181: 171 | B181: Finance | C181: SBILIFE | D181: 2022-03-31 | E181: 1055.50 | F181: 1049.67 | G181: 1007.03 | H181: 958.57 | I181: 915.93 | J181: 1098.13 | K181: 1140.77 | L181: 1189.23 | M181: 1092.3 | N181: 1001.2 | O181: 7794750 | P181: 6.91%
A182: 172 | B182: Banking | C182: SBIN | D182: 2022-03-31 | E182: 471.80 | F182: 476.02 | G182: 463.73 | H182: 455.67 | I182: 443.38 | J182: 484.08 | K182: 496.37 | L182: 504.43 | M182: 488.3 | N182: 467.95 | O182: 71536500 | P182: -12.45%
A183: 173 | B183: Cement | C183: SHREECEM | D183: 2022-03-31 | E183: 23086.25 | F183: 23428.70 | G183: 22557.50 | H183: 22028.75 | I183: 21157.55 | J183: 23957.45 | K183: 24828.65 | L183: 25357.40 | M183: 24299.9 | N183: 22899.95 | O183: 182700 | P183: -4.06%
A184: 174 | B184: Capital_Goods | C184: SIEMENS | D184: 2022-03-31 | E184: 2291.00 | F184: 2312.28 | G184: 2254.37 | H184: 2217.73 | I184: 2159.82 | J184: 2348.92 | K184: 2406.83 | L184: 2443.47 | M184: 2370.2 | N184: 2275.65 | O184: 1360425 | P184: -4.46%
A185: 175 | B185: Textile | C185: SRF | D185: 2022-03-31 | E185: 2276.15 | F185: 2305.30 | G185: 2235.60 | H185: 2195.05 | I185: 2125.35 | J185: 2345.85 | K185: 2415.55 | L185: 2456.10 | M185: 2375 | N185: 2264.75 | O185: 2656125 | P185: -5.14%
A186: 176 | B186: Finance | C186: SRTRANSFIN | D186: 2022-03-31 | E186: 1066.40 | F186: 1077.18 | G186: 994.97 | H186: 923.53 | I186: 841.32 | J186: 1148.62 | K186: 1230.83 | L186: 1302.27 | M186: 1159.4 | N186: 1005.75 | O186: 3574400 | P186: -1.80%
A187: 177 | B187: Pharma | C187: STAR | D187: 2022-03-31 | E187: 314.30 | F187: 321.10 | G187: 303.45 | H187: 292.60 | I187: 274.95 | J187: 331.95 | K187: 349.60 | L187: 360.45 | M187: 338.75 | N187: 310.25 | O187: 4091400 | P187: -8.66%
A188: 178 | B188: Pharma | C188: SUNPHARMA | D188: 2022-03-31 | E188: 820.75 | F188: 826.07 | G188: 812.68 | H188: 804.62 | I188: 791.23 | J188: 834.13 | K188: 847.52 | L188: 855.58 | M188: 839.45 | N188: 818 | O188: 21898100 | P188: -3.08%
A189: 179 | B189: Media | C189: SUNTV | D189: 2022-03-31 | E189: 428.55 | F189: 437.97 | G189: 417.43 | H189: 406.32 | I189: 385.78 | J189: 449.08 | K189: 469.62 | L189: 480.73 | M189: 458.5 | N189: 426.85 | O189: 12096000 | P189: -6.71%
A190: 180 | B190: Pharma | C190: SYNGENE | D190: 2022-03-31 | E190: 529.30 | F190: 530.88 | G190: 519.67 | H190: 510.03 | I190: 498.82 | J190: 540.52 | K190: 551.73 | L190: 561.37 | M190: 542.1 | N190: 521.25 | O190: 809200 | P190: -20.86%
A191: 181 | B191: Chemical | C191: TATACHEM | D191: 2022-03-31 | E191: 784.70 | F191: 805.47 | G191: 759.93 | H191: 735.17 | I191: 689.63 | J191: 830.23 | K191: 875.77 | L191: 900.53 | M191: 851 | N191: 780.7 | O191: 5929000 | P191: -12.42%
A192: 182 | B192: Telecom | C192: TATACOMM | D192: 2022-03-31 | E192: 1133.55 | F192: 1152.25 | G192: 1109.25 | H192: 1084.95 | I192: 1041.95 | J192: 1176.55 | K192: 1219.55 | L192: 1243.85 | M192: 1195.25 | N192: 1127.95 | O192: 2582400 | P192: -10.71%
A193: 183 | B193: FMCG | C193: TATACONSUM | D193: 2022-03-31 | E193: 679.90 | F193: 691.07 | G193: 664.78 | H193: 649.67 | I193: 623.38 | J193: 706.18 | K193: 732.47 | L193: 747.58 | M193: 717.35 | N193: 675.95 | O193: 11242800 | P193: -0.08%
A194: 184 | B194: Automobile | C194: TATAMOTORS | D194: 2022-03-31 | E194: 427.55 | F194: 437.68 | G194: 413.57 | H194: 399.58 | I194: 375.47 | J194: 451.67 | K194: 475.78 | L194: 489.77 | M194: 461.8 | N194: 423.7 | O194: 71232900 | P194: -14.64%
A195: 185 | B195: Power | C195: TATAPOWER | D195: 2022-03-31 | E195: 204.30 | F195: 207.98 | G195: 199.37 | H195: 194.43 | I195: 185.82 | J195: 212.92 | K195: 221.53 | L195: 226.47 | M195: 216.6 | N195: 203.05 | O195: 110754000 | P195: -7.39%
A196: 186 | B196: Metals | C196: TATASTEEL | D196: 2022-03-31 | E196: 1075.80 | F196: 1088.88 | G196: 1054.02 | H196: 1032.23 | I196: 997.37 | J196: 1110.67 | K196: 1145.53 | L196: 1167.32 | M196: 1123.75 | N196: 1067.1 | O196: 42457925 | P196: -0.36%
A197: 187 | B197: Technology | C197: TCS | D197: 2022-03-31 | E197: 3411.85 | F197: 3440.95 | G197: 3372.90 | H197: 3333.95 | I197: 3265.90 | J197: 3479.90 | K197: 3547.95 | L197: 3586.90 | M197: 3509 | N197: 3402 | O197: 13408200 | P197: -10.34%
A198: 188 | B198: Technology | C198: TECHM | D198: 2022-03-31 | E198: 1333.75 | F198: 1349.80 | G198: 1313.30 | H198: 1292.85 | I198: 1256.35 | J198: 1370.25 | K198: 1406.75 | L198: 1427.20 | M198: 1386.3 | N198: 1329.35 | O198: 15935400 | P198: -3.54%
A199: 189 | B199: FMCG | C199: TITAN | D199: 2022-03-31 | E199: 2409.20 | F199: 2425.75 | G199: 2380.45 | H199: 2351.70 | I199: 2306.40 | J199: 2454.50 | K199: 2499.80 | L199: 2528.55 | M199: 2471.05 | N199: 2397 | O199: 5759250 | P199: 2.01%
A200: 190 | B200: Pharma | C200: TORNTPHARM | D200: 2022-03-31 | E200: 2674.85 | F200: 2697.10 | G200: 2628.80 | H200: 2582.75 | I200: 2514.45 | J200: 2743.15 | K200: 2811.45 | L200: 2857.50 | M200: 2765.4 | N200: 2651.05 | O200: 787000 | P200: -7.74%
A201: 191 | B201: Power | C201: TORNTPOWER | D201: 2022-03-31 | E201: 445.75 | F201: 447.48 | G201: 426.37 | H201: 406.98 | I201: 385.87 | J201: 466.87 | K201: 487.98 | L201: 507.37 | M201: 468.6 | N201: 428.1 | O201: 3436500 | P201: -9.70%
A202: 192 | B202: Others | C202: TRENT | D202: 2022-03-31 | E202: 1021.30 | F202: 1019.32 | G202: 997.08 | H202: 972.87 | I202: 950.63 | J202: 1043.53 | K202: 1065.77 | L202: 1089.98 | M202: 1041.55 | N202: 995.1 | O202: 2421500 | P202: 0.09%
A203: 193 | B203: Automobile | C203: TVSMOTOR | D203: 2022-03-31 | E203: 617.90 | F203: 625.12 | G203: 608.43 | H203: 598.97 | I203: 582.28 | J203: 634.58 | K203: 651.27 | L203: 660.73 | M203: 641.8 | N203: 615.65 | O203: 7130200 | P203: -18.15%
A204: 194 | B204: FMCG | C204: UBL | D204: 2022-03-31 | E204: 1453.55 | F204: 1469.82 | G204: 1433.03 | H204: 1412.52 | I204: 1375.73 | J204: 1490.33 | K204: 1527.12 | L204: 1547.63 | M204: 1506.6 | N204: 1449.3 | O204: 829500 | P204: -14.04%
A205: 195 | B205: Cement | C205: ULTRACEMCO | D205: 2022-03-31 | E205: 6435.00 | F205: 6516.62 | G205: 6333.38 | H205: 6231.77 | I205: 6048.53 | J205: 6618.23 | K205: 6801.47 | L205: 6903.08 | M205: 6699.85 | N205: 6415 | O205: 1960200 | P205: -1.80%
A206: 196 | B206: Chemical | C206: UPL | D206: 2022-03-31 | E206: 632.65 | F206: 644.45 | G206: 610.90 | H206: 589.15 | I206: 555.60 | J206: 666.20 | K206: 699.75 | L206: 721.50 | M206: 678 | N206: 622.7 | O206: 28801500 | P206: -1.76%
... 20 more rows

Sheet Cash Intra
M5: Back to Main Page
A6: FOR INTRA DAY TRADING | K6: =Main!B10 -> 2022-02-25
A8: Sr.no | C8: CLOSE RATE | D8: Pivot Point | E8: Supports | H8: Resistances
E9: S1 | F9: S2 | G9: S3 | H9: R1 | I9: R2 | J9: R3 | K9: HIGH | L9: LOW | M9: Total Trade Quanity in Lakhs
A10: 1 | B10: Nifty 50 | C10: 16247.95 | D10: 16385.48 | E10: 16065.72 | F10: 15883.48 | G10: 15563.72 | H10: 16567.72 | I10: 16887.48 | J10: 17069.72 | K10: 16705.25 | L10: 16203.25
A11: 2 | B11: Nifty Bank | C11: 35228.1 | D11: 35642.87 | E11: 34576.58 | F11: 33925.07 | G11: 32858.78 | H11: 36294.38 | I11: 37360.67 | J11: 38012.18 | K11: 36709.15 | L11: 34991.35
A12: 3 | B12: Nifty CPSE | C12: 2248.4 | D12: 2270.02 | E12: 2219.83 | F12: 2191.27 | G12: 2141.08 | H12: 2298.58 | I12: 2348.77 | J12: 2377.33 | K12: 2320.2 | L12: 2241.45
A13: 4 | B13: Nifty Infra | C13: 4581.65 | D13: 4631.63 | E13: 4520.62 | F13: 4459.58 | G13: 4348.57 | H13: 4692.67 | I13: 4803.68 | J13: 4864.72 | K13: 4742.65 | L13: 4570.6
A14: 5 | B14: Nifty IT | C14: 32547.9 | D14: 32794.13 | E14: 32192.02 | F14: 31836.13 | G14: 31234.02 | H14: 33150.02 | I14: 33752.13 | J14: 34108.02 | K14: 33396.25 | L14: 32438.25
A15: 6 | B15: Nifty PSE | C15: 3692.35 | D15: 3736.18 | E15: 3638.17 | F15: 3583.98 | G15: 3485.97 | H15: 3790.37 | I15: 3888.38 | J15: 3942.57 | K15: 3834.2 | L15: 3682
A16: 7 | B16: Nifty Midcap 50 | C16: 7407.65 | D16: 7505.98 | E16: 7296.52 | F16: 7185.38 | G16: 6975.92 | H16: 7617.12 | I16: 7826.58 | J16: 7937.72 | K16: 7715.45 | L16: 7394.85
A17: 8 | B17: ACC | C17: 2014 | D17: 2045.55 | E17: 1970.45 | F17: 1926.90 | G17: 1851.80 | H17: 2089.10 | I17: 2164.20 | J17: 2207.75 | K17: 2120.65 | L17: 2002 | M17: 4.74202
A18: 9 | B18: AUBANK | C18: 1179.55 | D18: 1203.15 | E18: 1141.40 | F18: 1103.25 | G18: 1041.50 | H18: 1241.30 | I18: 1303.05 | J18: 1341.20 | K18: 1264.9 | L18: 1165 | M18: 13.08463
A19: 10 | B19: AARTIIND | C19: 865.85 | D19: 877.95 | E19: 848.90 | F19: 831.95 | G19: 802.90 | H19: 894.90 | I19: 923.95 | J19: 940.90 | K19: 907 | L19: 861 | M19: 12.6602
A20: 11 | B20: ADANIENT | C20: 1543.95 | D20: 1573.78 | E20: 1498.97 | F20: 1453.98 | G20: 1379.17 | H20: 1618.77 | I20: 1693.58 | J20: 1738.57 | K20: 1648.6 | L20: 1528.8 | M20: 27.98065
A21: 12 | B21: ADANIGREEN | C21: 1849.75 | D21: 1857.92 | E21: 1791.83 | F21: 1733.92 | G21: 1667.83 | H21: 1915.83 | I21: 1981.92 | J21: 2039.83 | K21: 1924 | L21: 1800 | M21: 10.36033
A22: 13 | B22: ADANIPORTS | C22: 654.85 | D22: 664.93 | E22: 641.87 | F22: 628.88 | G22: 605.82 | H22: 677.92 | I22: 700.98 | J22: 713.97 | K22: 688 | L22: 651.95 | M22: 95.47717
A23: 14 | B23: ATGL | C23: 1565.05 | D23: 1579.77 | E23: 1545.03 | F23: 1525.02 | G23: 1490.28 | H23: 1599.78 | I23: 1634.52 | J23: 1654.53 | K23: 1614.5 | L23: 1559.75 | M23: 1.3353
A24: 15 | B24: ADANITRANS | C24: 1957.3 | D24: 1989.18 | E24: 1925.27 | F24: 1893.23 | G24: 1829.32 | H24: 2021.22 | I24: 2085.13 | J24: 2117.17 | K24: 2053.1 | L24: 1957.15 | M24: 1.38084
A25: 16 | B25: ABCAPITAL | C25: 99.3 | D25: 101.65 | E25: 96.20 | F25: 93.10 | G25: 87.65 | H25: 104.75 | I25: 110.20 | J25: 113.30 | K25: 107.1 | L25: 98.55 | M25: 73.84232
A26: 17 | B26: ABFRL | C26: 250.8 | D26: 256.17 | E26: 244.63 | F26: 238.47 | G26: 226.93 | H26: 262.33 | I26: 273.87 | J26: 280.03 | K26: 267.7 | L26: 250 | M26: 56.3343
A27: 18 | B27: AJANTPHARM | C27: 1746.65 | D27: 1766.92 | E27: 1683.83 | F27: 1621.02 | G27: 1537.93 | H27: 1829.73 | I27: 1912.82 | J27: 1975.63 | K27: 1850 | L27: 1704.1 | M27: 0.66509
A28: 19 | B28: APLLTD | C28: 702.45 | D28: 706.05 | E28: 688.90 | F28: 675.35 | G28: 658.20 | H28: 719.60 | I28: 736.75 | J28: 750.30 | K28: 723.2 | L28: 692.5 | M28: 4.09814
A29: 20 | B29: ALKEM | C29: 3171.45 | D29: 3186.82 | E29: 3119.63 | F29: 3067.82 | G29: 3000.63 | H29: 3238.63 | I29: 3305.82 | J29: 3357.63 | K29: 3254 | L29: 3135 | M29: 0.49307
A30: 21 | B30: AMARAJABAT | C30: 523.7 | D30: 539.05 | E30: 504.65 | F30: 485.60 | G30: 451.20 | H30: 558.10 | I30: 592.50 | J30: 611.55 | K30: 573.45 | L30: 520 | M30: 33.15136
A31: 22 | B31: AMBUJACEM | C31: 306.95 | D31: 310.45 | E31: 298.55 | F31: 290.15 | G31: 278.25 | H31: 318.85 | I31: 330.75 | J31: 339.15 | K31: 322.35 | L31: 302.05 | M31: 128.21969
A32: 23 | B32: APOLLOHOSP | C32: 4381.95 | D32: 4422.67 | E32: 4310.33 | F32: 4238.72 | G32: 4126.38 | H32: 4494.28 | I32: 4606.62 | J32: 4678.23 | K32: 4535 | L32: 4351.05 | M32: 8.1471
A33: 24 | B33: APOLLOTYRE | C33: 178.5 | D33: 183.82 | E33: 171.13 | F33: 163.77 | G33: 151.08 | H33: 191.18 | I33: 203.87 | J33: 211.23 | K33: 196.5 | L33: 176.45 | M33: 95.53612
A34: 25 | B34: ASHOKLEY | C34: 113.65 | D34: 116.15 | E34: 110.30 | F34: 106.95 | G34: 101.10 | H34: 119.50 | I34: 125.35 | J34: 128.70 | K34: 122 | L34: 112.8 | M34: 340.31871
A35: 26 | B35: ASIANPAINT | C35: 3069.05 | D35: 3106.12 | E35: 3014.43 | F35: 2959.82 | G35: 2868.13 | H35: 3160.73 | I35: 3252.42 | J35: 3307.03 | K35: 3197.8 | L35: 3051.5 | M35: 18.2345
A36: 27 | B36: ASTRAL | C36: 1783.2 | D36: 1805.12 | E36: 1743.18 | F36: 1703.17 | G36: 1641.23 | H36: 1845.13 | I36: 1907.07 | J36: 1947.08 | K36: 1867.05 | L36: 1765.1 | M36: 7.27156
A37: 28 | B37: AUROPHARMA | C37: 605.45 | D37: 611.33 | E37: 595.22 | F37: 584.98 | G37: 568.87 | H37: 621.57 | I37: 637.68 | J37: 647.92 | K37: 627.45 | L37: 601.1 | M37: 24.9485
A38: 29 | B38: DMART | C38: 4014.65 | D38: 4031.48 | E38: 3931.02 | F38: 3847.38 | G38: 3746.92 | H38: 4115.12 | I38: 4215.58 | J38: 4299.22 | K38: 4131.95 | L38: 3947.85 | M38: 5.52288
A39: 30 | B39: AXISBANK | C39: 730.3 | D39: 741.58 | E39: 714.02 | F39: 697.73 | G39: 670.17 | H39: 757.87 | I39: 785.43 | J39: 801.72 | K39: 769.15 | L39: 725.3 | M39: 130.85009
A40: 31 | B40: BAJAJ-AUTO | C40: 3478.9 | D40: 3491.07 | E40: 3422.83 | F40: 3366.77 | G40: 3298.53 | H40: 3547.13 | I40: 3615.37 | J40: 3671.43 | K40: 3559.3 | L40: 3435 | M40: 6.28362
A41: 32 | B41: BAJFINANCE | C41: 6627.8 | D41: 6706.82 | E41: 6513.43 | F41: 6399.07 | G41: 6205.68 | H41: 6821.18 | I41: 7014.57 | J41: 7128.93 | K41: 6900.2 | L41: 6592.45 | M41: 19.3004
A42: 33 | B42: BAJAJFINSV | C42: 15245.2 | D42: 15447.03 | E42: 14998.17 | F42: 14751.13 | G42: 14302.27 | H42: 15694.07 | I42: 16142.93 | J42: 16389.97 | K42: 15895.9 | L42: 15200 | M42: 3.61563
A43: 34 | B43: BAJAJHLDNG | C43: 5104.35 | D43: 5099.97 | E43: 5049.93 | F43: 4995.52 | G43: 4945.48 | H43: 5154.38 | I43: 5204.42 | J43: 5258.83 | K43: 5150 | L43: 5045.55 | M43: 0.26601
A44: 35 | B44: BALKRISIND | C44: 1757.7 | D44: 1792.53 | E44: 1715.17 | F44: 1672.63 | G44: 1595.27 | H44: 1835.07 | I44: 1912.43 | J44: 1954.97 | K44: 1869.9 | L44: 1750 | M44: 4.5592
A45: 36 | B45: BANDHANBNK | C45: 291.15 | D45: 297.17 | E45: 281.48 | F45: 271.82 | G45: 256.13 | H45: 306.83 | I45: 322.52 | J45: 332.18 | K45: 312.85 | L45: 287.5 | M45: 108.05931
A46: 37 | B46: BANKBARODA | C46: 100.5 | D46: 102.07 | E46: 98.53 | F46: 96.57 | G46: 93.03 | H46: 104.03 | I46: 107.57 | J46: 109.53 | K46: 105.6 | L46: 100.1 | M46: 703.41673
A47: 38 | B47: BANKINDIA | C47: 44.25 | D47: 45.67 | E47: 41.73 | F47: 39.22 | G47: 35.28 | H47: 48.18 | I47: 52.12 | J47: 54.63 | K47: 49.6 | L47: 43.15 | M47: 98.79327
A48: 39 | B48: BATAINDIA | C48: 1776.6 | D48: 1799.70 | E48: 1739.45 | F48: 1702.30 | G48: 1642.05 | H48: 1836.85 | I48: 1897.10 | J48: 1934.25 | K48: 1859.95 | L48: 1762.55 | M48: 3.0902
A49: 40 | B49: BERGEPAINT | C49: 679.45 | D49: 691.70 | E49: 663.75 | F49: 648.05 | G49: 620.10 | H49: 707.40 | I49: 735.35 | J49: 751.05 | K49: 719.65 | L49: 676 | M49: 10.9896
A50: 41 | B50: BEL | C50: 187.85 | D50: 190.53 | E50: 184.32 | F50: 180.78 | G50: 174.57 | H50: 194.07 | I50: 200.28 | J50: 203.82 | K50: 196.75 | L50: 187 | M50: 83.05113
A51: 42 | B51: BHARATFORG | C51: 667.6 | D51: 671.60 | E51: 655.00 | F51: 642.40 | G51: 625.80 | H51: 684.20 | I51: 700.80 | J51: 713.40 | K51: 688.2 | L51: 659 | M51: 48.66256
A52: 43 | B52: BHEL | C52: 44.35 | D52: 45.53 | E52: 42.82 | F52: 41.28 | G52: 38.57 | H52: 47.07 | I52: 49.78 | J52: 51.32 | K52: 48.25 | L52: 44 | M52: 485.63259
A53: 44 | B53: BPCL | C53: 333.05 | D53: 338.72 | E53: 325.43 | F53: 317.82 | G53: 304.53 | H53: 346.33 | I53: 359.62 | J53: 367.23 | K53: 352 | L53: 331.1 | M53: 70.47485
A54: 45 | B54: BHARTIARTL | C54: 670.9 | D54: 668.30 | E54: 648.05 | F54: 625.20 | G54: 604.95 | H54: 691.15 | I54: 711.40 | J54: 734.25 | K54: 688.55 | L54: 645.45 | M54: 141.39461
A55: 46 | B55: BIOCON | C55: 374.15 | D55: 380.63 | E55: 366.42 | F55: 358.68 | G55: 344.47 | H55: 388.37 | I55: 402.58 | J55: 410.32 | K55: 394.85 | L55: 372.9 | M55: 29.49622
A56: 47 | B56: BOSCHLTD | C56: 15016.65 | D56: 15219.08 | E56: 14772.57 | F56: 14528.48 | G56: 14081.97 | H56: 15463.17 | I56: 15909.68 | J56: 16153.77 | K56: 15665.6 | L56: 14975 | M56: 0.50909
A57: 48 | B57: BRITANNIA | C57: 3446 | D57: 3454.67 | E57: 3405.33 | F57: 3364.67 | G57: 3315.33 | H57: 3495.33 | I57: 3544.67 | J57: 3585.33 | K57: 3504 | L57: 3414 | M57: 5.29995
A58: 49 | B58: CADILAHC | C58: 344.75 | D58: 350.52 | E58: 337.08 | F58: 329.42 | G58: 315.98 | H58: 358.18 | I58: 371.62 | J58: 379.28 | K58: 363.95 | L58: 342.85 | M58: 26.70819
A59: 50 | B59: CANBK | C59: 208.3 | D59: 212.85 | E59: 201.70 | F59: 195.10 | G59: 183.95 | H59: 219.45 | I59: 230.60 | J59: 237.20 | K59: 224 | L59: 206.25 | M59: 207.98209
A60: 51 | B60: CASTROLIND | C60: 105.9 | D60: 106.83 | E60: 103.57 | F60: 101.23 | G60: 97.97 | H60: 109.17 | I60: 112.43 | J60: 114.77 | K60: 110.1 | L60: 104.5 | M60: 18.01153
A61: 52 | B61: CHOLAFIN | C61: 647.85 | D61: 655.87 | E61: 634.98 | F61: 622.12 | G61: 601.23 | H61: 668.73 | I61: 689.62 | J61: 702.48 | K61: 676.75 | L61: 643 | M61: 29.82071
A62: 53 | B62: CIPLA | C62: 895.8 | D62: 897.57 | E62: 886.38 | F62: 876.97 | G62: 865.78 | H62: 906.98 | I62: 918.17 | J62: 927.58 | K62: 908.75 | L62: 888.15 | M62: 20.03438
A63: 54 | B63: CUB | C63: 122.8 | D63: 123.92 | E63: 120.33 | F63: 117.87 | G63: 114.28 | H63: 126.38 | I63: 129.97 | J63: 132.43 | K63: 127.5 | L63: 121.45 | M63: 32.76167
A64: 55 | B64: COALINDIA | C64: 150 | D64: 151.93 | E64: 147.07 | F64: 144.13 | G64: 139.27 | H64: 154.87 | I64: 159.73 | J64: 162.67 | K64: 156.8 | L64: 149 | M64: 121.1534
A65: 56 | B65: COFORGE | C65: 4226.05 | D65: 4244.67 | E65: 4169.93 | F65: 4113.82 | G65: 4039.08 | H65: 4300.78 | I65: 4375.52 | J65: 4431.63 | K65: 4319.4 | L65: 4188.55 | M65: 3.5848
A66: 57 | B66: COLPAL | C66: 1397.35 | D66: 1404.78 | E66: 1384.57 | F66: 1371.78 | G66: 1351.57 | H66: 1417.57 | I66: 1437.78 | J66: 1450.57 | K66: 1425 | L66: 1392 | M66: 4.7746
A67: 58 | B67: CONCOR | C67: 558.35 | D67: 563.35 | E67: 551.00 | F67: 543.65 | G67: 531.30 | H67: 570.70 | I67: 583.05 | J67: 590.40 | K67: 575.7 | L67: 556 | M67: 19.33204
A68: 59 | B68: COROMANDEL | C68: 733.85 | D68: 746.65 | E68: 716.75 | F68: 699.65 | G68: 669.75 | H68: 763.75 | I68: 793.65 | J68: 810.75 | K68: 776.55 | L68: 729.55 | M68: 4.16197
A69: 60 | B69: CROMPTON | C69: 405.5 | D69: 406.48 | E69: 393.42 | F69: 381.33 | G69: 368.27 | H69: 418.57 | I69: 431.63 | J69: 443.72 | K69: 419.55 | L69: 394.4 | M69: 70.89213
A70: 61 | B70: CUMMINSIND | C70: 927.7 | D70: 934.90 | E70: 912.05 | F70: 896.40 | G70: 873.55 | H70: 950.55 | I70: 973.40 | J70: 989.05 | K70: 957.75 | L70: 919.25 | M70: 4.25308
A71: 62 | B71: DLF | C71: 320.5 | D71: 326.00 | E71: 312.55 | F71: 304.60 | G71: 291.15 | H71: 333.95 | I71: 347.40 | J71: 355.35 | K71: 339.45 | L71: 318.05 | M71: 159.26498
A72: 63 | B72: DABUR | C72: 533.7 | D72: 533.22 | E72: 526.88 | F72: 520.07 | G72: 513.73 | H72: 540.03 | I72: 546.37 | J72: 553.18 | K72: 539.55 | L72: 526.4 | M72: 30.36292
A73: 64 | B73: DALBHARAT | C73: 1536.85 | D73: 1557.72 | E73: 1491.68 | F73: 1446.52 | G73: 1380.48 | H73: 1602.88 | I73: 1668.92 | J73: 1714.08 | K73: 1623.75 | L73: 1512.55 | M73: 5.16658
A74: 65 | B74: DEEPAKNTR | C74: 1855.35 | D74: 1890.80 | E74: 1807.10 | F74: 1758.85 | G74: 1675.15 | H74: 1939.05 | I74: 2022.75 | J74: 2071.00 | K74: 1974.5 | L74: 1842.55 | M74: 13.692
A75: 66 | B75: DHANI | C75: 67.05 | D75: 68.80 | E75: 65.30 | F75: 63.55 | G75: 60.05 | H75: 70.55 | I75: 74.05 | J75: 75.80 | K75: 72.3 | L75: 67.05 | M75: 289.33761
A76: 67 | B76: DIVISLAB | C76: 3936.65 | D76: 3994.72 | E76: 3858.53 | F76: 3780.42 | G76: 3644.23 | H76: 4072.83 | I76: 4209.02 | J76: 4287.13 | K76: 4130.9 | L76: 3916.6 | M76: 7.23045
A77: 68 | B77: DIXON | C77: 4049.6 | D77: 4070.15 | E77: 3981.45 | F77: 3913.30 | G77: 3824.60 | H77: 4138.30 | I77: 4227.00 | J77: 4295.15 | K77: 4158.85 | L77: 4002 | M77: 5.44656
A78: 69 | B78: LALPATHLAB | C78: 2547.85 | D78: 2555.28 | E78: 2487.57 | F78: 2427.28 | G78: 2359.57 | H78: 2615.57 | I78: 2683.28 | J78: 2743.57 | K78: 2623 | L78: 2495 | M78: 4.09361
A79: 70 | B79: DRREDDY | C79: 4092.5 | D79: 4097.15 | E79: 4045.30 | F79: 3998.10 | G79: 3946.25 | H79: 4144.35 | I79: 4196.20 | J79: 4243.40 | K79: 4149 | L79: 4049.95 | M79: 6.97127
A80: 71 | B80: EICHERMOT | C80: 2617.15 | D80: 2631.98 | E80: 2572.72 | F80: 2528.28 | G80: 2469.02 | H80: 2676.42 | I80: 2735.68 | J80: 2780.12 | K80: 2691.25 | L80: 2587.55 | M80: 7.75965
A81: 72 | B81: EMAMILTD | C81: 474.15 | D81: 471.72 | E81: 462.48 | F81: 450.82 | G81: 441.58 | H81: 483.38 | I81: 492.62 | J81: 504.28 | K81: 480.95 | L81: 460.05 | M81: 4.98482
A82: 73 | B82: ENDURANCE | C82: 1354.55 | D82: 1356.70 | E82: 1315.40 | F82: 1276.25 | G82: 1234.95 | H82: 1395.85 | I82: 1437.15 | J82: 1476.30 | K82: 1398 | L82: 1317.55 | M82: 0.38771
A83: 74 | B83: ESCORTS | C83: 1795.2 | D83: 1809.57 | E83: 1766.73 | F83: 1738.27 | G83: 1695.43 | H83: 1838.03 | I83: 1880.87 | J83: 1909.33 | K83: 1852.4 | L83: 1781.1 | M83: 22.13011
A84: 75 | B84: EXIDEIND | C84: 141.4 | D84: 143.95 | E84: 137.95 | F84: 134.50 | G84: 128.50 | H84: 147.40 | I84: 153.40 | J84: 156.85 | K84: 149.95 | L84: 140.5 | M84: 46.33642
A85: 76 | B85: FEDERALBNK | C85: 93.85 | D85: 94.67 | E85: 91.78 | F85: 89.72 | G85: 86.83 | H85: 96.73 | I85: 99.62 | J85: 101.68 | K85: 97.55 | L85: 92.6 | M85: 396.43527
A86: 77 | B86: FORTIS | C86: 233.3 | D86: 233.78 | E86: 228.52 | F86: 223.73 | G86: 218.47 | H86: 238.57 | I86: 243.83 | J86: 248.62 | K86: 239.05 | L86: 229 | M86: 25.47489
A87: 78 | B87: GAIL | C87: 129.75 | D87: 131.50 | E87: 126.85 | F87: 123.95 | G87: 119.30 | H87: 134.40 | I87: 139.05 | J87: 141.95 | K87: 136.15 | L87: 128.6 | M87: 134.01506
A88: 79 | B88: GMRINFRA | C88: 34.5 | D88: 35.28 | E88: 33.07 | F88: 31.63 | G88: 29.42 | H88: 36.72 | I88: 38.93 | J88: 40.37 | K88: 37.5 | L88: 33.85 | M88: 185.05953
A89: 80 | B89: GLAND | C89: 3296.15 | D89: 3276.05 | E89: 3222.10 | F89: 3148.05 | G89: 3094.10 | H89: 3350.10 | I89: 3404.05 | J89: 3478.10 | K89: 3330 | L89: 3202 | M89: 1.49508
A90: 81 | B90: GLENMARK | C90: 429.8 | D90: 433.85 | E90: 418.95 | F90: 408.10 | G90: 393.20 | H90: 444.70 | I90: 459.60 | J90: 470.45 | K90: 448.75 | L90: 423 | M90: 13.3469
A91: 82 | B91: GODREJCP | C91: 771.15 | D91: 777.93 | E91: 759.82 | F91: 748.48 | G91: 730.37 | H91: 789.27 | I91: 807.38 | J91: 818.72 | K91: 796.05 | L91: 766.6 | M91: 8.87861
A92: 83 | B92: GODREJIND | C92: 509.7 | D92: 502.67 | E92: 482.03 | F92: 454.37 | G92: 433.73 | H92: 530.33 | I92: 550.97 | J92: 578.63 | K92: 523.3 | L92: 475 | M92: 5.03595
A93: 84 | B93: GODREJPROP | C93: 1451.3 | D93: 1480.77 | E93: 1413.53 | F93: 1375.77 | G93: 1308.53 | H93: 1518.53 | I93: 1585.77 | J93: 1623.53 | K93: 1548 | L93: 1443 | M93: 17.88534
A94: 85 | B94: GRASIM | C94: 1544.35 | D94: 1577.43 | E94: 1501.92 | F94: 1459.48 | G94: 1383.97 | H94: 1619.87 | I94: 1695.38 | J94: 1737.82 | K94: 1652.95 | L94: 1535 | M94: 12.55601
A95: 86 | B95: GUJGASLTD | C95: 572.75 | D95: 583.13 | E95: 554.87 | F95: 536.98 | G95: 508.72 | H95: 601.02 | I95: 629.28 | J95: 647.17 | K95: 611.4 | L95: 565.25 | M95: 17.72989
A96: 87 | B96: GSPL | C96: 269.65 | D96: 274.00 | E96: 261.00 | F96: 252.35 | G96: 239.35 | H96: 282.65 | I96: 295.65 | J96: 304.30 | K96: 287 | L96: 265.35 | M96: 7.61357
A97: 88 | B97: HCLTECH | C97: 1098.55 | D97: 1108.50 | E97: 1082.05 | F97: 1065.55 | G97: 1039.10 | H97: 1125.00 | I97: 1151.45 | J97: 1167.95 | K97: 1134.95 | L97: 1092 | M97: 54.69084
A98: 89 | B98: HDFCAMC | C98: 2021.05 | D98: 2059.62 | E98: 1971.43 | F98: 1921.82 | G98: 1833.63 | H98: 2109.23 | I98: 2197.42 | J98: 2247.03 | K98: 2147.8 | L98: 2010 | M98: 6.06929
A99: 90 | B99: HDFCBANK | C99: 1419.4 | D99: 1433.83 | E99: 1392.72 | F99: 1366.03 | G99: 1324.92 | H99: 1460.52 | I99: 1501.63 | J99: 1528.32 | K99: 1474.95 | L99: 1407.15 | M99: 118.15383
A100: 91 | B100: HDFCLIFE | C100: 532.95 | D100: 540.67 | E100: 521.33 | F100: 509.72 | G100: 490.38 | H100: 552.28 | I100: 571.62 | J100: 583.23 | K100: 560 | L100: 529.05 | M100: 55.15851
A101: 92 | B101: HAVELLS | C101: 1147.4 | D101: 1155.90 | E101: 1131.55 | F101: 1115.70 | G101: 1091.35 | H101: 1171.75 | I101: 1196.10 | J101: 1211.95 | K101: 1180.25 | L101: 1140.05 | M101: 16.58545
A102: 93 | B102: HEROMOTOCO | C102: 2490.4 | D102: 2518.33 | E102: 2412.07 | F102: 2333.73 | G102: 2227.47 | H102: 2596.67 | I102: 2702.93 | J102: 2781.27 | K102: 2624.6 | L102: 2440 | M102: 19.34361
A103: 94 | B103: HINDALCO | C103: 517.65 | D103: 516.72 | E103: 506.03 | F103: 494.42 | G103: 483.73 | H103: 528.33 | I103: 539.02 | J103: 550.63 | K103: 527.4 | L103: 505.1 | M103: 248.19208
A104: 95 | B104: HAL | C104: 1276.25 | D104: 1271.85 | E104: 1244.40 | F104: 1212.55 | G104: 1185.10 | H104: 1303.70 | I104: 1331.15 | J104: 1363.00 | K104: 1299.3 | L104: 1240 | M104: 6.92025
A105: 96 | B105: HINDCOPPER | C105: 105.65 | D105: 108.17 | E105: 102.48 | F105: 99.32 | G105: 93.63 | H105: 111.33 | I105: 117.02 | J105: 120.18 | K105: 113.85 | L105: 105 | M105: 103.95146
A106: 97 | B106: HINDPETRO | C106: 272.15 | D106: 276.42 | E106: 266.68 | F106: 261.22 | G106: 251.48 | H106: 281.88 | I106: 291.62 | J106: 297.08 | K106: 286.15 | L106: 270.95 | M106: 53.47242
A107: 98 | B107: HINDUNILVR | C107: 2171.4 | D107: 2191.23 | E107: 2140.47 | F107: 2109.53 | G107: 2058.77 | H107: 2222.17 | I107: 2272.93 | J107: 2303.87 | K107: 2242 | L107: 2160.3 | M107: 29.97629
A108: 99 | B108: HINDZINC | C108: 298.7 | D108: 301.35 | E108: 293.40 | F108: 288.10 | G108: 280.15 | H108: 306.65 | I108: 314.60 | J108: 319.90 | K108: 309.3 | L108: 296.05 | M108: 7.33004
A109: 100 | B109: HDFC | C109: 2343.05 | D109: 2358.35 | E109: 2315.70 | F109: 2288.35 | G109: 2245.70 | H109: 2385.70 | I109: 2428.35 | J109: 2455.70 | K109: 2401 | L109: 2331 | M109: 50.5823
A110: 101 | B110: ICICIBANK | C110: 707.4 | D110: 712.27 | E110: 697.43 | F110: 687.47 | G110: 672.63 | H110: 722.23 | I110: 737.07 | J110: 747.03 | K110: 727.1 | L110: 702.3 | M110: 280.23104
A111: 102 | B111: ICICIGI | C111: 1240.85 | D111: 1248.62 | E111: 1227.23 | F111: 1213.62 | G111: 1192.23 | H111: 1262.23 | I111: 1283.62 | J111: 1297.23 | K111: 1270 | L111: 1235 | M111: 8.38799
A112: 103 | B112: ICICIPRULI | C112: 467.15 | D112: 472.02 | E112: 460.13 | F112: 453.12 | G112: 441.23 | H112: 479.03 | I112: 490.92 | J112: 497.93 | K112: 483.9 | L112: 465 | M112: 27.97675
A113: 104 | B113: ISEC | C113: 632.2 | D113: 634.02 | E113: 618.73 | F113: 605.27 | G113: 589.98 | H113: 647.48 | I113: 662.77 | J113: 676.23 | K113: 649.3 | L113: 620.55 | M113: 4.10609
A114: 105 | B114: IDFCFIRSTB | C114: 38.9 | D114: 39.73 | E114: 36.77 | F114: 34.63 | G114: 31.67 | H114: 41.87 | I114: 44.83 | J114: 46.97 | K114: 42.7 | L114: 37.6 | M114: 628.63486
A115: 106 | B115: ITC | C115: 208.5 | D115: 209.60 | E115: 205.90 | F115: 203.30 | G115: 199.60 | H115: 212.20 | I115: 215.90 | J115: 218.50 | K115: 213.3 | L115: 207 | M115: 413.41523
A116: 107 | B116: INDIAMART | C116: 4794.6 | D116: 4783.20 | E116: 4616.40 | F116: 4438.20 | G116: 4271.40 | H116: 4961.40 | I116: 5128.20 | J116: 5306.40 | K116: 4950 | L116: 4605 | M116: 1.99016
A117: 108 | B117: INDIANB | C117: 136.65 | D117: 139.15 | E117: 132.50 | F117: 128.35 | G117: 121.70 | H117: 143.30 | I117: 149.95 | J117: 154.10 | K117: 145.8 | L117: 135 | M117: 39.17451
A118: 109 | B118: INDHOTEL | C118: 194.3 | D118: 195.65 | E118: 190.60 | F118: 186.90 | G118: 181.85 | H118: 199.35 | I118: 204.40 | J118: 208.10 | K118: 200.7 | L118: 191.95 | M118: 73.89515
A119: 110 | B119: IOC | C119: 110 | D119: 111.83 | E119: 107.47 | F119: 104.93 | G119: 100.57 | H119: 114.37 | I119: 118.73 | J119: 121.27 | K119: 116.2 | L119: 109.3 | M119: 132.32094
A120: 111 | B120: IRCTC | C120: 738.05 | D120: 755.80 | E120: 717.25 | F120: 696.45 | G120: 657.90 | H120: 776.60 | I120: 815.15 | J120: 835.95 | K120: 794.35 | L120: 735 | M120: 100.21435
A121: 112 | B121: IRFC | C121: 21 | D121: 21.18 | E121: 20.72 | F121: 20.43 | G121: 19.97 | H121: 21.47 | I121: 21.93 | J121: 22.22 | K121: 21.65 | L121: 20.9 | M121: 155.62873
A122: 113 | B122: IGL | C122: 334.3 | D122: 339.20 | E122: 326.30 | F122: 318.30 | G122: 305.40 | H122: 347.20 | I122: 360.10 | J122: 368.10 | K122: 352.1 | L122: 331.2 | M122: 59.50896
A123: 114 | B123: INDUSTOWER | C123: 206 | D123: 216.03 | E123: 193.07 | F123: 180.13 | G123: 157.17 | H123: 228.97 | I123: 251.93 | J123: 264.87 | K123: 239 | L123: 203.1 | M123: 1052.83747
A124: 115 | B124: INDUSINDBK | C124: 875.65 | D124: 892.93 | E124: 851.57 | F124: 827.48 | G124: 786.12 | H124: 917.02 | I124: 958.38 | J124: 982.47 | K124: 934.3 | L124: 868.85 | M124: 73.05449
A125: 116 | B125: NAUKRI | C125: 4280.35 | D125: 4293.37 | E125: 4227.13 | F125: 4173.92 | G125: 4107.68 | H125: 4346.58 | I125: 4412.82 | J125: 4466.03 | K125: 4359.6 | L125: 4240.15 | M125: 6.78797
A126: 117 | B126: INFY | C126: 1678.15 | D126: 1687.87 | E126: 1660.78 | F126: 1643.42 | G126: 1616.33 | H126: 1705.23 | I126: 1732.32 | J126: 1749.68 | K126: 1714.95 | L126: 1670.5 | M126: 135.92379
A127: 118 | B127: INDIGO | C127: 1830.55 | D127: 1872.85 | E127: 1757.70 | F127: 1684.85 | G127: 1569.70 | H127: 1945.70 | I127: 2060.85 | J127: 2133.70 | K127: 1988 | L127: 1800 | M127: 24.00153
A128: 119 | B128: IPCALAB | C128: 936.75 | D128: 939.33 | E128: 922.62 | F128: 908.48 | G128: 891.77 | H128: 953.47 | I128: 970.18 | J128: 984.32 | K128: 956.05 | L128: 925.2 | M128: 4.82719
A129: 120 | B129: JSWENERGY | C129: 320.25 | D129: 322.67 | E129: 317.83 | F129: 315.42 | G129: 310.58 | H129: 325.08 | I129: 329.92 | J129: 332.33 | K129: 327.5 | L129: 320.25 | M129: 5.89472
A130: 121 | B130: JSWSTEEL | C130: 569.35 | D130: 579.95 | E130: 555.40 | F130: 541.45 | G130: 516.90 | H130: 593.90 | I130: 618.45 | J130: 632.40 | K130: 604.5 | L130: 566 | M130: 54.87481
A131: 122 | B131: JINDALSTEL | C131: 369.8 | D131: 377.67 | E131: 359.88 | F131: 349.97 | G131: 332.18 | H131: 387.58 | I131: 405.37 | J131: 415.28 | K131: 395.45 | L131: 367.75 | M131: 91.46123
A132: 123 | B132: JUBLFOOD | C132: 2884.6 | D132: 2911.87 | E132: 2824.73 | F132: 2764.87 | G132: 2677.73 | H132: 2971.73 | I132: 3058.87 | J132: 3118.73 | K132: 2999 | L132: 2852 | M132: 12.57837
A133: 124 | B133: KOTAKBANK | C133: 1794.85 | D133: 1815.33 | E133: 1756.27 | F133: 1717.68 | G133: 1658.62 | H133: 1853.92 | I133: 1912.98 | J133: 1951.57 | K133: 1874.4 | L133: 1776.75 | M133: 49.56043
A134: 125 | B134: L&TFH | C134: 62.3 | D134: 64.00 | E134: 60.10 | F134: 57.90 | G134: 54.00 | H134: 66.20 | I134: 70.10 | J134: 72.30 | K134: 67.9 | L134: 61.8 | M134: 149.26651
A135: 126 | B135: LTTS | C135: 4290.6 | D135: 4298.05 | E135: 4234.05 | F135: 4177.50 | G135: 4113.50 | H135: 4354.60 | I135: 4418.60 | J135: 4475.15 | K135: 4362.05 | L135: 4241.5 | M135: 4.05302
A136: 127 | B136: LICHSGFIN | C136: 330.1 | D136: 337.65 | E136: 320.55 | F136: 311.00 | G136: 293.90 | H136: 347.20 | I136: 364.30 | J136: 373.85 | K136: 354.75 | L136: 328.1 | M136: 67.65144
A137: 128 | B137: LTI | C137: 5600.95 | D137: 5656.07 | E137: 5524.88 | F137: 5448.82 | G137: 5317.63 | H137: 5732.13 | I137: 5863.32 | J137: 5939.38 | K137: 5787.25 | L137: 5580 | M137: 4.03007
A138: 129 | B138: LT | C138: 1757.35 | D138: 1769.45 | E138: 1738.90 | F138: 1720.45 | G138: 1689.90 | H138: 1787.90 | I138: 1818.45 | J138: 1836.90 | K138: 1800 | L138: 1751 | M138: 36.16355
A139: 130 | B139: LAURUSLABS | C139: 500.85 | D139: 506.58 | E139: 490.27 | F139: 479.68 | G139: 463.37 | H139: 517.17 | I139: 533.48 | J139: 544.07 | K139: 522.9 | L139: 496 | M139: 40.52198
A140: 131 | B140: LUPIN | C140: 713.2 | D140: 722.07 | E140: 702.13 | F140: 691.07 | G140: 671.13 | H140: 733.13 | I140: 753.07 | J140: 764.13 | K140: 742 | L140: 711 | M140: 19.77871
A141: 132 | B141: MRF | C141: 63945.6 | D141: 64265.20 | E141: 62680.40 | F141: 61415.20 | G141: 59830.40 | H141: 65530.40 | I141: 67115.20 | J141: 68380.40 | K141: 65850 | L141: 63000 | M141: 0.4326
A142: 133 | B142: MGL | C142: 681.3 | D142: 700.27 | E142: 661.03 | F142: 640.77 | G142: 601.53 | H142: 720.53 | I142: 759.77 | J142: 780.03 | K142: 739.5 | L142: 680 | M142: 8.87399
A143: 134 | B143: M&MFIN | C143: 140.75 | D143: 143.37 | E143: 136.38 | F143: 132.02 | G143: 125.03 | H143: 147.73 | I143: 154.72 | J143: 159.08 | K143: 150.35 | L143: 139 | M143: 108.30538
A144: 135 | B144: M&M | C144: 795.8 | D144: 806.07 | E144: 780.23 | F144: 764.67 | G144: 738.83 | H144: 821.63 | I144: 847.47 | J144: 863.03 | K144: 831.9 | L144: 790.5 | M144: 56.77898
A145: 136 | B145: MANAPPURAM | C145: 110.1 | D145: 112.15 | E145: 106.95 | F145: 103.80 | G145: 98.60 | H145: 115.30 | I145: 120.50 | J145: 123.65 | K145: 117.35 | L145: 109 | M145: 121.60004
A146: 137 | B146: MARICO | C146: 483.45 | D146: 485.30 | E146: 475.15 | F146: 466.85 | G146: 456.70 | H146: 493.60 | I146: 503.75 | J146: 512.05 | K146: 495.45 | L146: 477 | M146: 32.2988
A147: 138 | B147: MARUTI | C147: 8210.15 | D147: 8317.47 | E147: 8047.68 | F147: 7885.22 | G147: 7615.43 | H147: 8479.93 | I147: 8749.72 | J147: 8912.18 | K147: 8587.25 | L147: 8155 | M147: 9.47351
A148: 139 | B148: MFSL | C148: 809.75 | D148: 809.93 | E148: 801.82 | F148: 793.88 | G148: 785.77 | H148: 817.87 | I148: 825.98 | J148: 833.92 | K148: 818.05 | L148: 802 | M148: 9.15583
A149: 140 | B149: MINDTREE | C149: 3565.9 | D149: 3604.55 | E149: 3503.45 | F149: 3441.00 | G149: 3339.90 | H149: 3667.00 | I149: 3768.10 | J149: 3830.55 | K149: 3705.65 | L149: 3542.1 | M149: 10.36474
A150: 141 | B150: MPHASIS | C150: 2951.95 | D150: 2981.97 | E150: 2899.98 | F150: 2848.02 | G150: 2766.03 | H150: 3033.93 | I150: 3115.92 | J150: 3167.88 | K150: 3063.95 | L150: 2930 | M150: 4.32597
A151: 142 | B151: MUTHOOTFIN | C151: 1315.05 | D151: 1317.40 | E151: 1288.80 | F151: 1262.55 | G151: 1233.95 | H151: 1343.65 | I151: 1372.25 | J151: 1398.50 | K151: 1346 | L151: 1291.15 | M151: 15.66179
A152: 143 | B152: NATCOPHARM | C152: 763.65 | D152: 774.85 | E152: 740.70 | F152: 717.75 | G152: 683.60 | H152: 797.80 | I152: 831.95 | J152: 854.90 | K152: 809 | L152: 751.9 | M152: 5.67046
A153: 144 | B153: NMDC | C153: 134.45 | D153: 136.25 | E153: 132.00 | F153: 129.55 | G153: 125.30 | H153: 138.70 | I153: 142.95 | J153: 145.40 | K153: 140.5 | L153: 133.8 | M153: 122.59007
A154: 145 | B154: NTPC | C154: 124.4 | D154: 125.68 | E154: 122.37 | F154: 120.33 | G154: 117.02 | H154: 127.72 | I154: 131.03 | J154: 133.07 | K154: 129 | L154: 123.65 | M154: 180.45779
A155: 146 | B155: NATIONALUM | C155: 112.05 | D155: 113.62 | E155: 108.93 | F155: 105.82 | G155: 101.13 | H155: 116.73 | I155: 121.42 | J155: 124.53 | K155: 118.3 | L155: 110.5 | M155: 511.06078
A156: 147 | B156: NAVINFLUOR | C156: 3679.3 | D156: 3700.90 | E156: 3609.90 | F156: 3540.50 | G156: 3449.50 | H156: 3770.30 | I156: 3861.30 | J156: 3930.70 | K156: 3791.9 | L156: 3631.5 | M156: 2.23924
A157: 148 | B157: NESTLEIND | C157: 17744.75 | D157: 17757.82 | E157: 17546.93 | F157: 17349.12 | G157: 17138.23 | H157: 17955.63 | I157: 18166.52 | J157: 18364.33 | K157: 17968.7 | L157: 17560 | M157: 1.12105
A158: 149 | B158: NAM-INDIA | C158: 310.35 | D158: 309.27 | E158: 301.03 | F158: 291.72 | G158: 283.48 | H158: 318.58 | I158: 326.82 | J158: 336.13 | K158: 317.5 | L158: 299.95 | M158: 13.92369
A159: 150 | B159: OBEROIRLTY | C159: 858.55 | D159: 871.60 | E159: 828.45 | F159: 798.35 | G159: 755.20 | H159: 901.70 | I159: 944.85 | J159: 974.95 | K159: 914.75 | L159: 841.5 | M159: 11.24077
A160: 151 | B160: ONGC | C160: 156.65 | D160: 158.35 | E160: 154.30 | F160: 151.95 | G160: 147.90 | H160: 160.70 | I160: 164.75 | J160: 167.10 | K160: 162.4 | L160: 156 | M160: 287.66189
A161: 152 | B161: OIL | C161: 218.75 | D161: 220.18 | E161: 213.97 | F161: 209.18 | G161: 202.97 | H161: 224.97 | I161: 231.18 | J161: 235.97 | K161: 226.4 | L161: 215.4 | M161: 36.0513
A162: 153 | B162: PIIND | C162: 2391.25 | D162: 2418.42 | E162: 2348.88 | F162: 2306.52 | G162: 2236.98 | H162: 2460.78 | I162: 2530.32 | J162: 2572.68 | K162: 2487.95 | L162: 2376.05 | M162: 2.7764
A163: 154 | B163: PAGEIND | C163: 40196.7 | D163: 40311.72 | E163: 39639.98 | F163: 39083.27 | G163: 38411.53 | H163: 40868.43 | I163: 41540.17 | J163: 42096.88 | K163: 40983.45 | L163: 39755 | M163: 0.29126
A164: 155 | B164: PETRONET | C164: 190.95 | D164: 194.73 | E164: 186.47 | F164: 181.98 | G164: 173.72 | H164: 199.22 | I164: 207.48 | J164: 211.97 | K164: 203 | L164: 190.25 | M164: 35.18473
A165: 156 | B165: PFIZER | C165: 4224.7 | D165: 4220.32 | E165: 4184.38 | F165: 4144.07 | G165: 4108.13 | H165: 4260.63 | I165: 4296.57 | J165: 4336.88 | K165: 4256.25 | L165: 4180 | M165: 0.62741
A166: 157 | B166: PIDILITIND | C166: 2310.75 | D166: 2327.58 | E166: 2274.17 | F166: 2237.58 | G166: 2184.17 | H166: 2364.17 | I166: 2417.58 | J166: 2454.17 | K166: 2381 | L166: 2291 | M166: 7.95911
A167: 158 | B167: PEL | C167: 1948.75 | D167: 1979.58 | E167: 1901.17 | F167: 1853.58 | G167: 1775.17 | H167: 2027.17 | I167: 2105.58 | J167: 2153.17 | K167: 2058 | L167: 1932 | M167: 10.01671
A168: 159 | B168: POLYCAB | C168: 2282.65 | D168: 2301.38 | E168: 2243.87 | F168: 2205.08 | G168: 2147.57 | H168: 2340.17 | I168: 2397.68 | J168: 2436.47 | K168: 2358.9 | L168: 2262.6 | M168: 4.1146
A169: 160 | B169: PFC | C169: 111.55 | D169: 113.20 | E169: 109.45 | F169: 107.35 | G169: 103.60 | H169: 115.30 | I169: 119.05 | J169: 121.15 | K169: 116.95 | L169: 111.1 | M169: 114.57862
A170: 161 | B170: POWERGRID | C170: 191.1 | D170: 192.33 | E170: 188.67 | F170: 186.23 | G170: 182.57 | H170: 194.77 | I170: 198.43 | J170: 200.87 | K170: 196 | L170: 189.9 | M170: 98.58778
A171: 162 | B171: PRESTIGE | C171: 433.45 | D171: 435.18 | E171: 426.27 | F171: 419.08 | G171: 410.17 | H171: 442.37 | I171: 451.28 | J171: 458.47 | K171: 444.1 | L171: 428 | M171: 16.87387
A172: 163 | B172: PGHH | C172: 15013.75 | D172: 15047.25 | E172: 14786.55 | F172: 14559.35 | G172: 14298.65 | H172: 15274.45 | I172: 15535.15 | J172: 15762.35 | K172: 15307.95 | L172: 14820.05 | M172: 0.25395
A173: 164 | B173: PNB | C173: 32 | D173: 33.38 | E173: 30.37 | F173: 28.73 | G173: 25.72 | H173: 35.02 | I173: 38.03 | J173: 39.67 | K173: 36.4 | L173: 31.75 | M173: 1899.80575
A174: 165 | B174: RBLBANK | C174: 122.3 | D174: 126.48 | E174: 116.97 | F174: 111.63 | G174: 102.12 | H174: 131.82 | I174: 141.33 | J174: 146.67 | K174: 136 | L174: 121.15 | M174: 256.128
A175: 166 | B175: RECLTD | C175: 117 | D175: 118.82 | E175: 114.78 | F175: 112.57 | G175: 108.53 | H175: 121.03 | I175: 125.07 | J175: 127.28 | K175: 122.85 | L175: 116.6 | M175: 67.02613
A176: 167 | B176: RELIANCE | C176: 2255.75 | D176: 2279.68 | E176: 2219.47 | F176: 2183.18 | G176: 2122.97 | H176: 2315.97 | I176: 2376.18 | J176: 2412.47 | K176: 2339.9 | L176: 2243.4 | M176: 114.66725
A177: 168 | B177: SBICARD | C177: 753.75 | D177: 762.58 | E177: 741.17 | F177: 728.58 | G177: 707.17 | H177: 775.17 | I177: 796.58 | J177: 809.17 | K177: 784 | L177: 750 | M177: 23.01066
A178: 169 | B178: SBILIFE | C178: 1054.2 | D178: 1062.13 | E178: 1032.77 | F178: 1011.33 | G178: 981.97 | H178: 1083.57 | I178: 1112.93 | J178: 1134.37 | K178: 1091.5 | L178: 1040.7 | M178: 20.88599
A179: 170 | B179: SRF | C179: 2271.4 | D179: 2300.35 | E179: 2230.30 | F179: 2189.20 | G179: 2119.15 | H179: 2341.45 | I179: 2411.50 | J179: 2452.60 | K179: 2370.4 | L179: 2259.25 | M179: 7.36393
A180: 171 | B180: SANOFI | C180: 7171.1 | D180: 7230.37 | E180: 7085.73 | F180: 7000.37 | G180: 6855.73 | H180: 7315.73 | I180: 7460.37 | J180: 7545.73 | K180: 7375 | L180: 7145 | M180: 0.43551
A181: 172 | B181: SHREECEM | C181: 23152.25 | D181: 23404.48 | E181: 22579.77 | F181: 22007.28 | G181: 21182.57 | H181: 23976.97 | I181: 24801.68 | J181: 25374.17 | K181: 24229.2 | L181: 22832 | M181: 0.93756
A182: 173 | B182: SRTRANSFIN | C182: 1068.6 | D182: 1094.35 | E182: 1034.25 | F182: 999.90 | G182: 939.80 | H182: 1128.70 | I182: 1188.80 | J182: 1223.15 | K182: 1154.45 | L182: 1060 | M182: 15.05101
A183: 174 | B183: SIEMENS | C183: 2285.7 | D183: 2305.88 | E183: 2251.52 | F183: 2217.33 | G183: 2162.97 | H183: 2340.07 | I183: 2394.43 | J183: 2428.62 | K183: 2360.25 | L183: 2271.7 | M183: 2.7871
A184: 175 | B184: SBIN | C184: 472.65 | D184: 476.20 | E184: 464.45 | F184: 456.25 | G184: 444.50 | H184: 484.40 | I184: 496.15 | J184: 504.35 | K184: 487.95 | L184: 468 | M184: 323.56037
A185: 176 | B185: SAIL | C185: 85 | D185: 87.10 | E185: 82.25 | F185: 79.50 | G185: 74.65 | H185: 89.85 | I185: 94.70 | J185: 97.45 | K185: 91.95 | L185: 84.35 | M185: 717.04145
A186: 177 | B186: SUNPHARMA | C186: 818.25 | D186: 823.40 | E186: 809.85 | F186: 801.45 | G186: 787.90 | H186: 831.80 | I186: 845.35 | J186: 853.75 | K186: 836.95 | L186: 815 | M186: 36.79222
A187: 178 | B187: SUNTV | C187: 427.2 | D187: 436.47 | E187: 416.03 | F187: 404.87 | G187: 384.43 | H187: 447.63 | I187: 468.07 | J187: 479.23 | K187: 456.9 | L187: 425.3 | M187: 17.01419
A188: 179 | B188: SYNGENE | C188: 530 | D188: 531.80 | E188: 519.60 | F188: 509.20 | G188: 497.00 | H188: 542.20 | I188: 554.40 | J188: 564.80 | K188: 544 | L188: 521.4 | M188: 5.09144
A189: 180 | B189: TVSMOTOR | C189: 619.1 | D189: 626.62 | E189: 608.28 | F189: 597.47 | G189: 579.13 | H189: 637.43 | I189: 655.77 | J189: 666.58 | K189: 644.95 | L189: 615.8 | M189: 21.15554
A190: 181 | B190: TATACHEM | C190: 785.6 | D190: 804.45 | E190: 762.15 | F190: 738.70 | G190: 696.40 | H190: 827.90 | I190: 870.20 | J190: 893.65 | K190: 846.75 | L190: 781 | M190: 28.33879
A191: 182 | B191: TATACOMM | C191: 1134.8 | D191: 1151.27 | E191: 1110.23 | F191: 1085.67 | G191: 1044.63 | H191: 1175.83 | I191: 1216.87 | J191: 1241.43 | K191: 1192.3 | L191: 1126.7 | M191: 6.9933
A192: 183 | B192: TCS | C192: 3401.65 | D192: 3425.53 | E192: 3367.22 | F192: 3332.78 | G192: 3274.47 | H192: 3459.97 | I192: 3518.28 | J192: 3552.72 | K192: 3483.85 | L192: 3391.1 | M192: 50.39136
A193: 184 | B193: TATACONSUM | C193: 677.7 | D193: 688.77 | E193: 662.98 | F193: 648.27 | G193: 622.48 | H193: 703.48 | I193: 729.27 | J193: 743.98 | K193: 714.55 | L193: 674.05 | M193: 30.91298
A194: 185 | B194: TATAELXSI | C194: 6074.1 | D194: 6164.28 | E194: 5899.82 | F194: 5725.53 | G194: 5461.07 | H194: 6338.57 | I194: 6603.03 | J194: 6777.32 | K194: 6428.75 | L194: 5990 | M194: 5.41664
A195: 186 | B195: TATAMOTORS | C195: 427.95 | D195: 431.65 | E195: 401.75 | F195: 375.55 | G195: 345.65 | H195: 457.85 | I195: 487.75 | J195: 513.95 | K195: 461.55 | L195: 405.45 | M195: 572.65685
A196: 187 | B196: TATAPOWER | C196: 204.3 | D196: 207.90 | E196: 199.65 | F196: 195.00 | G196: 186.75 | H196: 212.55 | I196: 220.80 | J196: 225.45 | K196: 216.15 | L196: 203.25 | M196: 600.97152
A197: 188 | B197: TATASTEEL | C197: 1074 | D197: 1087.02 | E197: 1054.08 | F197: 1034.17 | G197: 1001.23 | H197: 1106.93 | I197: 1139.87 | J197: 1159.78 | K197: 1119.95 | L197: 1067.1 | M197: 121.26867
A198: 189 | B198: TECHM | C198: 1333 | D198: 1354.33 | E198: 1308.67 | F198: 1284.33 | G198: 1238.67 | H198: 1378.67 | I198: 1424.33 | J198: 1448.67 | K198: 1400 | L198: 1330 | M198: 41.08603
A199: 190 | B199: RAMCOCEM | C199: 769.3 | D199: 775.68 | E199: 756.62 | F199: 743.93 | G199: 724.87 | H199: 788.37 | I199: 807.43 | J199: 820.12 | K199: 794.75 | L199: 763 | M199: 3.58361
A200: 191 | B200: TITAN | C200: 2406.6 | D200: 2422.53 | E200: 2379.07 | F200: 2351.53 | G200: 2308.07 | H200: 2450.07 | I200: 2493.53 | J200: 2521.07 | K200: 2466 | L200: 2395 | M200: 18.75086
A201: 192 | B201: TORNTPHARM | C201: 2669 | D201: 2685.23 | E201: 2603.77 | F201: 2538.53 | G201: 2457.07 | H201: 2750.47 | I201: 2831.93 | J201: 2897.17 | K201: 2766.7 | L201: 2620 | M201: 4.13169
A202: 193 | B202: TORNTPOWER | C202: 444.05 | D202: 448.42 | E202: 428.63 | F202: 413.22 | G202: 393.43 | H202: 463.83 | I202: 483.62 | J202: 499.03 | K202: 468.2 | L202: 433 | M202: 7.25901
A203: 194 | B203: TRENT | C203: 1020.65 | D203: 1012.62 | E203: 988.03 | F203: 955.42 | G203: 930.83 | H203: 1045.23 | I203: 1069.82 | J203: 1102.43 | K203: 1037.2 | L203: 980 | M203: 6.33017
A204: 195 | B204: UPL | C204: 632.3 | D204: 643.02 | E204: 611.28 | F204: 590.27 | G204: 558.53 | H204: 664.03 | I204: 695.77 | J204: 716.78 | K204: 674.75 | L204: 622 | M204: 54.53651
A205: 196 | B205: ULTRACEMCO | C205: 6418.45 | D205: 6487.93 | E205: 6326.72 | F205: 6234.98 | G205: 6073.77 | H205: 6579.67 | I205: 6740.88 | J205: 6832.62 | K205: 6649.15 | L205: 6396.2 | M205: 6.10393
... 29 more rows

Sheet MidCap Intra
L5: Back To Main Page
A6: FOR INTRA DAY TRADING | K6: =Main!B10 -> 2022-02-25
A9: Sr.no | B9: Scrip | C9: CLOSE RATE | D9: Pivot Point | E9: Supports | H9: Resistances
E10: S1 | F10: S2 | G10: S3 | H10: R1 | I10: R2 | J10: R3 | K10: HIGH | L10: LOW | M10: Total Trade Quanity in Lakhs
A11: 1 | B11: 3MINDIA | C11: 20568.2 | D11: 20659.92 | E11: 20208.28 | F11: 19848.37 | G11: 19396.73 | H11: 21019.83 | I11: 21471.47 | J11: 21831.38 | K11: 21111.55 | L11: 20300 | M11: 0.04518
A12: 2 | B12: AARTIDRUGS | C12: 453.4 | D12: 463.47 | E12: 439.93 | F12: 426.47 | G12: 402.93 | H12: 476.93 | I12: 500.47 | J12: 513.93 | K12: 487 | L12: 450 | M12: 2.61995
A13: 3 | B13: AARTIIND | C13: 865.85 | D13: 877.95 | E13: 848.90 | F13: 831.95 | G13: 802.90 | H13: 894.90 | I13: 923.95 | J13: 940.90 | K13: 907 | L13: 861 | M13: 12.6602
A14: 4 | B14: AAVAS | C14: 2905.2 | D14: 2920.35 | E14: 2853.70 | F14: 2802.20 | G14: 2735.55 | H14: 2971.85 | I14: 3038.50 | J14: 3090.00 | K14: 2987 | L14: 2868.85 | M14: 0.8866
A15: 5 | B15: ABB | C15: 2045.55 | D15: 2048.17 | E15: 1997.38 | F15: 1949.22 | G15: 1898.43 | H15: 2096.33 | I15: 2147.12 | J15: 2195.28 | K15: 2098.95 | L15: 2000 | M15: 3.60203
A16: 6 | B16: ABBOTINDIA | C16: 16777.6 | D16: 16675.87 | E16: 16401.73 | F16: 16025.87 | G16: 15751.73 | H16: 17051.73 | I16: 17325.87 | J16: 17701.73 | K16: 16950 | L16: 16300 | M16: 0.43783
A17: 7 | B17: ABCAPITAL | C17: 99.3 | D17: 101.65 | E17: 96.20 | F17: 93.10 | G17: 87.65 | H17: 104.75 | I17: 110.20 | J17: 113.30 | K17: 107.1 | L17: 98.55 | M17: 73.84232
A18: 8 | B18: ABFRL | C18: 250.8 | D18: 256.17 | E18: 244.63 | F18: 238.47 | G18: 226.93 | H18: 262.33 | I18: 273.87 | J18: 280.03 | K18: 267.7 | L18: 250 | M18: 56.3343
A19: 9 | B19: ACC | C19: 2014 | D19: 2045.55 | E19: 1970.45 | F19: 1926.90 | G19: 1851.80 | H19: 2089.10 | I19: 2164.20 | J19: 2207.75 | K19: 2120.65 | L19: 2002 | M19: 4.74202
A20: 10 | B20: ADANIENT | C20: 1543.95 | D20: 1573.78 | E20: 1498.97 | F20: 1453.98 | G20: 1379.17 | H20: 1618.77 | I20: 1693.58 | J20: 1738.57 | K20: 1648.6 | L20: 1528.8 | M20: 27.98065
A21: 11 | B21: ADANIGREEN | C21: 1849.75 | D21: 1857.92 | E21: 1791.83 | F21: 1733.92 | G21: 1667.83 | H21: 1915.83 | I21: 1981.92 | J21: 2039.83 | K21: 1924 | L21: 1800 | M21: 10.36033
A22: 12 | B22: ADANIPORTS | C22: 654.85 | D22: 664.93 | E22: 641.87 | F22: 628.88 | G22: 605.82 | H22: 677.92 | I22: 700.98 | J22: 713.97 | K22: 688 | L22: 651.95 | M22: 95.47717
A23: 13 | B23: ADANITRANS | C23: 1957.3 | D23: 1989.18 | E23: 1925.27 | F23: 1893.23 | G23: 1829.32 | H23: 2021.22 | I23: 2085.13 | J23: 2117.17 | K23: 2053.1 | L23: 1957.15 | M23: 1.38084
A24: 14 | B24: ADVENZYMES | C24: 262.4 | D24: 265.73 | E24: 256.67 | F24: 250.93 | G24: 241.87 | H24: 271.47 | I24: 280.53 | J24: 286.27 | K24: 274.8 | L24: 260 | M24: 1.74851
A25: 15 | B25: AEGISCHEM | C25: 181.45 | D25: 182.85 | E25: 173.70 | F25: 165.95 | G25: 156.80 | H25: 190.60 | I25: 199.75 | J25: 207.50 | K25: 192 | L25: 175.1 | M25: 11.34921
A26: 16 | B26: AFFLE | C26: 1114.5 | D26: 1135.47 | E26: 1085.08 | F26: 1055.67 | G26: 1005.28 | H26: 1164.88 | I26: 1215.27 | J26: 1244.68 | K26: 1185.85 | L26: 1106.05 | M26: 8.4051
A27: 17 | B27: AIAENG | C27: 1639.2 | D27: 1653.35 | E27: 1615.85 | F27: 1592.50 | G27: 1555.00 | H27: 1676.70 | I27: 1714.20 | J27: 1737.55 | K27: 1690.85 | L27: 1630 | M27: 0.62269
A28: 18 | B28: AJANTPHARM | C28: 1746.65 | D28: 1766.92 | E28: 1683.83 | F28: 1621.02 | G28: 1537.93 | H28: 1829.73 | I28: 1912.82 | J28: 1975.63 | K28: 1850 | L28: 1704.1 | M28: 0.66509
A29: 19 | B29: ALEMBICLTD | C29: 77.4 | D29: 78.05 | E29: 75.10 | F29: 72.80 | G29: 69.85 | H29: 80.35 | I29: 83.30 | J29: 85.60 | K29: 81 | L29: 75.75 | M29: 2.50135
A30: 20 | B30: ALKEM | C30: 3171.45 | D30: 3186.82 | E30: 3119.63 | F30: 3067.82 | G30: 3000.63 | H30: 3238.63 | I30: 3305.82 | J30: 3357.63 | K30: 3254 | L30: 3135 | M30: 0.49307
A31: 21 | B31: ALKYLAMINE | C31: 2835.5 | D31: 2864.17 | E31: 2771.33 | F31: 2707.17 | G31: 2614.33 | H31: 2928.33 | I31: 3021.17 | J31: 3085.33 | K31: 2957 | L31: 2800 | M31: 0.97763
A32: 22 | B32: ALOKINDS | C32: 21.9 | D32: 22.55 | E32: 20.95 | F32: 20.00 | G32: 18.40 | H32: 23.50 | I32: 25.10 | J32: 26.05 | K32: 24.15 | L32: 21.6 | M32: 284.18382
A33: 23 | B33: AMARAJABAT | C33: 523.7 | D33: 539.05 | E33: 504.65 | F33: 485.60 | G33: 451.20 | H33: 558.10 | I33: 592.50 | J33: 611.55 | K33: 573.45 | L33: 520 | M33: 33.15136
A34: 24 | B34: AMBER | C34: 3144.45 | D34: 3156.15 | E34: 3077.30 | F34: 3010.15 | G34: 2931.30 | H34: 3223.30 | I34: 3302.15 | J34: 3369.30 | K34: 3235 | L34: 3089 | M34: 0.61505
A35: 25 | B35: AMBUJACEM | C35: 306.95 | D35: 310.45 | E35: 298.55 | F35: 290.15 | G35: 278.25 | H35: 318.85 | I35: 330.75 | J35: 339.15 | K35: 322.35 | L35: 302.05 | M35: 128.21969
A36: 26 | B36: ANGELONE | C36: 1239.85 | D36: 1255.13 | E36: 1197.82 | F36: 1155.78 | G36: 1098.47 | H36: 1297.17 | I36: 1354.48 | J36: 1396.52 | K36: 1312.45 | L36: 1213.1 | M36: 4.7059
A37: 27 | B37: ANURAS | C37: 824.65 | D37: 823.77 | E37: 802.53 | F37: 780.42 | G37: 759.18 | H37: 845.88 | I37: 867.12 | J37: 889.23 | K37: 845 | L37: 801.65 | M37: 1.03313
A38: 28 | B38: APLAPOLLO | C38: 777.4 | D38: 788.63 | E38: 759.67 | F38: 741.93 | G38: 712.97 | H38: 806.37 | I38: 835.33 | J38: 853.07 | K38: 817.6 | L38: 770.9 | M38: 3.95275
A39: 29 | B39: APLLTD | C39: 702.45 | D39: 706.05 | E39: 688.90 | F39: 675.35 | G39: 658.20 | H39: 719.60 | I39: 736.75 | J39: 750.30 | K39: 723.2 | L39: 692.5 | M39: 4.09814
A40: 30 | B40: APOLLOHOSP | C40: 4381.95 | D40: 4422.67 | E40: 4310.33 | F40: 4238.72 | G40: 4126.38 | H40: 4494.28 | I40: 4606.62 | J40: 4678.23 | K40: 4535 | L40: 4351.05 | M40: 8.1471
A41: 31 | B41: APOLLOTYRE | C41: 178.5 | D41: 183.82 | E41: 171.13 | F41: 163.77 | G41: 151.08 | H41: 191.18 | I41: 203.87 | J41: 211.23 | K41: 196.5 | L41: 176.45 | M41: 95.53612
A42: 32 | B42: ASAHIINDIA | C42: 454.1 | D42: 455.18 | E42: 440.82 | F42: 427.53 | G42: 413.17 | H42: 468.47 | I42: 482.83 | J42: 496.12 | K42: 469.55 | L42: 441.9 | M42: 2.33324
A43: 33 | B43: ASHOKA | C43: 81.7 | D43: 84.08 | E43: 77.77 | F43: 73.83 | G43: 67.52 | H43: 88.02 | I43: 94.33 | J43: 98.27 | K43: 90.4 | L43: 80.15 | M43: 18.01482
A44: 34 | B44: ASHOKLEY | C44: 113.65 | D44: 116.15 | E44: 110.30 | F44: 106.95 | G44: 101.10 | H44: 119.50 | I44: 125.35 | J44: 128.70 | K44: 122 | L44: 112.8 | M44: 340.31871
A45: 35 | B45: ASIANPAINT | C45: 3069.05 | D45: 3106.12 | E45: 3014.43 | F45: 2959.82 | G45: 2868.13 | H45: 3160.73 | I45: 3252.42 | J45: 3307.03 | K45: 3197.8 | L45: 3051.5 | M45: 18.2345
A46: 36 | B46: ASTERDM | C46: 170.8 | D46: 171.88 | E46: 165.12 | F46: 159.43 | G46: 152.67 | H46: 177.57 | I46: 184.33 | J46: 190.02 | K46: 178.65 | L46: 166.2 | M46: 4.77093
A47: 37 | B47: ASTRAL | C47: 1783.2 | D47: 1805.12 | E47: 1743.18 | F47: 1703.17 | G47: 1641.23 | H47: 1845.13 | I47: 1907.07 | J47: 1947.08 | K47: 1867.05 | L47: 1765.1 | M47: 7.27156
A48: 38 | B48: ASTRAZEN | C48: 2636.95 | D48: 2633.60 | E48: 2533.05 | F48: 2429.15 | G48: 2328.60 | H48: 2737.50 | I48: 2838.05 | J48: 2941.95 | K48: 2734.15 | L48: 2529.7 | M48: 0.27419
A49: 39 | B49: ATGL | C49: 1565.05 | D49: 1579.77 | E49: 1545.03 | F49: 1525.02 | G49: 1490.28 | H49: 1599.78 | I49: 1634.52 | J49: 1654.53 | K49: 1614.5 | L49: 1559.75 | M49: 1.3353
A50: 40 | B50: ATUL | C50: 8705.05 | D50: 8855.70 | E50: 8471.40 | F50: 8237.75 | G50: 7853.45 | H50: 9089.35 | I50: 9473.65 | J50: 9707.30 | K50: 9240 | L50: 8622.05 | M50: 0.41944
A51: 41 | B51: AUBANK | C51: 1179.55 | D51: 1203.15 | E51: 1141.40 | F51: 1103.25 | G51: 1041.50 | H51: 1241.30 | I51: 1303.05 | J51: 1341.20 | K51: 1264.9 | L51: 1165 | M51: 13.08463
A52: 42 | B52: AUROPHARMA | C52: 605.45 | D52: 611.33 | E52: 595.22 | F52: 584.98 | G52: 568.87 | H52: 621.57 | I52: 637.68 | J52: 647.92 | K52: 627.45 | L52: 601.1 | M52: 24.9485
A53: 43 | B53: AVANTIFEED | C53: 470.85 | D53: 476.78 | E53: 444.97 | F53: 419.08 | G53: 387.27 | H53: 502.67 | I53: 534.48 | J53: 560.37 | K53: 508.6 | L53: 450.9 | M53: 2.83463
A54: 44 | B54: AXISBANK | C54: 730.3 | D54: 741.58 | E54: 714.02 | F54: 697.73 | G54: 670.17 | H54: 757.87 | I54: 785.43 | J54: 801.72 | K54: 769.15 | L54: 725.3 | M54: 130.85009
A55: 45 | B55: BAJAJ-AUTO | C55: 3478.9 | D55: 3491.07 | E55: 3422.83 | F55: 3366.77 | G55: 3298.53 | H55: 3547.13 | I55: 3615.37 | J55: 3671.43 | K55: 3559.3 | L55: 3435 | M55: 6.28362
A56: 46 | B56: BAJAJCON | C56: 154.75 | D56: 157.50 | E56: 150.50 | F56: 146.25 | G56: 139.25 | H56: 161.75 | I56: 168.75 | J56: 173.00 | K56: 164.5 | L56: 153.25 | M56: 7.88314
A57: 47 | B57: BAJAJELEC | C57: 1075.3 | D57: 1068.58 | E57: 1037.22 | F57: 999.13 | G57: 967.77 | H57: 1106.67 | I57: 1138.03 | J57: 1176.12 | K57: 1099.95 | L57: 1030.5 | M57: 1.25198
A58: 48 | B58: BAJAJFINSV | C58: 15245.2 | D58: 15447.03 | E58: 14998.17 | F58: 14751.13 | G58: 14302.27 | H58: 15694.07 | I58: 16142.93 | J58: 16389.97 | K58: 15895.9 | L58: 15200 | M58: 3.61563
A59: 49 | B59: BAJAJHLDNG | C59: 5104.35 | D59: 5099.97 | E59: 5049.93 | F59: 4995.52 | G59: 4945.48 | H59: 5154.38 | I59: 5204.42 | J59: 5258.83 | K59: 5150 | L59: 5045.55 | M59: 0.26601
A60: 50 | B60: BAJFINANCE | C60: 6627.8 | D60: 6706.82 | E60: 6513.43 | F60: 6399.07 | G60: 6205.68 | H60: 6821.18 | I60: 7014.57 | J60: 7128.93 | K60: 6900.2 | L60: 6592.45 | M60: 19.3004
A61: 51 | B61: BALAMINES | C61: 2711.95 | D61: 2752.87 | E61: 2655.73 | F61: 2599.52 | G61: 2502.38 | H61: 2809.08 | I61: 2906.22 | J61: 2962.43 | K61: 2850 | L61: 2696.65 | M61: 1.45084
A62: 52 | B62: BALKRISIND | C62: 1757.7 | D62: 1792.53 | E62: 1715.17 | F62: 1672.63 | G62: 1595.27 | H62: 1835.07 | I62: 1912.43 | J62: 1954.97 | K62: 1869.9 | L62: 1750 | M62: 4.5592
A63: 53 | B63: BALRAMCHIN | C63: 377.15 | D63: 385.78 | E63: 365.42 | F63: 353.68 | G63: 333.32 | H63: 397.52 | I63: 417.88 | J63: 429.62 | K63: 406.15 | L63: 374.05 | M63: 50.23057
A64: 54 | B64: BANDHANBNK | C64: 291.15 | D64: 297.17 | E64: 281.48 | F64: 271.82 | G64: 256.13 | H64: 306.83 | I64: 322.52 | J64: 332.18 | K64: 312.85 | L64: 287.5 | M64: 108.05931
A65: 55 | B65: BANKBARODA | C65: 100.5 | D65: 102.07 | E65: 98.53 | F65: 96.57 | G65: 93.03 | H65: 104.03 | I65: 107.57 | J65: 109.53 | K65: 105.6 | L65: 100.1 | M65: 703.41673
A66: 56 | B66: BANKINDIA | C66: 44.25 | D66: 45.67 | E66: 41.73 | F66: 39.22 | G66: 35.28 | H66: 48.18 | I66: 52.12 | J66: 54.63 | K66: 49.6 | L66: 43.15 | M66: 98.79327
A67: 57 | B67: BASF | C67: 2660.9 | D67: 2698.12 | E67: 2607.78 | F67: 2554.67 | G67: 2464.33 | H67: 2751.23 | I67: 2841.57 | J67: 2894.68 | K67: 2788.45 | L67: 2645 | M67: 0.61438
A68: 58 | B68: BATAINDIA | C68: 1776.6 | D68: 1799.70 | E68: 1739.45 | F68: 1702.30 | G68: 1642.05 | H68: 1836.85 | I68: 1897.10 | J68: 1934.25 | K68: 1859.95 | L68: 1762.55 | M68: 3.0902
A69: 59 | B69: BAYERCROP | C69: 4292.25 | D69: 4302.47 | E69: 4207.83 | F69: 4123.42 | G69: 4028.78 | H69: 4386.88 | I69: 4481.52 | J69: 4565.93 | K69: 4397.1 | L69: 4218.05 | M69: 0.21998
A70: 60 | B70: BBTC | C70: 903 | D70: 918.20 | E70: 861.00 | F70: 819.00 | G70: 761.80 | H70: 960.20 | I70: 1017.40 | J70: 1059.40 | K70: 975.4 | L70: 876.2 | M70: 1.02964
A71: 61 | B71: BDL | C71: 410.95 | D71: 416.17 | E71: 401.28 | F71: 391.62 | G71: 376.73 | H71: 425.83 | I71: 440.72 | J71: 450.38 | K71: 431.05 | L71: 406.5 | M71: 3.93634
A72: 62 | B72: BEL | C72: 187.85 | D72: 190.53 | E72: 184.32 | F72: 180.78 | G72: 174.57 | H72: 194.07 | I72: 200.28 | J72: 203.82 | K72: 196.75 | L72: 187 | M72: 83.05113
A73: 63 | B73: BEML | C73: 1472.2 | D73: 1494.07 | E73: 1438.13 | F73: 1404.07 | G73: 1348.13 | H73: 1528.13 | I73: 1584.07 | J73: 1618.13 | K73: 1550 | L73: 1460 | M73: 2.46405
A74: 64 | B74: BERGEPAINT | C74: 679.45 | D74: 691.70 | E74: 663.75 | F74: 648.05 | G74: 620.10 | H74: 707.40 | I74: 735.35 | J74: 751.05 | K74: 719.65 | L74: 676 | M74: 10.9896
A75: 65 | B75: BHARATFORG | C75: 667.6 | D75: 671.60 | E75: 655.00 | F75: 642.40 | G75: 625.80 | H75: 684.20 | I75: 700.80 | J75: 713.40 | K75: 688.2 | L75: 659 | M75: 48.66256
A76: 66 | B76: BHARATRAS | C76: 11660.45 | D76: 11753.82 | E76: 11507.63 | F76: 11354.82 | G76: 11108.63 | H76: 11906.63 | I76: 12152.82 | J76: 12305.63 | K76: 12000 | L76: 11601 | M76: 0.04563
A77: 67 | B77: BHARTIARTL | C77: 670.9 | D77: 668.30 | E77: 648.05 | F77: 625.20 | G77: 604.95 | H77: 691.15 | I77: 711.40 | J77: 734.25 | K77: 688.55 | L77: 645.45 | M77: 141.39461
A78: 68 | B78: BHEL | C78: 44.35 | D78: 45.53 | E78: 42.82 | F78: 41.28 | G78: 38.57 | H78: 47.07 | I78: 49.78 | J78: 51.32 | K78: 48.25 | L78: 44 | M78: 485.63259
A79: 69 | B79: BIOCON | C79: 374.15 | D79: 380.63 | E79: 366.42 | F79: 358.68 | G79: 344.47 | H79: 388.37 | I79: 402.58 | J79: 410.32 | K79: 394.85 | L79: 372.9 | M79: 29.49622
A80: 70 | B80: BIRLACORPN | C80: 1091 | D80: 1087.97 | E80: 1038.08 | F80: 985.17 | G80: 935.28 | H80: 1140.88 | I80: 1190.77 | J80: 1243.68 | K80: 1137.85 | L80: 1035.05 | M80: 5.25283
A81: 71 | B81: BLUEDART | C81: 5998.65 | D81: 5952.00 | E81: 5856.65 | F81: 5714.65 | G81: 5619.30 | H81: 6094.00 | I81: 6189.35 | J81: 6331.35 | K81: 6047.35 | L81: 5810 | M81: 0.25379
A82: 72 | B82: BLUESTARCO | C82: 1015.55 | D82: 1020.30 | E82: 995.25 | F82: 974.95 | G82: 949.90 | H82: 1040.60 | I82: 1065.65 | J82: 1085.95 | K82: 1045.35 | L82: 1000 | M82: 0.77647
A83: 73 | B83: BOSCHLTD | C83: 15016.65 | D83: 15219.08 | E83: 14772.57 | F83: 14528.48 | G83: 14081.97 | H83: 15463.17 | I83: 15909.68 | J83: 16153.77 | K83: 15665.6 | L83: 14975 | M83: 0.50909
A84: 74 | B84: BPCL | C84: 333.05 | D84: 338.72 | E84: 325.43 | F84: 317.82 | G84: 304.53 | H84: 346.33 | I84: 359.62 | J84: 367.23 | K84: 352 | L84: 331.1 | M84: 70.47485
A85: 75 | B85: BRIGADE | C85: 467.7 | D85: 474.77 | E85: 453.03 | F85: 438.37 | G85: 416.63 | H85: 489.43 | I85: 511.17 | J85: 525.83 | K85: 496.5 | L85: 460.1 | M85: 3.40635
A86: 76 | B86: BRITANNIA | C86: 3446 | D86: 3454.67 | E86: 3405.33 | F86: 3364.67 | G86: 3315.33 | H86: 3495.33 | I86: 3544.67 | J86: 3585.33 | K86: 3504 | L86: 3414 | M86: 5.29995
A87: 77 | B87: BSE | C87: 1874.85 | D87: 1914.57 | E87: 1819.13 | F87: 1763.42 | G87: 1667.98 | H87: 1970.28 | I87: 2065.72 | J87: 2121.43 | K87: 2010 | L87: 1858.85 | M87: 20.23349
A88: 78 | B88: BSOFT | C88: 382.2 | D88: 387.40 | E88: 374.80 | F88: 367.40 | G88: 354.80 | H88: 394.80 | I88: 407.40 | J88: 414.80 | K88: 400 | L88: 380 | M88: 35.98722
A89: 79 | B89: RBA | C89: =VLOOKUP($B89,[1]EQ!$A$1:$L$2000,6,0) -> 96.25 | D89: =(C89+K89+L89)/3 -> 98.50 | E89: =+(D89*2)-K89 -> 92.75 | F89: =+D89-K89+L89 -> 89.25 | G89: =L89-2*(K89-D89) -> 83.50 | H89: =(D89*2)-L89 -> 102.00 | I89: =+D89+K89-L89 -> 107.75 | J89: =K89+2*(D89-L89) -> 111.25 | K89: =VLOOKUP($B89,[1]EQ!$A$1:$L$2000,4,0) -> 104.25 | L89: =VLOOKUP($B89,[1]EQ!$A$1:$L$2000,5,0) -> 95 | M89: =(VLOOKUP($B89,[1]EQ!$A$1:$L$2000,9,0)/100000) -> 84.00524
A90: 80 | B90: CADILAHC | C90: 344.75 | D90: 350.52 | E90: 337.08 | F90: 329.42 | G90: 315.98 | H90: 358.18 | I90: 371.62 | J90: 379.28 | K90: 363.95 | L90: 342.85 | M90: 26.70819
A91: 81 | B91: CAMS | C91: 2284.15 | D91: 2294.38 | E91: 2219.77 | F91: 2155.38 | G91: 2080.77 | H91: 2358.77 | I91: 2433.38 | J91: 2497.77 | K91: 2369 | L91: 2230 | M91: 5.37242
A92: 82 | B92: CANBK | C92: 208.3 | D92: 212.85 | E92: 201.70 | F92: 195.10 | G92: 183.95 | H92: 219.45 | I92: 230.60 | J92: 237.20 | K92: 224 | L92: 206.25 | M92: 207.98209
A93: 83 | B93: CANFINHOME | C93: 547.3 | D93: 557.30 | E93: 532.10 | F93: 516.90 | G93: 491.70 | H93: 572.50 | I93: 597.70 | J93: 612.90 | K93: 582.5 | L93: 542.1 | M93: 12.99065
A94: 84 | B94: CAPLIPOINT | C94: 660.35 | D94: 673.67 | E94: 636.68 | F94: 613.02 | G94: 576.03 | H94: 697.33 | I94: 734.32 | J94: 757.98 | K94: 710.65 | L94: 650 | M94: 1.55112
A95: 85 | B95: CARBORUNIV | C95: 829.75 | D95: 829.75 | E95: 808.00 | F95: 786.25 | G95: 764.50 | H95: 851.50 | I95: 873.25 | J95: 895.00 | K95: 851.5 | L95: 808 | M95: 2.01347
A96: 86 | B96: CASTROLIND | C96: 105.9 | D96: 106.83 | E96: 103.57 | F96: 101.23 | G96: 97.97 | H96: 109.17 | I96: 112.43 | J96: 114.77 | K96: 110.1 | L96: 104.5 | M96: 18.01153
A97: 87 | B97: CCL | C97: 425.75 | D97: 431.98 | E97: 413.57 | F97: 401.38 | G97: 382.97 | H97: 444.17 | I97: 462.58 | J97: 474.77 | K97: 450.4 | L97: 419.8 | M97: 11.04478
A98: 88 | B98: CDSL | C98: 1292.45 | D98: 1309.78 | E98: 1264.57 | F98: 1236.68 | G98: 1191.47 | H98: 1337.67 | I98: 1382.88 | J98: 1410.77 | K98: 1355 | L98: 1281.9 | M98: 11.94241
A99: 89 | B99: CEATLTD | C99: 945.9 | D99: 954.92 | E99: 927.03 | F99: 908.17 | G99: 880.28 | H99: 973.78 | I99: 1001.67 | J99: 1020.53 | K99: 982.8 | L99: 936.05 | M99: 1.17296
A100: 90 | B100: CENTRALBK | C100: 17.65 | D100: 18.03 | E100: 17.17 | F100: 16.68 | G100: 15.82 | H100: 18.52 | I100: 19.38 | J100: 19.87 | K100: 18.9 | L100: 17.55 | M100: 55.44223
A101: 91 | B101: CENTURYPLY | C101: 584.45 | D101: 588.30 | E101: 572.60 | F101: 560.75 | G101: 545.05 | H101: 600.15 | I101: 615.85 | J101: 627.70 | K101: 604 | L101: 576.45 | M101: 2.6055
A102: 92 | B102: CENTURYTEX | C102: 736.15 | D102: 740.37 | E102: 720.78 | F102: 705.42 | G102: 685.83 | H102: 755.73 | I102: 775.32 | J102: 790.68 | K102: 759.95 | L102: 725 | M102: 2.78827
A103: 93 | B103: CERA | C103: 4236.65 | D103: 4220.55 | E103: 4116.10 | F103: 3995.55 | G103: 3891.10 | H103: 4341.10 | I103: 4445.55 | J103: 4566.10 | K103: 4325 | L103: 4100 | M103: 0.19956
A104: 94 | B104: CESC | C104: 74.9 | D104: 74.37 | E104: 72.73 | F104: 70.57 | G104: 68.93 | H104: 76.53 | I104: 78.17 | J104: 80.33 | K104: 76 | L104: 72.2 | M104: 32.88252
A105: 95 | B105: CGCL | C105: 581.5 | D105: 583.52 | E105: 569.03 | F105: 556.57 | G105: 542.08 | H105: 595.98 | I105: 610.47 | J105: 622.93 | K105: 598 | L105: 571.05 | M105: 2.60838
A106: 96 | B106: CGPOWER | C106: 166.05 | D106: 167.70 | E106: 164.40 | F106: 162.75 | G106: 159.45 | H106: 169.35 | I106: 172.65 | J106: 174.30 | K106: 171 | L106: 166.05 | M106: 18.8419
A107: 97 | B107: CHALET | C107: 246.55 | D107: 249.85 | E107: 238.70 | F107: 230.85 | G107: 219.70 | H107: 257.70 | I107: 268.85 | J107: 276.70 | K107: 261 | L107: 242 | M107: 9.23073
A108: 98 | B108: CHAMBLFERT | C108: 353.6 | D108: 359.45 | E108: 342.90 | F108: 332.20 | G108: 315.65 | H108: 370.15 | I108: 386.70 | J108: 397.40 | K108: 376 | L108: 348.75 | M108: 20.71608
A109: 99 | B109: CHOLAFIN | C109: 647.85 | D109: 655.87 | E109: 634.98 | F109: 622.12 | G109: 601.23 | H109: 668.73 | I109: 689.62 | J109: 702.48 | K109: 676.75 | L109: 643 | M109: 29.82071
A110: 100 | B110: CHOLAHLDNG | C110: 637.3 | D110: 639.75 | E110: 626.90 | F110: 616.50 | G110: 603.65 | H110: 650.15 | I110: 663.00 | J110: 673.40 | K110: 652.6 | L110: 629.35 | M110: 0.41667
A111: 101 | B111: CIPLA | C111: 895.8 | D111: 897.57 | E111: 886.38 | F111: 876.97 | G111: 865.78 | H111: 906.98 | I111: 918.17 | J111: 927.58 | K111: 908.75 | L111: 888.15 | M111: 20.03438
A112: 102 | B112: COALINDIA | C112: 150 | D112: 151.93 | E112: 147.07 | F112: 144.13 | G112: 139.27 | H112: 154.87 | I112: 159.73 | J112: 162.67 | K112: 156.8 | L112: 149 | M112: 121.1534
A113: 103 | B113: COCHINSHIP | C113: 287.3 | D113: 290.08 | E113: 282.27 | F113: 277.23 | G113: 269.42 | H113: 295.12 | I113: 302.93 | J113: 307.97 | K113: 297.9 | L113: 285.05 | M113: 3.15499
A114: 104 | B114: COFORGE | C114: 4226.05 | D114: 4244.67 | E114: 4169.93 | F114: 4113.82 | G114: 4039.08 | H114: 4300.78 | I114: 4375.52 | J114: 4431.63 | K114: 4319.4 | L114: 4188.55 | M114: 3.5848
A115: 105 | B115: COLPAL | C115: 1397.35 | D115: 1404.78 | E115: 1384.57 | F115: 1371.78 | G115: 1351.57 | H115: 1417.57 | I115: 1437.78 | J115: 1450.57 | K115: 1425 | L115: 1392 | M115: 4.7746
A116: 106 | B116: CONCOR | C116: 558.35 | D116: 563.35 | E116: 551.00 | F116: 543.65 | G116: 531.30 | H116: 570.70 | I116: 583.05 | J116: 590.40 | K116: 575.7 | L116: 556 | M116: 19.33204
A117: 107 | B117: COROMANDEL | C117: 733.85 | D117: 746.65 | E117: 716.75 | F117: 699.65 | G117: 669.75 | H117: 763.75 | I117: 793.65 | J117: 810.75 | K117: 776.55 | L117: 729.55 | M117: 4.16197
A118: 108 | B118: CREDITACC | C118: 669.75 | D118: 674.60 | E118: 657.15 | F118: 644.55 | G118: 627.10 | H118: 687.20 | I118: 704.65 | J118: 717.25 | K118: 692.05 | L118: 662 | M118: 0.8912
A119: 109 | B119: CRISIL | C119: 2600.95 | D119: 2621.40 | E119: 2519.55 | F119: 2438.15 | G119: 2336.30 | H119: 2702.80 | I119: 2804.65 | J119: 2886.05 | K119: 2723.25 | L119: 2540 | M119: 0.26249
A120: 110 | B120: CROMPTON | C120: 405.5 | D120: 406.48 | E120: 393.42 | F120: 381.33 | G120: 368.27 | H120: 418.57 | I120: 431.63 | J120: 443.72 | K120: 419.55 | L120: 394.4 | M120: 70.89213
A121: 111 | B121: CSBBANK | C121: 210.75 | D121: 214.83 | E121: 204.27 | F121: 197.78 | G121: 187.22 | H121: 221.32 | I121: 231.88 | J121: 238.37 | K121: 225.4 | L121: 208.35 | M121: 3.71533
A122: 112 | B122: CUB | C122: 122.8 | D122: 123.92 | E122: 120.33 | F122: 117.87 | G122: 114.28 | H122: 126.38 | I122: 129.97 | J122: 132.43 | K122: 127.5 | L122: 121.45 | M122: 32.76167
A123: 113 | B123: CUMMINSIND | C123: 927.7 | D123: 934.90 | E123: 912.05 | F123: 896.40 | G123: 873.55 | H123: 950.55 | I123: 973.40 | J123: 989.05 | K123: 957.75 | L123: 919.25 | M123: 4.25308
A124: 114 | B124: CYIENT | C124: 791.45 | D124: 797.82 | E124: 777.58 | F124: 763.72 | G124: 743.48 | H124: 811.68 | I124: 831.92 | J124: 845.78 | K124: 818.05 | L124: 783.95 | M124: 3.42937
A125: 115 | B125: DABUR | C125: 533.7 | D125: 533.22 | E125: 526.88 | F125: 520.07 | G125: 513.73 | H125: 540.03 | I125: 546.37 | J125: 553.18 | K125: 539.55 | L125: 526.4 | M125: 30.36292
A126: 116 | B126: DALBHARAT | C126: 1536.85 | D126: 1557.72 | E126: 1491.68 | F126: 1446.52 | G126: 1380.48 | H126: 1602.88 | I126: 1668.92 | J126: 1714.08 | K126: 1623.75 | L126: 1512.55 | M126: 5.16658
A127: 117 | B127: DBL | C127: 239.8 | D127: 245.87 | E127: 231.98 | F127: 224.17 | G127: 210.28 | H127: 253.68 | I127: 267.57 | J127: 275.38 | K127: 259.75 | L127: 238.05 | M127: 12.18805
A128: 118 | B128: DCBBANK | C128: 68.95 | D128: 69.47 | E128: 67.33 | F128: 65.72 | G128: 63.58 | H128: 71.08 | I128: 73.22 | J128: 74.83 | K128: 71.6 | L128: 67.85 | M128: 18.07395
A129: 119 | B129: DCMSHRIRAM | C129: 937.95 | D129: 947.22 | E129: 913.43 | F129: 888.92 | G129: 855.13 | H129: 971.73 | I129: 1005.52 | J129: 1030.03 | K129: 981 | L129: 922.7 | M129: 1.05061
A130: 120 | B130: DEEPAKNTR | C130: 1855.35 | D130: 1890.80 | E130: 1807.10 | F130: 1758.85 | G130: 1675.15 | H130: 1939.05 | I130: 2022.75 | J130: 2071.00 | K130: 1974.5 | L130: 1842.55 | M130: 13.692
A131: 121 | B131: DELTACORP | C131: 244.65 | D131: 250.33 | E131: 236.72 | F131: 228.78 | G131: 215.17 | H131: 258.27 | I131: 271.88 | J131: 279.82 | K131: 263.95 | L131: 242.4 | M131: 71.05332
A132: 122 | B132: DHANI | C132: 67.05 | D132: 68.80 | E132: 65.30 | F132: 63.55 | G132: 60.05 | H132: 70.55 | I132: 74.05 | J132: 75.80 | K132: 72.3 | L132: 67.05 | M132: 289.33761
A133: 123 | B133: DHANUKA | C133: 711.1 | D133: 702.62 | E133: 671.23 | F133: 631.37 | G133: 599.98 | H133: 742.48 | I133: 773.87 | J133: 813.73 | K133: 734 | L133: 662.75 | M133: 2.3466
A134: 124 | B134: DIVISLAB | C134: 3936.65 | D134: 3994.72 | E134: 3858.53 | F134: 3780.42 | G134: 3644.23 | H134: 4072.83 | I134: 4209.02 | J134: 4287.13 | K134: 4130.9 | L134: 3916.6 | M134: 7.23045
A135: 125 | B135: DIXON | C135: 4049.6 | D135: 4070.15 | E135: 3981.45 | F135: 3913.30 | G135: 3824.60 | H135: 4138.30 | I135: 4227.00 | J135: 4295.15 | K135: 4158.85 | L135: 4002 | M135: 5.44656
A136: 126 | B136: DLF | C136: 320.5 | D136: 326.00 | E136: 312.55 | F136: 304.60 | G136: 291.15 | H136: 333.95 | I136: 347.40 | J136: 355.35 | K136: 339.45 | L136: 318.05 | M136: 159.26498
A137: 127 | B137: DMART | C137: 4014.65 | D137: 4031.48 | E137: 3931.02 | F137: 3847.38 | G137: 3746.92 | H137: 4115.12 | I137: 4215.58 | J137: 4299.22 | K137: 4131.95 | L137: 3947.85 | M137: 5.52288
A138: 128 | B138: DRREDDY | C138: 4092.5 | D138: 4097.15 | E138: 4045.30 | F138: 3998.10 | G138: 3946.25 | H138: 4144.35 | I138: 4196.20 | J138: 4243.40 | K138: 4149 | L138: 4049.95 | M138: 6.97127
A139: 129 | B139: ECLERX | C139: 2133.35 | D139: 2131.85 | E139: 2054.50 | F139: 1975.65 | G139: 1898.30 | H139: 2210.70 | I139: 2288.05 | J139: 2366.90 | K139: 2209.2 | L139: 2053 | M139: 0.70169
A140: 130 | B140: EDELWEISS | C140: 55.45 | D140: 56.57 | E140: 54.13 | F140: 52.82 | G140: 50.38 | H140: 57.88 | I140: 60.32 | J140: 61.63 | K140: 59 | L140: 55.25 | M140: 18.12608
A141: 131 | B141: EICHERMOT | C141: 2617.15 | D141: 2631.98 | E141: 2572.72 | F141: 2528.28 | G141: 2469.02 | H141: 2676.42 | I141: 2735.68 | J141: 2780.12 | K141: 2691.25 | L141: 2587.55 | M141: 7.75965
A142: 132 | B142: EIDPARRY | C142: 405 | D142: 410.13 | E142: 396.72 | F142: 388.43 | G142: 375.02 | H142: 418.42 | I142: 431.83 | J142: 440.12 | K142: 423.55 | L142: 401.85 | M142: 5.23099
A143: 133 | B143: EIHOTEL | C143: 125.3 | D143: 126.70 | E143: 123.60 | F143: 121.90 | G143: 118.80 | H143: 128.40 | I143: 131.50 | J143: 133.20 | K143: 129.8 | L143: 125 | M143: 4.87278
A144: 134 | B144: ELGIEQUIP | C144: 326.3 | D144: 338.38 | E144: 307.92 | F144: 289.53 | G144: 259.07 | H144: 356.77 | I144: 387.23 | J144: 405.62 | K144: 368.85 | L144: 320 | M144: 22.85693
A145: 135 | B145: EMAMILTD | C145: 474.15 | D145: 471.72 | E145: 462.48 | F145: 450.82 | G145: 441.58 | H145: 483.38 | I145: 492.62 | J145: 504.28 | K145: 480.95 | L145: 460.05 | M145: 4.98482
A146: 136 | B146: ENDURANCE | C146: 1354.55 | D146: 1356.70 | E146: 1315.40 | F146: 1276.25 | G146: 1234.95 | H146: 1395.85 | I146: 1437.15 | J146: 1476.30 | K146: 1398 | L146: 1317.55 | M146: 0.38771
A147: 137 | B147: ENGINERSIN | C147: 58.25 | D147: 59.17 | E147: 57.08 | F147: 55.92 | G147: 53.83 | H147: 60.33 | I147: 62.42 | J147: 63.58 | K147: 61.25 | L147: 58 | M147: 22.46826
A148: 138 | B148: EPL | C148: 157.85 | D148: 158.98 | E148: 154.97 | F148: 152.08 | G148: 148.07 | H148: 161.87 | I148: 165.88 | J148: 168.77 | K148: 163 | L148: 156.1 | M148: 3.47017
A149: 139 | B149: EQUITAS | C149: 102.5 | D149: 103.93 | E149: 98.97 | F149: 95.43 | G149: 90.47 | H149: 107.47 | I149: 112.43 | J149: 115.97 | K149: 108.9 | L149: 100.4 | M149: 11.24242
A150: 140 | B150: EQUITASBNK | C150: 50.75 | D150: 51.62 | E150: 49.13 | F150: 47.52 | G150: 45.03 | H150: 53.23 | I150: 55.72 | J150: 57.33 | K150: 54.1 | L150: 50 | M150: 12.65689
A151: 141 | B151: ERIS | C151: 636.25 | D151: 643.10 | E151: 616.20 | F151: 596.15 | G151: 569.25 | H151: 663.15 | I151: 690.05 | J151: 710.10 | K151: 670 | L151: 623.05 | M151: 0.49722
A152: 142 | B152: ESCORTS | C152: 1795.2 | D152: 1809.57 | E152: 1766.73 | F152: 1738.27 | G152: 1695.43 | H152: 1838.03 | I152: 1880.87 | J152: 1909.33 | K152: 1852.4 | L152: 1781.1 | M152: 22.13011
A153: 143 | B153: EXIDEIND | C153: 141.4 | D153: 143.95 | E153: 137.95 | F153: 134.50 | G153: 128.50 | H153: 147.40 | I153: 153.40 | J153: 156.85 | K153: 149.95 | L153: 140.5 | M153: 46.33642
A154: 144 | B154: FACT | C154: 99.9 | D154: 102.82 | E154: 94.63 | F154: 89.37 | G154: 81.18 | H154: 108.08 | I154: 116.27 | J154: 121.53 | K154: 111 | L154: 97.55 | M154: 3.57208
A155: 145 | B155: FDC | C155: 265.1 | D155: 263.20 | E155: 256.95 | F155: 248.80 | G155: 242.55 | H155: 271.35 | I155: 277.60 | J155: 285.75 | K155: 269.45 | L155: 255.05 | M155: 3.20123
A156: 146 | B156: FEDERALBNK | C156: 93.85 | D156: 94.67 | E156: 91.78 | F156: 89.72 | G156: 86.83 | H156: 96.73 | I156: 99.62 | J156: 101.68 | K156: 97.55 | L156: 92.6 | M156: 396.43527
A157: 147 | B157: FINCABLES | C157: 395.85 | D157: 398.13 | E157: 372.12 | F157: 348.38 | G157: 322.37 | H157: 421.87 | I157: 447.88 | J157: 471.62 | K157: 424.15 | L157: 374.4 | M157: 2.08059
A158: 148 | B158: FINEORG | C158: 3947.4 | D158: 3885.98 | E158: 3811.97 | F158: 3676.53 | G158: 3602.52 | H158: 4021.42 | I158: 4095.43 | J158: 4230.87 | K158: 3960 | L158: 3750.55 | M158: 0.57972
A159: 149 | B159: FINPIPE | C159: 141.7 | D159: 143.72 | E159: 138.08 | F159: 134.47 | G159: 128.83 | H159: 147.33 | I159: 152.97 | J159: 156.58 | K159: 149.35 | L159: 140.1 | M159: 10.66878
A160: 150 | B160: FLUOROCHEM | C160: 2561.5 | D160: 2591.00 | E160: 2532.00 | F160: 2502.50 | G160: 2443.50 | H160: 2620.50 | I160: 2679.50 | J160: 2709.00 | K160: 2650 | L160: 2561.5 | M160: 0.28998
A161: 151 | B161: FORTIS | C161: 233.3 | D161: 233.78 | E161: 228.52 | F161: 223.73 | G161: 218.47 | H161: 238.57 | I161: 243.83 | J161: 248.62 | K161: 239.05 | L161: 229 | M161: 25.47489
A162: 152 | B162: FRETAIL | C162: 43.15 | D162: 44.13 | E162: 41.82 | F162: 40.48 | G162: 38.17 | H162: 45.47 | I162: 47.78 | J162: 49.12 | K162: 46.45 | L162: 42.8 | M162: 51.41913
A163: 153 | B163: FSL | C163: 121.05 | D163: 126.18 | E163: 112.37 | F163: 103.68 | G163: 89.87 | H163: 134.87 | I163: 148.68 | J163: 157.37 | K163: 140 | L163: 117.5 | M163: 88.9673
A164: 154 | B164: GAEL | C164: 177.35 | D164: 179.02 | E164: 172.83 | F164: 168.32 | G164: 162.13 | H164: 183.53 | I164: 189.72 | J164: 194.23 | K164: 185.2 | L164: 174.5 | M164: 6.48335
A165: 155 | B165: GAIL | C165: 129.75 | D165: 131.50 | E165: 126.85 | F165: 123.95 | G165: 119.30 | H165: 134.40 | I165: 139.05 | J165: 141.95 | K165: 136.15 | L165: 128.6 | M165: 134.01506
A166: 156 | B166: GALAXYSURF | C166: 2707.8 | D166: 2727.08 | E166: 2668.27 | F166: 2628.73 | G166: 2569.92 | H166: 2766.62 | I166: 2825.43 | J166: 2864.97 | K166: 2785.9 | L166: 2687.55 | M166: 0.23205
A167: 157 | B167: GARFIBRES | C167: 2831.3 | D167: 2802.98 | E167: 2730.97 | F167: 2630.63 | G167: 2558.62 | H167: 2903.32 | I167: 2975.33 | J167: 3075.67 | K167: 2875 | L167: 2702.65 | M167: 0.19242
A168: 158 | B168: GESHIP | C168: 308.9 | D168: 309.20 | E168: 305.65 | F168: 302.40 | G168: 298.85 | H168: 312.45 | I168: 316.00 | J168: 319.25 | K168: 312.75 | L168: 305.95 | M168: 5.64137
A169: 159 | B169: GICRE | C169: 110.9 | D169: 113.22 | E169: 106.78 | F169: 102.67 | G169: 96.23 | H169: 117.33 | I169: 123.77 | J169: 127.88 | K169: 119.65 | L169: 109.1 | M169: 8.08314
A170: 160 | B170: GILLETTE | C170: 4903.35 | D170: 4911.70 | E170: 4828.40 | F170: 4753.45 | G170: 4670.15 | H170: 4986.65 | I170: 5069.95 | J170: 5144.90 | K170: 4995 | L170: 4836.75 | M170: 0.09366
A171: 161 | B171: GLAND | C171: 3296.15 | D171: 3276.05 | E171: 3222.10 | F171: 3148.05 | G171: 3094.10 | H171: 3350.10 | I171: 3404.05 | J171: 3478.10 | K171: 3330 | L171: 3202 | M171: 1.49508
A172: 162 | B172: GLAXO | C172: 1500.25 | D172: 1518.48 | E172: 1468.57 | F172: 1436.88 | G172: 1386.97 | H172: 1550.17 | I172: 1600.08 | J172: 1631.77 | K172: 1568.4 | L172: 1486.8 | M172: 0.45066
A173: 163 | B173: GLENMARK | C173: 429.8 | D173: 433.85 | E173: 418.95 | F173: 408.10 | G173: 393.20 | H173: 444.70 | I173: 459.60 | J173: 470.45 | K173: 448.75 | L173: 423 | M173: 13.3469
A174: 164 | B174: GMMPFAUDLR | C174: 4126 | D174: 4195.33 | E174: 4040.67 | F174: 3955.33 | G174: 3800.67 | H174: 4280.67 | I174: 4435.33 | J174: 4520.67 | K174: 4350 | L174: 4110 | M174: 0.38812
A175: 165 | B175: GMRINFRA | C175: 34.5 | D175: 35.28 | E175: 33.07 | F175: 31.63 | G175: 29.42 | H175: 36.72 | I175: 38.93 | J175: 40.37 | K175: 37.5 | L175: 33.85 | M175: 185.05953
A176: 166 | B176: GNFC | C176: 508 | D176: 515.50 | E176: 497.50 | F176: 487.00 | G176: 469.00 | H176: 526.00 | I176: 544.00 | J176: 554.50 | K176: 533.5 | L176: 505 | M176: 26.82093
A177: 167 | B177: GODFRYPHLP | C177: 951.35 | D177: 964.13 | E177: 920.22 | F177: 889.08 | G177: 845.17 | H177: 995.27 | I177: 1039.18 | J177: 1070.32 | K177: 1008.05 | L177: 933 | M177: 0.42562
A178: 168 | B178: GODREJAGRO | C178: 465.4 | D178: 467.63 | E178: 457.77 | F178: 450.13 | G178: 440.27 | H178: 475.27 | I178: 485.13 | J178: 492.77 | K178: 477.5 | L178: 460 | M178: 1.20895
A179: 169 | B179: GODREJCP | C179: 771.15 | D179: 777.93 | E179: 759.82 | F179: 748.48 | G179: 730.37 | H179: 789.27 | I179: 807.38 | J179: 818.72 | K179: 796.05 | L179: 766.6 | M179: 8.87861
A180: 170 | B180: GODREJIND | C180: 509.7 | D180: 502.67 | E180: 482.03 | F180: 454.37 | G180: 433.73 | H180: 530.33 | I180: 550.97 | J180: 578.63 | K180: 523.3 | L180: 475 | M180: 5.03595
A181: 171 | B181: GODREJPROP | C181: 1451.3 | D181: 1480.77 | E181: 1413.53 | F181: 1375.77 | G181: 1308.53 | H181: 1518.53 | I181: 1585.77 | J181: 1623.53 | K181: 1548 | L181: 1443 | M181: 17.88534
A182: 172 | B182: GPPL | C182: 80.9 | D182: 81.43 | E182: 79.52 | F182: 78.13 | G182: 76.22 | H182: 82.82 | I182: 84.73 | J182: 86.12 | K182: 83.35 | L182: 80.05 | M182: 4.55842
A183: 173 | B183: GRANULES | C183: 267.3 | D183: 271.15 | E183: 261.35 | F183: 255.40 | G183: 245.60 | H183: 277.10 | I183: 286.90 | J183: 292.85 | K183: 280.95 | L183: 265.2 | M183: 18.81016
A184: 174 | B184: GRAPHITE | C184: 425.75 | D184: 435.55 | E184: 409.20 | F184: 392.65 | G184: 366.30 | H184: 452.10 | I184: 478.45 | J184: 495.00 | K184: 461.9 | L184: 419 | M184: 10.01573
A185: 175 | B185: GRASIM | C185: 1544.35 | D185: 1577.43 | E185: 1501.92 | F185: 1459.48 | G185: 1383.97 | H185: 1619.87 | I185: 1695.38 | J185: 1737.82 | K185: 1652.95 | L185: 1535 | M185: 12.55601
A186: 176 | B186: GREAVESCOT | C186: 159.85 | D186: 162.05 | E186: 154.70 | F186: 149.55 | G186: 142.20 | H186: 167.20 | I186: 174.55 | J186: 179.70 | K186: 169.4 | L186: 156.9 | M186: 38.09282
A187: 177 | B187: GRINDWELL | C187: 1540.4 | D187: 1553.38 | E187: 1491.82 | F187: 1443.23 | G187: 1381.67 | H187: 1601.97 | I187: 1663.53 | J187: 1712.12 | K187: 1614.95 | L187: 1504.8 | M187: 2.28139
A188: 178 | B188: GSFC | C188: 116.7 | D188: 117.88 | E188: 114.22 | F188: 111.73 | G188: 108.07 | H188: 120.37 | I188: 124.03 | J188: 126.52 | K188: 121.55 | L188: 115.4 | M188: 21.56474
A189: 179 | B189: GSPL | C189: 269.65 | D189: 274.00 | E189: 261.00 | F189: 252.35 | G189: 239.35 | H189: 282.65 | I189: 295.65 | J189: 304.30 | K189: 287 | L189: 265.35 | M189: 7.61357
A190: 180 | B190: GUJALKALI | C190: 602.1 | D190: 617.85 | E190: 582.55 | F190: 563.00 | G190: 527.70 | H190: 637.40 | I190: 672.70 | J190: 692.25 | K190: 653.15 | L190: 598.3 | M190: 3.94661
A191: 181 | B191: GUJGASLTD | C191: 572.75 | D191: 583.13 | E191: 554.87 | F191: 536.98 | G191: 508.72 | H191: 601.02 | I191: 629.28 | J191: 647.17 | K191: 611.4 | L191: 565.25 | M191: 17.72989
A192: 182 | B192: HAL | C192: 1276.25 | D192: 1271.85 | E192: 1244.40 | F192: 1212.55 | G192: 1185.10 | H192: 1303.70 | I192: 1331.15 | J192: 1363.00 | K192: 1299.3 | L192: 1240 | M192: 6.92025
A193: 183 | B193: HAPPSTMNDS | C193: 944.5 | D193: 954.62 | E193: 934.38 | F193: 924.27 | G193: 904.03 | H193: 964.73 | I193: 984.97 | J193: 995.08 | K193: 974.85 | L193: 944.5 | M193: 3.85996
A194: 184 | B194: HATHWAY | C194: 17.05 | D194: 17.35 | E194: 16.50 | F194: 15.95 | G194: 15.10 | H194: 17.90 | I194: 18.75 | J194: 19.30 | K194: 18.2 | L194: 16.8 | M194: 80.62627
A195: 185 | B195: HATSUN | C195: 1077.5 | D195: 1079.10 | E195: 1050.70 | F195: 1023.90 | G195: 995.50 | H195: 1105.90 | I195: 1134.30 | J195: 1161.10 | K195: 1107.5 | L195: 1052.3 | M195: 0.92814
A196: 186 | B196: HAVELLS | C196: 1147.4 | D196: 1155.90 | E196: 1131.55 | F196: 1115.70 | G196: 1091.35 | H196: 1171.75 | I196: 1196.10 | J196: 1211.95 | K196: 1180.25 | L196: 1140.05 | M196: 16.58545
A197: 187 | B197: HCLTECH | C197: 1098.55 | D197: 1108.50 | E197: 1082.05 | F197: 1065.55 | G197: 1039.10 | H197: 1125.00 | I197: 1151.45 | J197: 1167.95 | K197: 1134.95 | L197: 1092 | M197: 54.69084
A198: 188 | B198: HDFC | C198: 2343.05 | D198: 2358.35 | E198: 2315.70 | F198: 2288.35 | G198: 2245.70 | H198: 2385.70 | I198: 2428.35 | J198: 2455.70 | K198: 2401 | L198: 2331 | M198: 50.5823
A199: 189 | B199: HDFCAMC | C199: 2021.05 | D199: 2059.62 | E199: 1971.43 | F199: 1921.82 | G199: 1833.63 | H199: 2109.23 | I199: 2197.42 | J199: 2247.03 | K199: 2147.8 | L199: 2010 | M199: 6.06929
A200: 190 | B200: HDFCBANK | C200: 1419.4 | D200: 1433.83 | E200: 1392.72 | F200: 1366.03 | G200: 1324.92 | H200: 1460.52 | I200: 1501.63 | J200: 1528.32 | K200: 1474.95 | L200: 1407.15 | M200: 118.15383
A201: 191 | B201: HDFCLIFE | C201: 532.95 | D201: 540.67 | E201: 521.33 | F201: 509.72 | G201: 490.38 | H201: 552.28 | I201: 571.62 | J201: 583.23 | K201: 560 | L201: 529.05 | M201: 55.15851
A202: 192 | B202: HEG | C202: 1043.8 | D202: 1081.95 | E202: 993.85 | F202: 943.90 | G202: 855.80 | H202: 1131.90 | I202: 1220.00 | J202: 1269.95 | K202: 1170.05 | L202: 1032 | M202: 5.36908
A203: 193 | B203: HEIDELBERG | C203: 188.35 | D203: 189.63 | E203: 183.72 | F203: 179.08 | G203: 173.17 | H203: 194.27 | I203: 200.18 | J203: 204.82 | K203: 195.55 | L203: 185 | M203: 2.29915
A204: 194 | B204: HEMIPROP | C204: 99.9 | D204: 101.95 | E204: 97.00 | F204: 94.10 | G204: 89.15 | H204: 104.85 | I204: 109.80 | J204: 112.70 | K204: 106.9 | L204: 99.05 | M204: 19.36083
A205: 195 | B205: HEROMOTOCO | C205: 2490.4 | D205: 2518.33 | E205: 2412.07 | F205: 2333.73 | G205: 2227.47 | H205: 2596.67 | I205: 2702.93 | J205: 2781.27 | K205: 2624.6 | L205: 2440 | M205: 19.34361
A206: 196 | B206: HFCL | C206: 63.85 | D206: 65.38 | E206: 61.47 | F206: 59.08 | G206: 55.17 | H206: 67.77 | I206: 71.68 | J206: 74.07 | K206: 69.3 | L206: 63 | M206: 189.06002
... 319 more rows

Sheet Bulk Deals
E6: Back To Main Page
A7: Subject : | B7: BULK DEAL | D7: =Main!B10 -> 2022-02-25
A9: Date | B9: Scrip code | C9: Scrip Name | D9: Client Name | E9: Buy / Sell | F9: Quantity Traded | G9: Trade Price / Wt.Avg.trade price | H9: Exchange
A10: 2022-02-24 | B10: 539773 | C10: ADVIKCA | D10: PARESH DHIRAJLAL SHAH | E10: BUY | F10: 2,000 | G10: 2.91 | H10: BSE
A11: 2022-02-24 | B11: 539773 | C11: ADVIKCA | D11: PARESH DHIRAJLAL SHAH | E11: SELL | F11: 302,000 | G11: 2.91 | H11: BSE
A12: 2022-02-24 | B12: 539773 | C12: ADVIKCA | D12: ALPHA LEON ENTERPRISES LLP | E12: SELL | F12: 403,769 | G12: 2.91 | H12: BSE
A13: 2022-02-24 | B13: 537069 | C13: ARNOLD | D13: KEEMTEE FINANCIAL SERVICES LTD | E13: BUY | F13: 1,028,815 | G13: 12 | H13: BSE
A14: 2022-02-24 | B14: 537069 | C14: ARNOLD | D14: KEERTI KNOWLEDGE AND SKILLS LIMITED | E14: SELL | F14: 171,582 | G14: 12 | H14: BSE
A15: 2022-02-24 | B15: 537069 | C15: ARNOLD | D15: NAVRATRI SHARE TRADING PRIVATE LIMITED . | E15: SELL | F15: 1,000,000 | G15: 12 | H15: BSE
A16: 2022-02-24 | B16: 543435 | C16: CLARA | D16: BIPIN CHINUBHAI SHAH | E16: SELL | F16: 30,000 | G16: 97 | H16: BSE
A17: 2022-02-24 | B17: 543435 | C17: CLARA | D17: SHIVAAY TRADING COMPANY | E17: BUY | F17: 33,000 | G17: 96.64 | H17: BSE
A18: 2022-02-24 | B18: 539197 | C18: DEVHARI | D18: RASHMIBHARDWAJ | E18: BUY | F18: 1,030,500 | G18: 1.09 | H18: BSE
A19: 2022-02-24 | B19: 539197 | C19: DEVHARI | D19: KAVIPRIYA GURUPRASATH | E19: BUY | F19: 400,000 | G19: 1.05 | H19: BSE
A20: 2022-02-24 | B20: 504397 | C20: GANHOLD | D20: JAYESH DILIPKUMAR SHAH | E20: BUY | F20: 500 | G20: 51.15 | H20: BSE
A21: 2022-02-24 | B21: 504397 | C21: GANHOLD | D21: JAYESH DILIPKUMAR SHAH | E21: SELL | F21: 2,258 | G21: 51.11 | H21: BSE
A22: 2022-02-24 | B22: 504397 | C22: GANHOLD | D22: SAURABH NARENDRAPRATAP SINGH | E22: BUY | F22: 3,386 | G22: 51.16 | H22: BSE
A23: 2022-02-24 | B23: 504397 | C23: GANHOLD | D23: ROHIT SINGH | E23: BUY | F23: 3,500 | G23: 51.2 | H23: BSE
A24: 2022-02-24 | B24: 504397 | C24: GANHOLD | D24: PRADIP NARENDRA SINGH | E24: BUY | F24: 3,600 | G24: 51.2 | H24: BSE
A25: 2022-02-24 | B25: 504397 | C25: GANHOLD | D25: SUSWANI TEXTILE PVT LTD | E25: SELL | F25: 10,615 | G25: 51.18 | H25: BSE
A26: 2022-02-24 | B26: 540266 | C26: GLCL | D26: VIVEK KANDA | E26: BUY | F26: 26,000 | G26: 16.7 | H26: BSE
A27: 2022-02-24 | B27: 540266 | C27: GLCL | D27: DIVYA KANDA | E27: SELL | F27: 25,175 | G27: 16.7 | H27: BSE
A28: 2022-02-24 | B28: 530315 | C28: HINDTIN | D28: MAHESHCHANDRA KANTILAL SHETH | E28: BUY | F28: 64,050 | G28: 73.33 | H28: BSE
A29: 2022-02-24 | B29: 534732 | C29: INTELLADV | D29: NEVURU DHARMENDAR REDDY | E29: BUY | F29: 188,239 | G29: 6.87 | H29: BSE
A30: 2022-02-24 | B30: 542924 | C30: JANUSCORP | D30: SHARADA RAMDAS PAI | E30: BUY | F30: 34,500 | G30: 19.6 | H30: BSE
A31: 2022-02-24 | B31: 542924 | C31: JANUSCORP | D31: NAVEEN GUPTA | E31: BUY | F31: 28,500 | G31: 17.99 | H31: BSE
A32: 2022-02-24 | B32: 542924 | C32: JANUSCORP | D32: NAVEEN GUPTA | E32: SELL | F32: 33,000 | G32: 19.22 | H32: BSE
A33: 2022-02-24 | B33: 542924 | C33: JANUSCORP | D33: LEMON MANAGEMENT CONSULTANCY PRIVATE LIMITED | E33: SELL | F33: 100,500 | G33: 19.5 | H33: BSE
A34: 2022-02-24 | B34: 542924 | C34: JANUSCORP | D34: RIPALBEN DHARMIKKUMAR PARIKH | E34: BUY | F34: 151,500 | G34: 19.36 | H34: BSE
A35: 2022-02-24 | B35: 542924 | C35: JANUSCORP | D35: RIPALBEN DHARMIKKUMAR PARIKH | E35: SELL | F35: 73,500 | G35: 18.84 | H35: BSE
A36: 2022-02-24 | B36: 535730 | C36: KHOOBSURAT | D36: ALPHA LEON ENTERPRISES LLP | E36: BUY | F36: 732,729 | G36: 2.59 | H36: BSE
A37: 2022-02-24 | B37: 513721 | C37: MFSINTRCRP | D37: RAJAPRATAP SINGH HANUMANSINGH RAJPUT | E37: BUY | F37: 4,500 | G37: 47.44 | H37: BSE
A38: 2022-02-24 | B38: 513721 | C38: MFSINTRCRP | D38: RAJAPRATAP SINGH HANUMANSINGH RAJPUT | E38: SELL | F38: 33,896 | G38: 50.41 | H38: BSE
A39: 2022-02-24 | B39: 513721 | C39: MFSINTRCRP | D39: RAMESHBHAI LALJIBHAI CHAUDHARY | E39: BUY | F39: 37,485 | G39: 47.04 | H39: BSE
A40: 2022-02-24 | B40: 513721 | C40: MFSINTRCRP | D40: KHUSHI MEHULBHAI SHAH | E40: BUY | F40: 29,286 | G40: 48.24 | H40: BSE
A41: 2022-02-24 | B41: 539767 | C41: MNIL | D41: SEEMA | E41: SELL | F41: 121,100 | G41: 12.65 | H41: BSE
A42: 2022-02-24 | B42: 539767 | C42: MNIL | D42: SANJAY VERMA | E42: BUY | F42: 128,000 | G42: 12.65 | H42: BSE
A43: 2022-02-24 | B43: 531834 | C43: NATHUEC | D43: BRIJMOHANMONGA | E43: BUY | F43: 20,760 | G43: 10.85 | H43: BSE
A44: 2022-02-24 | B44: 531834 | C44: NATHUEC | D44: ALANKIT ASSIGNMENTS LIMITED | E44: SELL | F44: 52,000 | G44: 10.76 | H44: BSE
A45: 2022-02-24 | B45: 543207 | C45: NATURAL | D45: RIPALBEN DHARMIKKUMAR PARIKH | E45: BUY | F45: 3,020 | G45: 11.21 | H45: BSE
A46: 2022-02-24 | B46: 543207 | C46: NATURAL | D46: RIPALBEN DHARMIKKUMAR PARIKH | E46: SELL | F46: 83,156 | G46: 11.12 | H46: BSE
A47: 2022-02-24 | B47: 540243 | C47: NEWLIGHT | D47: PRAVINKUMAR WASHA | E47: SELL | F47: 11,698 | G47: 20.03 | H47: BSE
A48: 2022-02-24 | B48: 540243 | C48: NEWLIGHT | D48: SREEKRISHNA BHAT BHAKRE | E48: BUY | F48: 11,000 | G48: 20.44 | H48: BSE
A49: 2022-02-24 | B49: 539143 | C49: PANTH | D49: KORADIYA MILE STONE PRIVATE LIMITED . | E49: SELL | F49: 1,004,606 | G49: 13.07 | H49: BSE
A50: 2022-02-24 | B50: 539143 | C50: PANTH | D50: PURAV BHARATBHAI PATEL | E50: BUY | F50: 400,000 | G50: 12.78 | H50: BSE
A51: 2022-02-24 | B51: 539143 | C51: PANTH | D51: DEEPA VISWANATHAN | E51: SELL | F51: 66,620 | G51: 13.34 | H51: BSE
A52: 2022-02-24 | B52: 543460 | C52: QRIL | D52: SHRENI SHARES PRIVATE LIMITED | E52: BUY | F52: 10,000 | G52: 53.37 | H52: BSE
A53: 2022-02-24 | B53: 543460 | C53: QRIL | D53: SHRENI SHARES PRIVATE LIMITED | E53: SELL | F53: 20,000 | G53: 52.5 | H53: BSE
A54: 2022-02-24 | B54: 543460 | C54: QRIL | D54: DIVYANG MAHESHBHAI PATEL | E54: BUY | F54: 20,000 | G54: 52.5 | H54: BSE
A55: 2022-02-24 | B55: 543285 | C55: RCAN | D55: BEELINE BROKING LIMITED | E55: BUY | F55: 30,000 | G55: 21 | H55: BSE
A56: 2022-02-24 | B56: 543285 | C56: RCAN | D56: BEELINE BROKING LIMITED | E56: SELL | F56: 18,000 | G56: 21.5 | H56: BSE
A57: 2022-02-24 | B57: 532092 | C57: SAGARPROD | D57: SPS FINQUEST PRIVATE LIMITED | E57: BUY | F57: 432,353 | G57: 2.99 | H57: BSE
A58: 2022-02-24 | B58: 512499 | C58: SHALPRO | D58: NISHANT INBUILD LIMITED | E58: SELL | F58: 6,658,976 | G58: 0.92 | H58: BSE
A59: 2022-02-24 | B59: 512499 | C59: SHALPRO | D59: TOPGAIN FINANCE PRIVATE LIMITED | E59: BUY | F59: 6,747,566 | G59: 0.91 | H59: BSE
A60: 2022-02-24 | B60: 512499 | C60: SHALPRO | D60: TOPGAIN FINANCE PRIVATE LIMITED | E60: SELL | F60: 4,151,205 | G60: 0.91 | H60: BSE
A61: 2022-02-24 | B61: 512499 | C61: SHALPRO | D61: KAMLESH NAVINCHANDRA SHAH | E61: BUY | F61: 5,030,366 | G61: 0.91 | H61: BSE
A62: 2022-02-24 | B62: 512499 | C62: SHALPRO | D62: KAMLESH NAVINCHANDRA SHAH | E62: SELL | F62: 5,030,366 | G62: 0.92 | H62: BSE
A63: 2022-02-24 | B63: 512499 | C63: SHALPRO | D63: ALPHA LEON ENTERPRISES LLP | E63: BUY | F63: 2,500,000 | G63: 0.92 | H63: BSE
A64: 2022-02-24 | B64: 512499 | C64: SHALPRO | D64: ALPHA LEON ENTERPRISES LLP | E64: SELL | F64: 5,000,000 | G64: 0.92 | H64: BSE
A65: 2022-02-24 | B65: 533019 | C65: SIMPLXPAP | D65: ALPHA LEON ENTERPRISES LLP | E65: SELL | F65: 20,000 | G65: 35.92 | H65: BSE
A66: 2022-02-24 | B66: 538402 | C66: SPS | D66: JAVERI FISCAL SERVICES LIMITED | E66: BUY | F66: 115,000 | G66: 88.5 | H66: BSE
A67: 2022-02-24 | B67: 538402 | C67: SPS | D67: A & N VENTURES PRIVATE LIMITED | E67: SELL | F67: 110,246 | G67: 88.5 | H67: BSE
A68: 2022-02-24 | B68: 543461 | C68: SSTL | D68: EPITOME TRADING AND INVESTMENTS | E68: SELL | F68: 120,000 | G68: 9.7 | H68: BSE
A69: 2022-02-24 | B69: 541701 | C69: SUPERSHAKT | D69: SK GROWTH FUND PRIVATE LIMITED | E69: BUY | F69: 90,000 | G69: 310.27 | H69: BSE
A70: 2022-02-24 | B70: 541701 | C70: SUPERSHAKT | D70: TIA ENTERPRISES PRIVATE LIMITED | E70: SELL | F70: 90,000 | G70: 310.18 | H70: BSE
A71: 2022-02-24 | B71: 532070 | C71: SUPRBPA | D71: BANSOURYBALA GORDHANDAS | E71: SELL | F71: 110,613 | G71: 21.25 | H71: BSE
A72: 2022-02-24 | B72: 532070 | C72: SUPRBPA | D72: KINGSMAN WEALTH MANAGEMENT PRIVATE LIMITED | E72: BUY | F72: 43,338 | G72: 21.5 | H72: BSE
A73: 2022-02-24 | B73: 531205 | C73: TINEAGRO | D73: MANJULABEN PARMAR | E73: SELL | F73: 40,000 | G73: 42.25 | H73: BSE
A74: 2022-02-24 | B74: 531644 | C74: TOKYOFIN | D74: DHARMIL HARESH SHAH | E74: BUY | F74: 67,000 | G74: 10.09 | H74: BSE
A75: 2022-02-24 | B75: 531644 | C75: TOKYOFIN | D75: KESHAVJI BHACHHU GADA | E75: SELL | F75: 65,512 | G75: 10.09 | H75: BSE
A76: 2022-02-24 | B76: 541228 | C76: TRL | D76: NEERAJ YADAV | E76: BUY | F76: 80,000 | G76: 9.62 | H76: BSE
A77: 2022-02-24 | B77: 541228 | C77: TRL | D77: NATURLAND SECURITIES PRIVATE LIMITED | E77: SELL | F77: 124,000 | G77: 9.62 | H77: BSE
A78: 2022-02-24 | B78: 532411 | C78: VISESHINFO | D78: OMKAM CAPITAL MARKETS PRIVATE LIMITED | E78: SELL | F78: 30,979,908 | G78: 1.13 | H78: BSE
A79: 2022-02-24 | B79: BARBEQUE | C79: Barbeque Nation Hosp. Ltd | D79: MOTILAL OSWAL MUTUAL FUND | E79: BUY | F79: 542,000 | G79: 1150 | H79: NSE
A80: 2022-02-24 | B80: BSE | C80: BSE Limited | D80: XTX MARKETS LLP | E80: BUY | F80: 247,503 | G80: 1931.31 | H80: NSE
A81: 2022-02-24 | B81: CROWN | C81: Crown Lifters Ltd | D81: KARIM KAMRUDDIN JARIA | E81: BUY | F81: 255,000 | G81: 24.05 | H81: NSE
A82: 2022-02-24 | B82: CROWN | C82: Crown Lifters Ltd | D82: NIZAR NOORUDDIN RAJWANI | E82: BUY | F82: 127,500 | G82: 24.05 | H82: NSE
A83: 2022-02-24 | B83: CYBERMEDIA | C83: Cyber Media (India) Ltd. | D83: SUMANA PARUCHURI | E83: BUY | F83: 96,998 | G83: 27.37 | H83: NSE
A84: 2022-02-24 | B84: IBREALEST | C84: Indiabulls Real Estate Li | D84: XTX MARKETS LLP | E84: BUY | F84: 2,362,935 | G84: 104.52 | H84: NSE
A85: 2022-02-24 | B85: IBULHSGFIN | C85: Indiabulls Hsg Fin Ltd | D85: ALPHAGREP SECURITIES PRIVATE LIMITED | E85: BUY | F85: 2,504,397 | G85: 144.83 | H85: NSE
A86: 2022-02-24 | B86: JAGSNPHARM | C86: Jagsonpal Pharma Ltd. | D86: MANISH MAHESH GUPTA | E86: BUY | F86: 200,433 | G86: 235.33 | H86: NSE
A87: 2022-02-24 | B87: MADHAV | C87: Madhav Marbles and Granit | D87: ANANT WEALTH CONSULTANTS PRIVATE LIMITED | E87: BUY | F87: 48,560 | G87: 53.11 | H87: NSE
A88: 2022-02-24 | B88: MADHAVBAUG | C88: Vaidya Sane Ayur Lab Ltd | D88: DHYANAM CAPITAL | E88: BUY | F88: 152,000 | G88: 101.9 | H88: NSE
A89: 2022-02-24 | B89: RIIL | C89: Reliance Indl Infra Ltd | D89: XTX MARKETS LLP | E89: BUY | F89: 106,913 | G89: 697.59 | H89: NSE
A90: 2022-02-24 | B90: SUNTECK | C90: Sunteck Realty Limited | D90: POLAR CAPITAL LLP A/C POLAR CAPITAL FUNDS PLC - EMERGING MARKET STARS FUND - POLAR CAPITAL FUNDS PLC | E90: BUY | F90: 807,602 | G90: 442.79 | H90: NSE
A91: 2022-02-24 | B91: VADILALIND | C91: Vadilal Industries Ltd | D91: RAJASTHAN GLOBAL SECURITIES PVT LTD | E91: BUY | F91: 10,000 | G91: 1147.77 | H91: NSE
A92: 2022-02-24 | B92: VAISHALI | C92: Vaishali Pharma Limited | D92: GRAVITON RESEARCH CAPITAL LLP | E92: BUY | F92: 60,637 | G92: 52.38 | H92: NSE
A93: 2022-02-24 | B93: BARBEQUE | C93: Barbeque Nation Hosp. Ltd | D93: XPONENTIA OPPORTUNITIES FUND-I | E93: SELL | F93: 1,043,480 | G93: 1150.57 | H93: NSE
A94: 2022-02-24 | B94: BMETRICS | C94: Bombay Metrics S C Ltd | D94: ALPHA SUNIL CHHEDA | E94: SELL | F94: 12,000 | G94: 249.4 | H94: NSE
A95: 2022-02-24 | B95: BMETRICS | C95: Bombay Metrics S C Ltd | D95: JINENDRA G | E95: SELL | F95: 8,400 | G95: 251.66 | H95: NSE
A96: 2022-02-24 | B96: BSE | C96: BSE Limited | D96: XTX MARKETS LLP | E96: SELL | F96: 245,045 | G96: 1931.59 | H96: NSE
A97: 2022-02-24 | B97: CROWN | C97: Crown Lifters Ltd | D97: SIRAJ VIRJI JARIA | E97: SELL | F97: 382,500 | G97: 24.05 | H97: NSE
A98: 2022-02-24 | B98: FOCUS | C98: Focus Lightg | D98: PURVI PRABHATCHANDRA JAIN | E98: SELL | F98: 57,400 | G98: 104.05 | H98: NSE
A99: 2022-02-24 | B99: IBREALEST | C99: Indiabulls Real Estate Li | D99: XTX MARKETS LLP | E99: SELL | F99: 2,300,296 | G99: 104.83 | H99: NSE
A100: 2022-02-24 | B100: IBULHSGFIN | C100: Indiabulls Hsg Fin Ltd | D100: ALPHAGREP SECURITIES PRIVATE LIMITED | E100: SELL | F100: 2,504,397 | G100: 144.89 | H100: NSE
A101: 2022-02-24 | B101: INDUSTOWER | C101: Indus Towers Limited | D101: EURO PACIFIC SECURITIES LIMITED | E101: SELL | F101: 63,552,590 | G101: 226.84 | H101: NSE
A102: 2022-02-24 | B102: JAGSNPHARM | C102: Jagsonpal Pharma Ltd. | D102: J & P INVESTMENTS PARTNERSHIP | E102: SELL | F102: 199,763 | G102: 235.33 | H102: NSE
A103: 2022-02-24 | B103: MADHAV | C103: Madhav Marbles and Granit | D103: ANANT WEALTH CONSULTANTS PRIVATE LIMITED | E103: SELL | F103: 40,268 | G103: 49 | H103: NSE
A104: 2022-02-24 | B104: RIIL | C104: Reliance Indl Infra Ltd | D104: XTX MARKETS LLP | E104: SELL | F104: 94,485 | G104: 697.45 | H104: NSE
A105: 2022-02-24 | B105: VADILALIND | C105: Vadilal Industries Ltd | D105: RAJASTHAN GLOBAL SECURITIES PVT LTD | E105: SELL | F105: 43,679 | G105: 1135.96 | H105: NSE
A106: 2022-02-24 | B106: VAISHALI | C106: Vaishali Pharma Limited | D106: GRAVITON RESEARCH CAPITAL LLP | E106: SELL | F106: 60,637 | G106: 52.75 | H106: NSE
A107: 2022-02-24 | B107: VISHAL | C107: Vishal Fabrics Limited | D107: VAAYU INFRASTRUCTURE LLP | E107: SELL | F107: 617,403 | G107: 103.85 | H107: NSE

Sheet Call Tracker (Equity & F&O)
M5: Back To Main Page
A6: Retail Research Technical Calls & Fundamental Performance Report for the month of Feb-2022
M7: =Main!B10 -> 2022-02-25
B8: Positional Call
A9: Sr.no | B9: Date | D9: Company | E9: Rec | F9: Rec Price | G9: Stop Loss*** | H9: Call Closed At | I9: Target | J9: Remark | K9: Profit / Loss per Share | L9: All charges | M9: Net Gain / Loss % | N9: Status | O9: Closed Date | P9: Market Closing Price
A10: 1 | B10: 2022-01-21 | D10: HCLTECH | E10: Buy | F10: 1150-1170 | G10: 1090 | I10: 1250-1300 | J10: Open | P10: =VLOOKUP(D10,'MidCap Intra'!B55:C546,2,0) -> 1098.55 | R10: H
A11: 2 | B11: 2022-01-21 | D11: TCS | E11: Buy | F11: 3775 | G11: 3590 | H11: 3,590.00 | I11: 4000-4100 | J11: Loss of Rs.185/- | K11: =H11-F11 -> -185 | L11: =(F11*-0.7)/100 -> -26.43 | M11: =(K11+L11)/F11 -> -5.60% | N11: Unsuccessful | O11: 2022-02-23 | R11: H
A12: 3 | B12: 2022-01-25 | D12: TATACOMM | E12: Buy | F12: 1255 | G12: 1190 | H12: 1,327.50 | I12: 1350-1400 | J12: Profit of Rs.72.5/- | K12: =H12-F12 -> 72.5 | L12: =(F12*-0.7)/100 -> -8.79 | M12: =(K12+L12)/F12 -> 5.08% | N12: Successful | O12: 2022-02-03 | R12: H
A13: 4 | B13: 2022-01-25 | D13: HDFC | E13: Buy | F13: 2500 | G13: 2340 | H13: 2,595.00 | I13: 2700-2800 | J13: Profit of Rs.95/- | K13: =H13-F13 -> 95 | L13: =(F13*-0.7)/100 -> -17.50 | M13: =(K13+L13)/F13 -> 3.10% | N13: Successful | O13: 2022-02-01 | R13: H
A14: 5 | B14: 2022-01-25 | D14: CARBORUNIV | E14: Buy | F14: 855 | G14: 815 | H14: 905.00 | I14: 900-930 | J14: Profit of Rs.50/- | K14: =H14-F14 -> 50 | L14: =(F14*-0.7)/100 -> -5.99 | M14: =(K14+L14)/F14 -> 5.15% | N14: Successful | O14: 2022-02-04 | R14: H
A15: 6 | B15: 2022-01-25 | D15: TRENT | E15: Buy | F15: 1060-1080 | G15: 995 | I15: 1150-1200 | J15: Open | P15: =VLOOKUP(D15,'MidCap Intra'!B62:C553,2,0) -> 1020.65 | R15: H
A16: 7 | B16: 2022-01-27 | D16: SRF | E16: Buy | F16: 2360 | G16: 2200 | H16: 2,505.00 | I16: 2550-2650 | J16: Profit of Rs.145/- | K16: =H16-F16 -> 145 | L16: =(F16*-0.7)/100 -> -16.52 | M16: =(K16+L16)/F16 -> 5.44% | N16: Successful | O16: 2022-02-07 | R16: N
A17: 8 | B17: 2022-01-28 | D17: INDIGO | E17: Buy | F17: 1860 | G17: 1695 | H17: 1,900.00 | I17: 2050-2150 | J17: Profit of Rs.40/- | K17: 40 | L17: -13.02 | M17: 1.45% | N17: Successful | O17: 2022-02-01 | R17: H
A18: 9 | B18: 2022-02-03 | D18: APOLLOTYRE | E18: Buy | F18: 223.5 | G18: 210 | H18: 210.00 | I18: 240-250 | J18: Loss of Rs.13.5/- | K18: -13.5 | L18: -1.56 | M18: -6.74% | N18: Unsuccessful | O18: 2022-02-18 | R18: N
A19: 10 | B19: 2022-02-07 | D19: SUMICHEM | E19: Buy | F19: 412.5 | G19: 387 | H19: 387.00 | I19: 440-460 | J19: Loss of Rs.25.5/- | K19: =H19-F19 -> -25.5 | L19: =(F19*-0.7)/100 -> -2.89 | M19: =(K19+L19)/F19 -> -6.88% | N19: Unsuccessful | O19: 2022-02-17 | R19: H
A20: 11 | B20: 2022-02-09 | D20: REDINGTON | E20: Buy | F20: 162.5 | G20: 149 | H20: 177.00 | I20: 180-190 | J20: Profit of Rs.14.5/- | K20: =H20-F20 -> 14.5 | L20: =(F20*-0.7)/100 -> -1.14 | M20: =(K20+L20)/F20 -> 8.22% | N20: Successful | O20: 2022-02-10 | R20: H
A21: 12 | B21: 2022-02-11 | D21: REDINGTON | E21: Buy | F21: 169.5 | G21: 156 | H21: 156.00 | I21: 185-200 | J21: Loss of Rs.13.5/- | K21: -13.5 | L21: -1.19 | M21: -8.66% | N21: Unsuccessful | O21: 2022-02-23 | R21: H
A22: 13 | B22: 2022-02-11 | D22: CARBORUNIV | E22: Buy | F22: 845-850 | G22: 798 | I22: 920-960 | J22: Open | P22: =VLOOKUP(D22,'MidCap Intra'!B5:C560,2,0) -> 829.75 | R22: H
A23: 14 | B23: 2022-02-15 | D23: CROMPTON | E23: Buy | F23: 377 | G23: 354 | H23: 399.50 | I23: 410-420 | J23: Profit of Rs.22.5/- | K23: =H23-F23 -> 22.5 | L23: =(F23*-0.7)/100 -> -2.64 | M23: =(K23+L23)/F23 -> 5.27% | N23: Successful | O23: 2022-02-16 | R23: H
A24: 15 | B24: 2022-02-21 | D24: HINDUNILVR | E24: Buy | F24: 2280-2310 | G24: 2175 | I24: 2450-2550 | J24: Open | P24: =VLOOKUP(D24,'MidCap Intra'!B7:C562,2,0) -> 2171.4 | R24: H
A25: 16 | B25: 2022-02-22 | D25: APOLLOTYRE | E25: Buy | F25: 196 | G25: 184 | H25: 184.00 | I25: 215-220 | J25: Loss of Rs.12/- | K25: =H25-F25 -> -12 | L25: =(F25*-0.7)/100 -> -1.37 | M25: =(K25+L25)/F25 -> -6.82% | N25: Unsuccessful | O25: 2022-02-24 | R25: H
A30: CLBS = Closing Basis ***
A31: Dividend adjusted <> | F31: Reinitiated $
A32: Part book {} | D32: s | F32: Revised stoploss #
B34: Momentum Call
A35: Sr.no | B35: Date | D35: Company | E35: Rec | F35: Rec Price | G35: Stop Loss | H35: Call Closed At | I35: Target | J35: Remark | K35: Profit / Loss per Share/Lot | L35: All charges | M35: Net Gain / Loss % | N35: Status | O35: Closed Date
A36: 1 | B36: 2022-01-25 | D36: AVANTIFEED | E36: Buy | F36: 615 | G36: 595 | H36: 595 | I36: 645-655 | J36: Loss of Rs.20/- | K36: =H36-F36 -> -20 | L36: =(F36*-0.7)/100 -> -4.31 | M36: =(K36+L36)/F36 -> -3.95% | N36: Unsuccessful | O36: 2022-02-04 | R36: N
A37: 2 | B37: 2022-01-28 | D37: PNB | E37: Buy | F37: 41.15 | G37: 39.9 | H37: 42.7 | I37: 43-44 | J37: Profit of Rs.1.55/- | K37: =H37-F37 -> 1.55 | L37: =(F37*-0.7)/100 -> -0.29 | M37: =(K37+L37)/F37 -> 3.07% | N37: Successful | O37: 2022-02-02 | R37: H
A38: 3 | B38: 2022-02-01 | D38: LT | E38: Buy | F38: 1955 | G38: 1880 | H38: 1997.5 | I38: 2050-2100 | J38: Profit of Rs.42.5/- | K38: =H38-F38 -> 42.5 | L38: =(F38*-0.07)/100 -> -1.37 | M38: =(K38+L38)/F38 -> 2.10% | N38: Successful | O38: 2022-02-01 | R38: H
A39: 4 | B39: 2022-02-01 | D39: IRCTC | E39: Buy | F39: 863.5 | G39: 839 | H39: 839 | I39: 900-920 | J39: Loss of Rs.24.50/- | K39: -24.5 | L39: =(F39*-0.7)/100 -> -6.04 | M39: -3.54% | N39: Unsuccessful | O39: 2022-02-07 | R39: H
A40: 5 | B40: 2022-02-01 | D40: AMBUJACEM | E40: Buy | F40: 374 | G40: 364 | H40: 385 | I40: 395-405 | J40: Profit of Rs.11/- | K40: =H40-F40 -> 11 | L40: =(F40*-0.7)/100 -> -2.62 | M40: =(K40+L40)/F40 -> 2.24% | N40: Successful | O40: 2022-02-02 | R40: H
A41: 6 | B41: 2022-02-01 | D41: HINDCOPPER | E41: Buy | F41: 126.5 | G41: 122 | H41: 130.25 | I41: 134-140 | J41: Profit of Rs.3.75/- | K41: =H41-F41 -> 3.75 | L41: =(F41*-0.7)/100 -> -0.89 | M41: =(K41+L41)/F41 -> 2.26% | N41: Successful | O41: 2022-02-02 | R41: N
A42: 7 | B42: 2022-02-01 | D42: JKCEMENT | E42: Buy | F42: 3357.5 | G42: 3250 | H42: 3250 | I42: 3500-3550 | J42: Loss of Rs.107.50/- | K42: -107.5 | L42: =(F42*-0.7)/100 -> -23.50 | M42: -3.90% | N42: Unsuccessful | O42: 2022-02-11 | R42: N
A43: 8 | B43: 2022-02-03 | D43: APOLLOTYRE | E43: Buy | F43: 219.5 | G43: 213.5 | H43: 226 | I43: 228-234 | J43: Profit of Rs.6.5/- | K43: =H43-F43 -> 6.5 | L43: =(F43*-0.07)/100 -> -0.15 | M43: =(K43+L43)/F43 -> 2.89% | N43: Successful | O43: 2022-02-03 | R43: N
A44: 9 | B44: 2022-02-03 | D44: LT | E44: Buy | F44: 1952.5 | G44: 1890 | H44: 1890 | I44: 2030-2060 | J44: Loss of Rs.62.50/- | K44: -62.5 | L44: =(F44*-0.7)/100 -> -13.67 | M44: -3.90% | N44: Unsuccessful | O44: 2022-02-11 | R44: H
A45: 10 | B45: 2022-02-07 | D45: MAXHEALTH | E45: Buy | F45: 348 | G45: 338 | H45: 358.5 | I45: 375-380 | J45: Profit of Rs.10.5/- | K45: =H45-F45 -> 10.5 | L45: -2.44 | M45: =(K45+L45)/F45 -> 2.32% | N45: Successful | O45: 2022-02-08 | R45: H
A46: 11 | B46: 2022-02-09 | D46: MASTEK | E46: Buy | F46: 2675 | G46: 2590 | H46: 2590 | I46: 2800-2850 | J46: Loss of Rs.85/- | K46: -85 | L46: -18.73 | M46: -3.88% | N46: Unsuccessful | O46: 2022-02-11 | R46: H
A47: 12 | B47: 2022-02-09 | D47: MAXHEALTH | E47: Buy | F47: 361.5 | G47: 349 | H47: 372.5 | I47: 375-385 | J47: Profit of Rs.11/- | K47: =H47-F47 -> 11 | L47: -2.53 | M47: =(K47+L47)/F47 -> 2.34% | N47: Successful | O47: 2022-02-10 | R47: H
A48: 13 | B48: 2022-02-10 | D48: TATACHEM | E48: Buy | F48: 967.5 | G48: 940 | H48: 940 | I48: 1010-1030 | J48: Loss of Rs.27.50/- | K48: -27.5 | L48: -6.77 | M48: -3.54% | N48: Unsuccessful | O48: 2022-02-14 | R48: N
A49: 14 | B49: 2022-02-11 | D49: SBILIFE | E49: Buy | F49: 1132.5 | G49: 1095 | H49: 1095 | I49: 1190-1200 | J49: Loss of Rs.37.50/- | K49: =H49-F49 -> -37.5 | L49: -7.93 | M49: =(K49+L49)/F49 -> -4.01% | N49: Unsuccessful | O49: 2022-02-24 | R49: H
A50: 15 | B50: 2022-02-11 | D50: SUPREMEIND | E50: Buy | F50: 2003 | G50: 1940 | H50: 1940 | I50: 2080-2100 | J50: Loss of Rs.63/- | K50: =H50-F50 -> -63 | L50: -14.02 | M50: =(K50+L50)/F50 -> -3.85% | N50: Unsuccessful | O50: 2022-02-14 | R50: H
A51: 16 | B51: 2022-02-11 | D51: DHANUKA | E51: Buy | F51: 761 | G51: 735 | H51: 735 | I51: 800-825 | J51: Loss of Rs.26/- | K51: -26 | L51: -5.33 | M51: -4.12% | N51: Unsuccessful | O51: 2022-02-14 | R51: N
A52: 17 | B52: 2022-02-15 | D52: TATACOMM | E52: Buy | F52: 1212.5 | G52: 1180 | H52: 1240 | I52: 1260-1300 | J52: Profit of Rs.27.5/- | K52: 27.5 | L52: =(F52*-0.07)/100 -> -0.85 | M52: 2.20% | N52: Successful | O52: 2022-02-15 | R52: H
A53: 18 | B53: 2022-02-15 | D53: TATASTEEL | E53: Buy | F53: 1184 | G53: 1144 | H53: 1211 | I53: 1250 | J53: Profit of Rs.27/- | K53: =H53-F53 -> 27 | L53: =(F53*-0.07)/100 -> -0.83 | M53: =(K53+L53)/F53 -> 2.21% | N53: Successful | O53: 2022-02-15 | R53: H
A54: 19 | B54: 2022-02-21 | D54: MAXHEALTH | E54: Buy | F54: 364.5 | G54: 354 | H54: 372 | I54: 380-385 | J54: Profit of Rs.7.5/- | K54: =H54-F54 -> 7.5 | L54: =(F54*-0.07)/100 -> -0.26 | M54: =(K54+L54)/F54 -> 1.99% | N54: Successful | O54: 2022-02-21 | R54: H
A55: 20 | B55: 2022-02-22 | D55: MAXHEALTH | E55: Buy | F55: 362 | G55: 354 | H55: 369.5 | I55: 380-385 | J55: Profit of Rs.7.5/- | K55: =H55-F55 -> 7.5 | L55: =(F55*-0.07)/100 -> -0.25 | M55: =(K55+L55)/F55 -> 2.00% | N55: Successful | O55: 2022-02-22 | R55: H
A56: 21 | B56: 2022-02-24 | D56: MAXHEALTH | E56: Buy | F56: 356.5 | G56: 348 | H56: 348 | I56: 370-380 | J56: Loss of Rs.8.5/- | K56: -8.5 | L56: =(F56*-0.07)/100 -> -0.25 | M56: -2.45% | N56: Unsuccessful | O56: 2022-02-24 | R56: H
A59: CLBS = Closing Basis *** | H59: *
A60: Dividend adjusted <> | F60: Reinitiated $
F61: Revised stoploss #
A63: Master Trade High Risk
A64: Sr.no | B64: Date | D64: Company | E64: Rec | F64: Rec Price | G64: Stop Loss | H64: Call Closed At | I64: Target | J64: Remark | K64: Profit / Loss per share | L64: All charges | M64: Gain / Loss per Lot | N64: Lot | O64: Status | P64: Closed Date
A65: 1 | B65: 2022-02-01 | D65: TITAN FEB FUT | E65: Buy | F65: 2414 | G65: 238 | H65: 2380 | I65: 2460-2480 | J65: Loss of Rs.34/- | K65: =H65-F65 -> -34 | L65: =(H65*N65)*0.07% -> 624.75 | M65: =(K65*N65)-L65 -> -13374.8 | N65: 375 | O65: Unsuccessful | P65: 2021-02-01 | R65: H
A66: 2 | B66: 2022-02-03 | D66: HDFCLIFE FEB FUT | E66: Buy | F66: 640 | G66: 630 | H66: 630 | I66: 655-660 | J66: Loss of Rs.10/- | K66: =H66-F66 -> -10 | L66: =(H66*N66)*0.07% -> 485.10 | M66: =(K66*N66)-L66 -> -11485.1 | N66: 1100 | O66: Unsuccessful | P66: 2021-02-04 | R66: H
A67: 3 | B67: 2022-02-03 | D67: SBIN FEB FUT | E67: Buy | F67: 545 | G67: 534 | H67: 534 | I67: 565 | J67: Loss of Rs.6/- | K67: =H67-F67 -> -11.00 | L67: 560.70 | M67: =(-1500*6)-660.7 -> -9660.7 | N67: 1,500.00 | O67: Unsuccessful | P67: 2022-02-04 | R67: H
D68: SBIN 560 CE FEB | E68: Sell | F68: 14.5 | H68: 9.5 | K68: =F68-H68 -> 5.00 | L68: 100.00 | R68: H
A69: 4 | B69: 2022-02-07 | D69: MPHASIS FEB FUT | E69: Buy | F69: 3020 | G69: 2940 | H69: 3080 | I69: 3100-3180 | J69: Profit of Rs.60/- | K69: =H69-F69 -> 60 | L69: =(H69*N69)*0.07% -> 377.30 | M69: =(K69*N69)-L69 -> 10122.7 | N69: 175 | O69: Successful | P69: 2021-02-09 | R69: N
A70: 5 | B70: 2022-02-07 | D70: APOLLOTYRE FEB FUT | E70: Buy | F70: 221 | G70: 216 | H70: 225.5 | I70: 227-230 | J70: Profit of Rs.4.5/- | K70: =H70-F70 -> 4.5 | L70: =(H70*N70)*0.07% -> 394.63 | M70: =(K70*N70)-L70 -> 10855.4 | N70: 2500 | O70: Successful | P70: 2021-02-07 | R70: H
A71: 6 | B71: 2022-02-07 | D71: NIFTY FEB FUT | E71: Buy | F71: 17300 | G71: 17170 | H71: 17170 | I71: 17500 | J71: Loss of Rs.130/- | K71: -130 | L71: 600.95 | M71: -7101.0 | N71: 50 | O71: Unsuccessful | P71: 2021-02-07 | R71: H
A72: 7 | B72: 2022-02-09 | D72: SIEMENS FEB FUT | E72: Buy | F72: 2377.5 | G72: 2325 | H72: 2415 | I72: 2430-2470 | J72: Profit of Rs.37.5/- | K72: =H72-F72 -> 37.5 | L72: =(H72*N72)*0.07% -> 464.89 | M72: =(K72*N72)-L72 -> 9847.6 | N72: 275 | O72: Successful | P72: 2021-02-09 | R72: N
A73: 8 | B73: 2022-02-09 | D73: TATASTEEL FEB FUT | E73: Buy | F73: 1217.5 | G73: 1188 | H73: 1243 | I73: 1260-1280 | J73: Profit of Rs.25.5/- | K73: 25.5 | L73: 369.79 | M73: 10467.7 | N73: 425 | O73: Successful | P73: 2021-02-10 | R73: H
A74: 9 | B74: 2022-02-10 | D74: GSPL FEB FUT | E74: Buy | F74: 305 | G74: 297 | H74: 297 | I74: 313-318 | J74: Loss of Rs.8/- | K74: -8 | L74: 353.43 | M74: -13953.4 | N74: 1700 | O74: Unsuccessful | P74: 2021-02-14 | R74: N
A75: 10 | B75: 2022-02-11 | D75: MPHASIS FEB FUT | E75: Buy | F75: 2980 | G75: 2900 | H75: 3032.5 | I75: 3050-3100 | J75: Profit of Rs.52.50/- | K75: =H75-F75 -> 52.5 | L75: =(H75*N75)*0.07% -> 371.48 | M75: =(K75*N75)-L75 -> 8816.0 | N75: 175 | O75: Successful | P75: 2021-02-11 | R75: N
A76: 11 | B76: 2022-02-11 | D76: APOLLOTYRE FEB FUT | E76: Buy | F76: 220.5 | G76: 215 | H76: 215 | I76: 227-230 | J76: Loss of Rs.5.5/- | K76: -5.5 | L76: 376.25 | M76: -14126.3 | N76: 2500 | O76: Unsuccessful | P76: 2021-02-14 | R76: H
A77: 12 | B77: 2022-02-14 | D77: TATASTEEL FEB FUT | E77: Buy | F77: 1215 | G77: 1188 | H77: 1188 | I77: 1260-1280 | J77: Loss of Rs.27/- | K77: -27 | L77: 353.43 | M77: -11828.4 | N77: 425 | O77: Unsuccessful | P77: 2021-02-14 | R77: H
A78: 13 | B78: 2022-02-14 | D78: SIEMENS FEB FUT | E78: Buy | F78: 2345 | G78: 2295 | H78: 2348 | I78: 2420-2450 | J78: Profit of Rs.3/- | K78: 3 | L78: =(H78*N78)*0.07% -> 451.99 | M78: =(K78*N78)-L78 -> 373.0 | N78: 275 | O78: Neutral | P78: 2021-02-14 | R78: N
A79: 14 | B79: 2022-02-15 | D79: BHARATFORG FEB FUT | E79: Buy | F79: 700 | G79: 683 | H79: 712 | I79: 720-730 | J79: Profit of Rs.12/- | K79: 12 | L79: 373.80 | M79: 8626.2 | N79: 750 | O79: Successful | P79: 2021-02-15 | R79: N
A80: 15 | B80: 2022-02-15 | D80: MPHASIS FEB FUT | E80: Buy | F80: 2945 | G80: 2870 | H80: 2993 | I80: 3000-3040 | J80: Profit of Rs.48/- | K80: =H80-F80 -> 48 | L80: 366.64 | M80: 8033.4 | N80: 175 | O80: Successful | P80: 2021-02-15 | R80: N
A81: 16 | B81: 2022-02-15 | D81: COLPAL FEB FUT | E81: Buy | F81: 1430 | G81: 1395 | H81: 1395 | I81: 1500 | J81: Loss of Rs.35/- | K81: =H81-F81 -> -35 | L81: 341.78 | M81: -12591.8 | N81: 350 | O81: Unsuccessful | P81: 2022-02-22 | R81: N
A82: 17 | B82: 2022-02-15 | D82: TATACONSUM FEB FUT | E82: Buy | F82: 704 | G82: 688 | H82: 708 | I82: 720-730 | J82: Profit of Rs.4/- | K82: =H82-F82 -> 4 | L82: =(H82*N82)*0.07% -> 334.53 | M82: =(K82*N82)-L82 -> 2365.5 | N82: 675 | O82: Successful | P82: 2021-02-17 | R82: H
A83: 18 | B83: 2022-02-15 | D83: HDFC FEB FUT | E83: Buy | F83: 2347 | G83: 2300 | H83: 2375 | I83: 2400-2420 | J83: Profit of Rs.28/- | K83: =H83-F83 -> 28 | L83: =(H83*N83)*0.07% -> 498.75 | M83: =(K83*N83)-L83 -> 7901.3 | N83: 300 | O83: Successful | P83: 2021-02-16 | R83: H
A84: 19 | B84: 2022-02-16 | D84: MPHASIS FEB FUT | E84: Buy | F84: 2995 | G84: 2920 | H84: 3050 | I84: 3070-3120 | J84: Profit of Rs.55/- | K84: =H84-F84 -> 55 | L84: =(H84*N84)*0.07% -> 373.63 | M84: =(K84*N84)-L84 -> 9251.4 | N84: 175 | O84: Successful | P84: 2021-02-16 | R84: N
A85: 20 | B85: 2022-02-16 | D85: ASIANPAINT FEB FUT | E85: Buy | F85: 3250 | G85: 3175 | H85: 3175 | I85: 3350-3400 | J85: Loss of Rs.75/- | K85: -75 | L85: 333.38 | M85: -11583.4 | N85: 150 | O85: Unsuccessful | P85: 2022-02-22 | R85: H
A86: 21 | B86: 2022-02-16 | D86: GSPL FEB FUT | E86: Buy | F86: 292 | G86: 284 | H86: 284 | I86: 300-308 | J86: Loss of Rs.8/- | K86: =H86-F86 -> -8 | L86: =(H86*N86)*0.07% -> 337.96 | M86: =(K86*N86)-L86 -> -13938.0 | N86: 1700 | O86: Unsuccessful | P86: 2021-02-21 | R86: N
A87: 22 | B87: 2022-02-17 | D87: ABBOTINDIA FEB FUT | E87: Buy | F87: 16940 | G87: 16400 | H87: 16400 | I87: 17500-17700 | J87: Loss of Rs.540/- | K87: =H87-F87 -> -540 | L87: =(H87*N87)*0.07% -> 287.00 | M87: =(K87*N87)-L87 -> -13787.0 | N87: 25 | O87: Unsuccessful | P87: 2021-02-18 | R87: H
A88: 23 | B88: 2022-02-17 | D88: BALKRISIND FEB FUT | E88: Buy | F88: 1995 | G88: 1940 | H88: 1940 | I88: 2060-2100 | J88: Loss of Rs.55/- | K88: -55 | L88: 271.60 | M88: -11271.6 | N88: 200 | O88: Unsuccessful | P88: 2021-02-21 | R88: H
A89: 24 | B89: 2022-02-18 | D89: BHARATFORG FEB FUT | E89: Buy | F89: 700 | G89: 683 | H89: 683 | I89: 720-730 | J89: Loss of Rs.17/- | K89: -17 | L89: 358.58 | M89: -13108.6 | N89: 750 | O89: Unsuccessful | P89: 2021-02-21 | R89: N
A90: 25 | B90: 2022-02-18 | D90: TATACHEM FEB FUT | E90: Buy | F90: 901 | G90: 887 | H90: 888 | I90: 915-920 | J90: Loss of Rs.13/- | K90: =H90-F90 -> -13 | L90: =(H90*N90)*0.07% -> 621.60 | M90: =(K90*N90)-L90 -> -13621.6 | N90: 1000 | O90: Unsuccessful | P90: 2021-02-18 | R90: H
A91: 26 | B91: 2022-02-18 | D91: ULTRACEMCO MAR FUT | E91: Buy | F91: 7020 | G91: 6900 | H91: 6900 | I91: 7200-7250 | J91: Loss of Rs.120/- | K91: =H91-F91 -> -120 | L91: =(H91*N91)*0.07% -> 483.00 | M91: =(K91*N91)-L91 -> -12483.0 | N91: 100 | O91: Unsuccessful | P91: 2021-02-21 | R91: H
A92: 27 | B92: 2022-02-21 | D92: HDFCBANK MAR FUT | E92: Buy | F92: 1512.5 | G92: 1488 | H92: 1488 | I92: 1540-1550 | J92: Loss of Rs.24.5/- | K92: =H92-F92 -> -24.5 | L92: =(H92*N92)*0.07% -> 572.88 | M92: =(K92*N92)-L92 -> -14047.9 | N92: 550 | O92: Unsuccessful | P92: 2021-02-24 | R92: H
A93: 28 | B93: 2022-02-23 | D93: BHARATFORG MAR FUT | E93: Buy | F93: 699 | G93: 683 | H93: 714 | I93: 720-730 | J93: Profit of Rs.15/- | K93: =H93-F93 -> 15 | L93: =(H93*N93)*0.07% -> 374.85 | M93: =(K93*N93)-L93 -> 10875.2 | N93: 750 | O93: Successful | P93: 2021-02-23 | R93: N
A97: Master Trade Medium Risk
A98: Sr.no | B98: Date | D98: Company | E98: Rec | F98: Rec Price | G98: Stop Loss | H98: Call Closed At | I98: Target | J98: Remark | K98: Profit/ Loss per lot | L98: All charges | M98: Gain / Loss per Lot | N98: Lot | O98: Status | P98: Closed Date
A99: 1 | B99: 2022-01-25 | D99: TCS 3860 CE FEB | E99: Buy | F99: 82 | H99: 0 | J99: Loss of Rs.36/- | K99: =H99-F99 -> -82.00 | L99: 100.00 | M99: =(-36*150)-200 -> -5600 | N99: 150 | O99: Unsuccessful | P99: 2022-02-24 | R99: H
D100: TCS 4000 CE FEB | E100: Sell | F100: 46 | H100: 0 | K100: =F100-H100 -> 46.00 | L100: 100.00 | R100: H
A101: 2 | B101: 2022-01-31 | D101: NIFTY 17000 PE 3-FEB | E101: Buy | F101: 107.5 | G101: 60 | H101: 57.5 | I101: 180-200 | J101: Loss of Rs.50/- | K101: =H101-F101 -> -50 | L101: 100.00 | M101: =(K101*N101)-L101 -> -2600.0 | N101: 50 | O101: Unsuccessful | P101: 2021-02-01 | R101: N
A102: 3 | B102: 2022-01-31 | D102: TATACOMM 1400 CE FEB | E102: Buy | F102: 26.5 | G102: 17 | H102: 17 | I102: 38-45 | J102: Loss of Rs.9.5/- | K102: -9.5 | L102: 100.00 | M102: -3900.0 | N102: 400 | O102: Unsuccessful | P102: 2021-02-07 | R102: H
A103: 4 | B103: 2022-01-31 | D103: PIIND 2600 CE FEB | E103: Buy | F103: 57.5 | G103: 38 | H103: 40 | I103: 80-100 | J103: Loss of Rs.17.5/- | K103: =H103-F103 -> -17.5 | L103: 100.00 | M103: =(K103*N103)-L103 -> -4475.0 | N103: 250 | O103: Unsuccessful | P103: 2021-02-01 | R103: H
A104: 5 | B104: 2022-02-01 | D104: NIFTY 17500 PE 3-FEB | E104: Buy | F104: 202.5 | H104: 335 | J104: Profit of Rs.90/- | K104: =H104-F104 -> 132.50 | L104: 100.00 | M104: 4300 | N104: 50 | O104: Successful | P104: 2022-02-01 | R104: H
D105: NIFTY 17200 PE 3-FEB | E105: Sell | F105: 102.5 | H105: 145 | K105: =F105-H105 -> -42.50 | L105: 100.00 | R105: H
A106: 6 | B106: 2022-02-02 | D106: NIFTY 17700 PE 3-FEB | E106: Buy | F106: 90 | G106: 45 | H106: 45 | I106: 140-160 | J106: Loss of Rs.45/- | K106: =H106-F106 -> -45 | L106: 100.00 | M106: =(K106*N106)-L106 -> -2350.0 | N106: 50 | O106: Unsuccessful | P106: 2021-02-02 | R106: H
A107: 7 | B107: 2022-02-03 | D107: BANKNIFTY 39400 CE 3-FEB | E107: Buy | F107: 65 | G107: 0 | H107: 0 | I107: 120-170 | J107: Loss of Rs.65/- | K107: =H107-F107 -> -65 | L107: 100.00 | M107: =(K107*N107)-L107 -> -1725.0 | N107: 25 | O107: Unsuccessful | P107: 2021-02-03 | R107: N
A108: 8 | B108: 2022-02-04 | D108: NIFTY 17500 PE 10-FEB | E108: Buy | F108: 110 | G108: 65 | H108: 135 | I108: 160-190 | J108: Profit of Rs.25/- | K108: 25 | L108: 100.00 | M108: 1150.0 | N108: 50 | O108: Successful | P108: 2021-02-04 | R108: N
A109: 9 | B109: 2022-02-07 | D109: NIFTY 17500 CE 10-FEB | E109: Buy | F109: 83 | G109: 40 | H109: 40 | I109: 130-150 | J109: Loss of Rs.43/- | K109: -43 | L109: 100.00 | M109: -2250.0 | N109: 50 | O109: Unsuccessful | P109: 2021-02-07 | R109: N
A110: 10 | B110: 2022-02-07 | D110: BANKNIFTY 38700 CE 10-FEB | E110: Buy | F110: 180 | G110: 90 | H110: 90 | I110: 250-300 | J110: Loss of Rs.90/- | K110: =H110-F110 -> -90 | L110: 100.00 | M110: =(K110*N110)-L110 -> -2350.0 | N110: 25 | O110: Unsuccessful | P110: 2021-02-08 | R110: H
A111: 11 | B111: 2022-02-14 | D111: TRENT 1100 CE FEB | E111: Buy | F111: 14.5 | G111: 7 | H111: 18.25 | I111: 25-30 | J111: Profit of Rs.3.75/- | K111: 3.75 | L111: 100.00 | M111: 2618.8 | N111: 725 | O111: Successful | P111: 2021-02-15 | R111: H
A112: 12 | B112: 2022-02-14 | D112: NIFTY 17200 CE 17 FEB | E112: Buy | F112: 76 | G112: 38 | H112: 38 | I112: 110-130 | J112: Loss of Rs.38/- | K112: =H112-F112 -> -38 | L112: 100.00 | M112: =(K112*N112)-L112 -> -2000.0 | N112: 50 | O112: Unsuccessful | P112: 2021-02-15 | R112: H
A113: 13 | B113: 2022-02-15 | D113: RELIANCE 2360 CE FEB | E113: Buy | F113: 37 | G113: 18 | H113: 49 | I113: 60-80 | J113: Profit of Rs.12/- | K113: 12 | L113: 100.00 | M113: 2900.0 | N113: 250 | O113: Successful | P113: 2021-02-15 | R113: H
A114: 14 | B114: 2022-02-15 | D114: RELIANCE 2380 CE FEB | E114: Buy | F114: 41 | G114: 20 | H114: 49 | I114: 60-80 | J114: Profit of Rs.8/- | K114: 8 | L114: 100.00 | M114: 1900.0 | N114: 250 | O114: Successful | P114: 2021-02-15 | R114: H
A115: 15 | B115: 2022-02-15 | D115: HDFC 2340 CE FEB | E115: Buy | F115: 36 | G115: 20 | H115: 47.5 | I115: 55-70 | J115: Profit of Rs.11.5/- | K115: 11.5 | L115: 100.00 | M115: 3350.0 | N115: 300 | O115: Successful | P115: 2021-02-15 | R115: H
A116: 16 | B116: 2022-02-16 | D116: NIFTY 17400 CE 17 FEB | E116: Buy | F116: 64 | G116: 28 | H116: 85 | I116: 110-130 | J116: Profit of Rs.21/- | K116: =H116-F116 -> 21 | L116: 100.00 | M116: =(K116*N116)-L116 -> 950.0 | N116: 50 | O116: Successful | P116: 2022-02-16 | R116: N
A117: 17 | B117: 2022-02-16 | D117: HDFC 2380 CE FEB | E117: Buy | F117: 35 | G117: 18 | H117: 45.5 | I117: 50-60 | J117: Profit of Rs.10.5/- | K117: 10.5 | L117: 100.00 | M117: 3050.0 | N117: 300 | O117: Successful | P117: 2022-02-16 | R117: N
A118: 18 | B118: 2022-02-16 | D118: BANKNIFTY 38000 CE 17 FEB | E118: Buy | F118: 240 | G118: 150 | H118: 290 | I118: 350-400 | J118: Profit of Rs.50/- | K118: 50 | L118: 100.00 | M118: 1150.0 | N118: 25 | O118: Successful | P118: 2022-02-16 | R118: H
A119: 19 | B119: 2022-02-16 | D119: RELIANCE 2400 CE FEB | E119: Buy | F119: 39.5 | G119: 20 | H119: 47.5 | I119: 60-80 | J119: Profit of Rs.8/- | K119: 8 | L119: 100.00 | M119: 1900.0 | N119: 250 | O119: Successful | P119: 2022-02-16 | R119: H
A120: 20 | B120: 2022-02-17 | D120: NIFTY 17350 CE 17 FEB | E120: Buy | F120: 52 | G120: 8 | H120: 72 | I120: 80-100 | J120: Profit of Rs.20/- | K120: =H120-F120 -> 20 | L120: 100.00 | M120: =(K120*N120)-L120 -> 900.0 | N120: 50 | O120: Successful | P120: 2022-02-17 | R120: N
A121: 21 | B121: 2022-02-17 | D121: HDFC 2380 CE FEB | E121: Buy | F121: 35 | G121: 18 | H121: 44.5 | I121: 50-60 | J121: Profit of Rs.9.5/- | K121: =H121-F121 -> 9.5 | L121: 100.00 | M121: =(K121*N121)-L121 -> 2750.0 | N121: 300 | O121: Successful | P121: 2022-02-17 | R121: H
A122: 22 | B122: 2022-02-17 | D122: BANKNIFTY 37800 CE 17 FEB | E122: Buy | F122: 180 | G122: 70 | H122: 105 | I122: 300-400 | J122: Loss of Rs.75/- | K122: -75 | L122: 100.00 | M122: -1975.0 | N122: 25 | O122: Unsuccessful | P122: 2021-02-17 | R122: H
A123: 23 | B123: 2022-02-17 | D123: NIFTY 17400 CE 17 FEB | E123: Buy | F123: 36.5 | G123: 0 | H123: 0 | I123: 70-90 | J123: Loss of Rs.36.5/- | K123: -36.5 | L123: 100.00 | M123: -1925.0 | N123: 50 | O123: Unsuccessful | P123: 2021-02-17 | R123: N
A124: 24 | B124: 2022-02-18 | D124: NIFTY 17500 CE FEB | E124: Sell | F124: 120 | G124: 160 | H124: 100 | I124: 50-30 | J124: Profit of Rs.20/- | K124: =F124-H124 -> 20 | L124: 100.00 | M124: =(K124*N124)-L124 -> 900.0 | N124: 50 | O124: Successful | P124: 2022-02-18 | R124: H
A125: 25 | B125: 2022-02-21 | D125: RELIANCE 2400 CE FEB | E125: Buy | F125: 24.5 | G125: 5 | H125: 33.5 | I125: 45-55 | J125: Profit of Rs.9/- | K125: =H125-F125 -> 9 | L125: 100.00 | M125: 2150.0 | N125: 250 | O125: Successful | P125: 2022-02-21 | R125: H
A126: 26 | B126: 2022-02-21 | D126: INFY 1700 CE FEB | E126: Buy | F126: 23.5 | G126: 10 | H126: 31.5 | I126: 45-55 | J126: Profit of Rs.8/- | K126: =H126-F126 -> 8 | L126: 100.00 | M126: =(K126*N126)-L126 -> 2300.0 | N126: 300 | O126: Successful | P126: 2022-02-21 | R126: H
A127: 27 | B127: 2022-02-21 | D127: TATASTEEL 1500 CE FEB | E127: Buy | F127: 14 | G127: 4 | H127: 19 | I127: 25-35 | J127: Profit of Rs.5/- | K127: 5 | L127: 100.00 | M127: 1900.0 | N127: 400 | O127: Successful | P127: 2022-02-21 | R127: H
A128: 28 | B128: 2022-02-22 | D128: RELIANCE 2360 CE FEB | E128: Buy | F128: 24.5 | G128: 5 | H128: 31.5 | I128: 45-50 | J128: Profit of Rs.7/- | K128: =H128-F128 -> 7 | L128: 100.00 | M128: =(K128*N128)-L128 -> 2000.0 | N128: 300 | O128: Successful | P128: 2022-02-22 | R128: H
A129: 29 | B129: 2022-02-22 | D129: TATASTEEL 1140 CE FEB | E129: Buy | F129: 14 | G129: 4 | H129: 15.5 | I129: 25-35 | J129: Profit of Rs.1.5/- | K129: =H129-F129 -> 1.5 | L129: 100.00 | M129: =(K129*N129)-L129 -> 537.5 | N129: 425 | O129: Successful | P129: 2022-02-22 | R129: H
A130: 30 | B130: 2022-02-22 | D130: NIFTY 17000 CE FEB | E130: Buy | F130: 100 | G130: 68 | H130: 122 | I130: 140-160 | J130: Profit of Rs.22/- | K130: 22 | L130: 100.00 | M130: 1000.0 | N130: 50 | O130: Successful | P130: 2022-02-22 | R130: H
A131: 31 | B131: 2022-02-22 | D131: RELIANCE 2380 CE FEB | E131: Buy | F131: 21 | G131: 5 | H131: 27.5 | I131: 45-50 | J131: Profit of Rs.6.5/- | K131: 6.5 | L131: 100.00 | M131: 1525.0 | N131: 250 | O131: Successful | P131: 2022-02-22 | R131: N
A132: 32 | B132: 2022-02-22 | D132: HDFC 2440 CE FEB | E132: Buy | F132: 20 | G132: 5 | H132: 26.5 | I132: 45-50 | J132: Profit of Rs.6.5/- | K132: 6.5 | L132: 100.00 | M132: 1850.0 | N132: 300 | O132: Successful | P132: 2022-02-22 | R132: H
A133: 33 | B133: 2022-02-22 | D133: LT 1860 CE FEB | E133: Buy | F133: 12 | G133: 5 | H133: 14.5 | I133: 20-25 | J133: Profit of Rs.2.5/- | K133: 2.5 | L133: 100.00 | M133: 1337.5 | N133: 575 | O133: Successful | P133: 2022-02-22 | R133: H
A134: 34 | B134: 2022-02-23 | D134: NIFTY 17200 CE FEB | E134: Buy | F134: 60 | G134: 37 | H134: 37 | I134: 100-120 | J134: Loss of Rs.23/- | K134: -23 | L134: 100.00 | M134: -1250.0 | N134: 50 | O134: Unsuccessful | P134: 2021-02-23 | R134: H
A135: 35 | B135: 2022-02-23 | D135: BANKNIFTY 37700 CE FEB | E135: Buy | F135: 195 | G135: 95 | H135: 95 | I135: 300-400 | J135: Loss of Rs.100/- | K135: =H135-F135 -> -100 | L135: 100.00 | M135: =(K135*N135)-L135 -> -2600.0 | N135: 25 | O135: Unsuccessful | P135: 2021-02-24 | R135: N
A138: Techno -Funda (positional)
A139: Sr.no | B139: Date | D139: Company | E139: Rec | F139: Rec Price | G139: Stop Loss*** | H139: Call Closed At | I139: Target | J139: Remark | K139: Profit / Loss per Share/Lot | L139: All charges | M139: Net Gain / Loss % | N139: Status | O139: Closed Date | P139: Market Closing Price
A140: 1 | B140: 2021-10-19 | D140: ITC | E140: Buy | F140: 230-251 | G140: 198 | I140: 320-340 | J140: Open | R140: H
A141: 2 | B141: 2022-02-07 | D141: BEL | E141: Buy | F141: 198-202 | G141: 183 | I141: 230-240 | J141: Open | R141: H
A143: CLBS = Closing Basis *** | F143: Reinitiated $
A144: Dividend adjusted <> | F144: Revised stoploss # | H144: .................
B146: Intrday Call
A147: Sr.no | B147: Date | D147: Company | E147: Rec | F147: Rec Price | G147: Stop Loss | H147: Call Closed At | I147: Target | J147: Remark | K147: Profit / Loss per Share/Lot | L147: Gain / Loss per Lot | M147: Lot | N147: All charges | O147: Net Gain / Loss % | P147: Status | Q147: Closed Date
B160: Investment Idea
A161: Sr.no | B161: Date | D161: Company | E161: Rec | F161: Rec Price | G161: Point of Review | H161: Close Rate | I161: Target | J161: Remark | K161: Profit / Loss per Share | L161: Gain / Loss % | M161: Status | N161: Closed Date
A162: 1 | B162: 2013-11-01 | D162: L&T Finance Holding | E162: Accu | F162: 82.00 | G162: - | H162: 100 | I162: 100.00 | J162: Target Achieved | K162: =H162-F162 -> 18.00 | L162: =K162/F162 -> 21.95% | M162: Successful | N162: 2016-10-14
A163: 2 | B163: 2014-06-04 | D163: Finolex Inds | E163: Buy | F163: 257.00 | G163: - | H163: 300 | I163: 300.00 | J163: Target Achieved | K163: 43.00 | L163: 16.73% | M163: Successful | N163: 2014-07-02
A164: 3 | B164: 2014-07-08 | D164: JK Cement | E164: Buy | F164: 393.00 | G164: - | H164: 468 | I164: 468.00 | J164: Target Achieved | K164: 75.00 | L164: 19.08% | M164: Successful | N164: 2014-08-12
A165: 4 | B165: 2014-08-06 | D165: Finolex Cables | E165: Buy | F165: 205.00 | G165: - | H165: 275 | I165: 250.00 | J165: Target Achieved | K165: 70.00 | L165: 34.15% | M165: Successful | N165: 2014-11-19
A166: 5 | B166: 2014-09-04 | D166: Exide Inds | E166: Buy | F166: 162.00 | G166: - | H166: 190 | I166: 190.00 | J166: Target Achieved | K166: 28.00 | L166: 17.28% | M166: Successful | N166: 2015-01-02
A167: 6 | B167: 2014-09-04 | D167: Deepak Nitrite | E167: Buy | F167: 75.00 | G167: - | H167: 91.5 | I167: 95-100 | J167: Profit of Rs.16.50/- | K167: 16.50 | L167: 22.00% | M167: Successful | N167: 2014-11-11
A168: 7 | B168: 2014-10-01 | D168: Mercks | E168: Buy | F168: 850.00 | G168: - | H168: 982.5 | I168: 1050.00 | J168: Profit of Rs.132.50/- | K168: 132.50 | L168: 15.59% | M168: Successful | N168: 2015-02-04
A169: 8 | B169: 2014-10-01 | D169: Grindwell Norton | E169: Buy | F169: 475.00 | G169: - | H169: 515 | I169: 600.00 | J169: Profit of Rs.40/- | K169: 40.00 | L169: 8.42% | M169: Successful | N169: 2014-10-27
A170: 9 | B170: 2014-10-01 | D170: Snowman Logistics | E170: Buy | F170: 86.00 | G170: - | H170: 99 | I170: 140.00 | J170: Profit of Rs.13.00/- | K170: 13.00 | L170: 15.12% | M170: Successful | N170: 2014-10-27
A171: 10 | B171: 2014-10-14 | D171: Birla Corp | E171: Buy | F171: 496.60 | G171: - | H171: 621 | I171: 580.00 | J171: Target Achieved | K171: 124.40 | L171: 25.05% | M171: Successful | N171: 2016-08-23
A172: 11 | B172: 2014-10-14 | D172: Ultratech Cem | E172: Buy | F172: 2481.90 | G172: - | H172: 2840 | I172: 2870.00 | J172: Profit of Rs.358.10/- | K172: 358.10 | L172: 14.43% | M172: Successful | N172: 2015-01-13
A173: 12 | B173: 2014-10-16 | D173: Sintex Inds | E173: Buy | F173: 84.50 | G173: - | H173: 93 | I173: 110.00 | J173: Profit of Rs.8.50/- | K173: 8.50 | L173: 10.06% | M173: Successful | N173: 2014-10-27
A174: 13 | B174: 2014-10-16 | D174: HSIL | E174: Buy | F174: 401.00 | G174: - | H174: 428 | I174: 450.00 | J174: Profit of Rs.27.00/- | K174: 27.00 | L174: 6.73% | M174: Successful | N174: 2015-01-16
A175: 14 | B175: 2014-10-16 | D175: Eveready Inds | E175: Buy | F175: 101.00 | G175: - | H175: 112 | I175: 120.00 | J175: Profit of Rs.11.00/- | K175: 11.00 | L175: 10.89% | M175: Successful | N175: 2014-10-27
A176: 15 | B176: 2014-11-11 | D176: Pennar Inds | E176: Buy | F176: 59.00 | G176: - | H176: 76 | I176: 76.00 | J176: Target Achieved | K176: 17.00 | L176: 28.81% | M176: Successful | N176: 2017-10-24
A177: 16 | B177: 2014-11-11 | D177: Snowman Logistics | E177: Buy | F177: 99.00 | G177: - | H177: 120 | I177: 120.00 | J177: Profit of Rs.21/- | K177: 21.00 | L177: 21.21% | M177: Successful | N177: 2014-11-17
A178: 17 | B178: 2014-11-13 | D178: Dharamsi Morarji Chem | E178: Buy | F178: 22.00 | G178: - | H178: 33.55 | I178: 32.00 | J178: Profit of Rs 11.55/- | K178: 11.55 | L178: 52.50% | M178: Successful | N178: 2015-07-03
A179: 18 | B179: 2014-12-03 | D179: Tatachem | E179: Buy | F179: 440.00 | G179: - | H179: 520 | I179: 520.00 | J179: Profit of Rs 80.00/- | K179: 80.00 | L179: 18.18% | M179: Successful | N179: 2015-07-23
A180: 19 | B180: 2014-12-03 | D180: Advanta | E180: Buy | F180: 360.00 | G180: - | H180: 427 | I180: 425.00 | J180: Profit of Rs.67.00/- | K180: 67.00 | L180: 18.61% | M180: Successful | N180: 2015-02-23
A181: 20 | B181: 2015-01-08 | D181: GDL | E181: Buy | F181: 360.00 | G181: - | H181: 455 | I181: 420.00 | J181: Profit of Rs.95.00/- | K181: 95.00 | L181: 26.39% | M181: Successful | N181: 2015-01-20
A182: 21 | B182: 2015-01-08 | D182: NRB Bearing | E182: Buy | F182: 130.00 | H182: 175.5 | I182: 165.00 | J182: Profit of Rs 45.50/- | K182: 45.50 | L182: 35.00% | M182: Successful | N182: 2017-12-19
A183: 22 | B183: 2015-02-05 | D183: GSFC | E183: Accu | F183: 98.00 | H183: 120 | I183: 120.00 | J183: Target Achieved | K183: 22.00 | L183: 22.45% | M183: Successful | N183: 2017-01-18
A184: 23 | B184: 2015-02-05 | D184: Sundrmfast | E184: Accu | F184: 196.00 | H184: 262 | I184: 255.00 | J184: Target Achieved | K184: 66.00 | L184: 33.67% | M184: Successful | N184: 2016-08-17
A185: 24 | B185: 2015-03-04 | D185: GPPL | E185: Accu | F185: 235 | H185: 77.00 | I185: 280-285 | J185: Loss of Rs.158/- | K185: -158.00 | L185: -67.23% | M185: Unsuccessful | N185: 2019-02-26
A186: 25 | B186: 2015-03-04 | D186: ORIENTCEM | E186: Accu | F186: 185.00 | H186: 224 | I186: 220-225 | J186: Target Achieved | K186: 39.00 | L186: 21.08% | M186: Successful | N186: 2016-10-04
A187: 26 | B187: 2015-03-27 | D187: PFS | E187: Accu | F187: 49.5 | H187: 15.85 | I187: 67.00 | J187: Loss of Rs.33.65/- | K187: -33.65 | L187: -68% | M187: Unsuccessful | N187: 2019-06-11
A188: 27 | B188: 2015-03-30 | D188: Walchandnagar Ind Ltd | E188: Accu | F188: 183.50 | H188: 219 | I188: 218.00 | J188: Profit of Rs.35.50/- | K188: 35.50 | L188: 19.35% | M188: Successful | N188: 2015-04-09
A189: 28 | B189: 2015-04-20 | D189: Kalpataru Power Transmission Ltd | E189: Accu | F189: =(227+237)/2 -> 232.00 | H189: 298 | I189: 298.00 | J189: Target Achieved | K189: 66.00 | L189: 28.45% | M189: Successful | N189: 2017-03-29
A190: 29 | B190: 2015-05-04 | D190: Mastek Ltd | E190: Buy | F190: 385.00 | H190: =212.5+331 -> 543.5 | I190: 510.00 | J190: Profit of Rs 158.50/- | K190: 158.50 | L190: 41.17% | M190: Successful | N190: 2015-08-19
A191: 30 | B191: 2015-05-04 | D191: Suprajit Eng | E191: Buy | F191: 115.50 | H191: 146 | I191: 142.00 | J191: Profit of Rs 30.50/- | K191: 30.50 | L191: 26.41% | M191: Successful | N191: 2015-07-17
A192: 31 | B192: 2015-05-27 | D192: TCI | E192: Buy | F192: 237.50 | H192: 279.5 | I192: 278.00 | J192: Target Achieved | K192: 42.00 | L192: 17.68% | M192: Successful | N192: 2015-08-06
A193: 32 | B193: 2015-06-19 | D193: HSIL | E193: Accu | F193: 340.00 | H193: 448 | I193: 448.00 | J193: Target Achieved | K193: 108.00 | L193: 31.76% | M193: Successful | N193: 2017-10-10
A194: 33 | B194: 2015-07-06 | D194: Capital First | E194: Accu | F194: 390.00 | H194: 460 | I194: 460.00 | J194: Target Achieved | K194: 70.00 | L194: 17.95% | M194: Successful | N194: 2016-04-18
A195: 34 | B195: 2015-07-10 | D195: Dolphin OffShore | E195: Accu | F195: 122.5 | H195: 61.00 | I195: 172.00 | J195: Loss of Rs.61.50/- | K195: -61.50 | L195: -50.20% | M195: Unsuccessful | N195: 2018-08-21
A196: 35 | B196: 2015-08-03 | D196: Allcargo logistics | E196: Accu | F196: 297.50 | H196: 350 | I196: 360.00 | J196: Profit of Rs 52.50/- | K196: 52.50 | L196: 17.65% | M196: Successful | N196: 2015-08-16
A197: 36 | B197: 2015-08-03 | D197: Camline Fine | E197: Accu | F197: 115.50 | H197: 149 | I197: 140.00 | J197: Profit of Rs 33.50/- | K197: 33.50 | L197: 29.00% | M197: Successful | N197: 2017-01-05
A198: 37 | B198: 2015-09-04 | D198: TCI | E198: Accu | F198: 226.00 | H198: 292 | I198: 292.00 | J198: Target Achieved | K198: 66.00 | L198: 29.20% | M198: Successful | N198: 2015-10-09
A199: 38 | B199: 2015-09-07 | D199: Kalpataru Power Transmission Ltd | E199: Accu | F199: 232.50 | H199: 312.5 | I199: 310.00 | J199: Target Achieved | K199: 80.00 | L199: 34.41% | M199: Successful | N199: 2017-03-29
A200: 39 | B200: 2015-09-21 | D200: LLOYD ELECTRIC & ENG LTD | E200: Accu | F200: 196.50 | H200: 238 | I200: 238.00 | J200: Target Achieved | K200: 41.50 | L200: 21.12% | M200: Successful | N200: 2015-10-14
A201: 40 | B201: 2015-09-24 | D201: L&T Finance Holding | E201: Accu | F201: 65.00 | H201: 82 | I201: 82.00 | J201: Target Achieved | K201: 17.00 | L201: 26.15% | M201: Successful | N201: 2016-07-27
A202: 41 | B202: 2015-10-14 | D202: KEC International ltd | E202: Accu | F202: 144.00 | H202: 182.5 | I202: 181.00 | J202: Target Achieved | K202: 38.50 | L202: 26.74% | M202: Successful | N202: 2017-03-23
A203: 42 | B203: 2015-10-14 | D203: Gruh Finance | E203: Accu | F203: 264.00 | H203: 311 | I203: 311.00 | J203: Target Achieved | K203: 47.00 | L203: 17.80% | M203: Successful | N203: 2016-08-22
A204: 43 | B204: 2015-11-10 | D204: Pidilitind | E204: Buy | F204: 549.50 | H204: 630 | I204: 630.00 | J204: Target Achieved | K204: 80.50 | L204: 14.65% | M204: Successful | N204: 2016-02-19
A205: 44 | B205: 2015-12-04 | D205: Zensar Technology | E205: Accu | F205: 1027.50 | H205: 1315 | I205: 1250.00 | J205: Target Achieved | K205: 287.50 | L205: 27.98% | M205: Successful | N205: 2018-05-24
A206: 45 | B206: 2015-12-29 | D206: Vinati Organics Ltd | E206: Accu | F206: 465.00 | H206: 540 | I206: 540.00 | J206: Target Achieved | K206: 75.00 | L206: 16.13% | M206: Successful | N206: 2016-06-09
A207: 46 | B207: 2016-01-11 | D207: GSFC | E207: Buy | F207: 81.00 | H207: 110 | I207: 110.00 | J207: Target Achieved | K207: 29.00 | L207: 35.80% | M207: Successful | N207: 2017-01-10
A208: 47 | B208: 2016-01-13 | D208: SSWL | E208: Buy | F208: 417.50 | H208: 547 | I208: 535.00 | J208: Target Achieved | K208: 129.50 | L208: 31.02% | M208: Successful | N208: 2016-07-27
A209: 48 | B209: 2016-02-08 | D209: Persistent System Ltd | E209: Accu | F209: 650.00 | H209: 800 | I209: 800.00 | J209: Target Achieved | K209: 150.00 | L209: 23.08% | M209: Successful | N209: 2018-02-23
A210: 49 | B210: 2016-03-04 | D210: UPL | E210: Accu | F210: 437.50 | H210: 504.5 | I210: 522.00 | J210: Profit of Rs.67/- | K210: 67.00 | L210: 15.31% | M210: Successful | N210: 2016-04-20
A211: 50 | B211: 2016-03-09 | D211: Ashoka Buildcon Ltd | E211: Accu | F211: 189.50 | H211: 218 | I211: 218.00 | J211: Target Achieved | K211: 28.50 | L211: 15.04% | M211: Successful | N211: 2017-10-26
A212: 51 | B212: 2016-04-11 | D212: PTC INDIA FIN SERV LTD | E212: Accu | F212: 36.5 | H212: 15.85 | I212: 60.00 | J212: Loss of Rs.20.65/- | K212: -20.65 | L212: -56.58% | M212: Unsuccessful | N212: 2019-06-11
A213: 52 | B213: 2016-04-12 | D213: CAMLINFINE $ | E213: Accu | F213: 93.00 | H213: 149 | I213: 140.00 | J213: Profit of Rs 56/- | K213: 56.00 | L213: 60.22% | M213: Successful | N213: 2017-01-05
A214: 53 | B214: 2016-04-12 | D214: Greaves Cotton Ltd. | E214: Accu | F214: 130.00 | H214: 150 | I214: 150-155 | J214: Target Achieved | K214: 20.00 | L214: 15.38% | M214: Successful | N214: 2016-07-13
A215: 54 | B215: 2016-04-13 | D215: DHFL | E215: Accu | F215: 196.00 | H215: 299 | I215: 299.00 | J215: Target Achieved | K215: 103.00 | L215: 52.55% | M215: Successful | N215: 2016-09-07
A216: 55 | B216: 2016-04-13 | D216: Magma | E216: Accu | F216: 88.00 | H216: 103 | I216: 103.00 | J216: Target Achieved | K216: 15.00 | L216: 17.05% | M216: Successful | N216: 2016-06-09
A217: 56 | B217: 2016-05-02 | D217: KEC International ltd $ | E217: Accu | F217: 127.50 | H217: 148 | I217: 148-150 | J217: Target Achieved | K217: =H217-F217 -> 20.50 | L217: =K217/F217 -> 16.08% | M217: Successful | N217: 2016-07-13
A218: 57 | B218: 2016-05-03 | D218: Mindtree | E218: Accu | F218: 675.00 | H218: 815 | I218: 790-800 | J218: Target Achieved | K218: 140.00 | L218: 20.74% | M218: Successful | N218: 2018-02-23
A219: 58 | B219: 2016-06-01 | D219: Atulauto | E219: Accu | F219: 500 | H219: 232.50 | I219: 565-570 | J219: Loss of Rs.267.50 /- | K219: -267.50 | L219: -53.50% | M219: Unsuccessful | N219: 2019-09-27
A220: 59 | B220: 2016-06-06 | D220: TRITURBINE | E220: Accu | F220: 110.00 | H220: 126.5 | I220: 125.00 | J220: Profit of Rs.16.50/- | K220: 16.50 | L220: 15.00% | M220: Successful | N220: 2016-07-01
A221: 60 | B221: 2016-06-17 | D221: Pennar Industries Ltd | E221: Accu | F221: 44.00 | H221: 69.5 | I221: 69.50 | J221: Profit of Rs.25.50/- | K221: 25.50 | L221: 57.95% | M221: Successful | N221: 2017-08-30
A222: 61 | B222: 2016-06-28 | D222: EVEREADY | E222: Accu | F222: 262.50 | H222: 340 | I222: 333.00 | J222: Profit of Rs.77.50/- | K222: 77.50 | L222: 29.52% | M222: Successful | N222: 2017-10-09
A223: 62 | B223: 2016-06-28 | D223: FIEMIND | E223: Accu | F223: 840.00 | H223: 1230 | I223: 1230.00 | J223: Target Achieved | K223: 390.00 | L223: 46.43% | M223: Successful | N223: 2016-10-06
A224: 63 | B224: 2016-07-05 | D224: Bajaj Corp Ltd | E224: Accu | F224: 395 | H224: =(468.5+342.5)/2 -> 405.50 | I224: 510.00 | J224: Profit of Rs.10.50/- | K224: =H224-F224 -> 10.50 | L224: =K224/F224 -> 3% | M224: Neutral | N224: 2019-05-21
A225: 64 | B225: 2016-08-02 | D225: GPPL $ | E225: Buy | F225: =169.5-12.8 -> 156.7 | H225: 77.00 | I225: 198-200 | J225: Loss of Rs.79.7/- | K225: -79.70 | L225: -50.86% | M225: Unsuccessful | N225: 2019-02-26
A226: 65 | B226: 2016-08-04 | D226: WONDERLA HOLIDAYS LTD | E226: Accu | F226: 400 | H226: 305.00 | I226: 475.00 | J226: Loss of Rs.95/- | K226: -95.00 | L226: -23.75% | M226: Unsuccessful | N226: 2019-05-21
A227: 66 | B227: 2016-08-11 | D227: CAMLINFINE | E227: Accu | F227: 86.50 | H227: 130 | I227: 130.00 | J227: Profit of Rs.43.50/- | K227: 43.50 | L227: 50.29% | M227: Successful | N227: 2017-12-22
A228: 67 | B228: 2016-08-18 | D228: GRANULES | E228: Accu | F228: 133.5 | H228: 126.50 | I228: 178.00 | J228: Exit | K228: -7.00 | L228: -5.24% | M228: Unsuccessful | N228: 2016-09-02
A229: 68 | B229: 2016-08-31 | D229: VA TECH WABAG | E229: Accu | F229: 560.00 | H229: 725 | I229: 725.00 | J229: Target Achieved | K229: 165.00 | L229: 29.46% | M229: Successful | N229: 2016-03-27
A230: 69 | B230: 2016-09-01 | D230: SKIPPER LIMITED | E230: Accu | F230: 160.50 | H230: 210 | I230: 210.00 | J230: Target Achieved | K230: 49.50 | L230: 30.84% | M230: Successful | N230: 2017-05-16
A231: 70 | B231: 2016-10-03 | D231: IFBIND | E231: Accu | F231: 430.00 | H231: 596 | I231: 575.00 | J231: Profit of Rs.166/- | K231: 166.00 | L231: 38.60% | M231: Successful | N231: 2017-02-03
... 106 more rows
